Workbook

Sheet Main Display
G2: CQG Percent Change Performance | U2: Ribbon | V2: =RTD("cqg.rtd", ,"SystemInfo", "Linetime") -> 44096.40412
B4: =Symbols!D7 -> Dow 30 | G4: =Symbols!D3 -> 15 | H4: =Symbols!D7 -> Dow 30 | M4: =Symbols!E3 -> Daily | N4: =Symbols!D7 -> Dow 30 | S4: =Symbols!F3 -> Weekly | T4: =Symbols!D7 -> Dow 30 | Y4: =Symbols!G3 -> Monthly
B25: ='Symbols (2)'!D7 -> Futures Markets | G25: ='Symbols (2)'!D3 -> 15 | H25: ='Symbols (2)'!D7 -> Futures Markets | M25: ='Symbols (2)'!E3 -> Daily | N25: ='Symbols (2)'!D7 -> Futures Markets | S25: ='Symbols (2)'!F3 -> Weekly | T25: ='Symbols (2)'!D7 -> Futures Markets | Y25: ='Symbols (2)'!G3 -> Monthly
B46: Copyright © 2020, CQG Inc. | F46: Designed by Thom Hartle

Sheet Symbols
B1: Symbols | C1: Description | D1: Chart 1 | E1: Chart 2 | F1: Chart 3 | G1: Chart 4
B2: S.MMM | C2: =RTD("cqg.rtd", ,"ContractData",B2, "LongDescription",, "T") -> 3M Company | D2: 15 | E2: D | F2: W | G2: M
B3: S.AXP | C3: =RTD("cqg.rtd", ,"ContractData",B3, "LongDescription",, "T") -> American Express Co | D3: =IF(ISNUMBER(D2),D2,IF(D2="D","Daily",IF(D2="W","Weekly",IF(D2="M","Monthly",IF(D2="Q","Quarterly",IF(D2="S","Semi-Annual",IF(D2="A","Annual"))))))) -> 15 | E3: =IF(ISNUMBER(E2),E2,IF(E2="D","Daily",IF(E2="W","Weekly",IF(E2="M","Monthly",IF(E2="Q","Quarterly",IF(E2="S","Semi-Annual",IF(E2="A","Annual"))))))) -> Daily | F3: =IF(ISNUMBER(F2),F2,IF(F2="D","Daily",IF(F2="W","Weekly",IF(F2="M","Monthly",IF(F2="Q","Quarterly",IF(F2="S","Semi-Annual",IF(F2="A","Annual"))))))) -> Weekly | G3: =IF(ISNUMBER(G2),G2,IF(G2="D","Daily",IF(G2="W","Weekly",IF(G2="M","Monthly",IF(G2="Q","Quarterly",IF(G2="S","Semi-Annual",IF(G2="A","Annual"))))))) -> Monthly
B4: S.AMGN | C4: =RTD("cqg.rtd", ,"ContractData",B4, "LongDescription",, "T") -> Amgen Inc | D4: Use All Capitals for Symbols and Time Frame
B5: S.AAPL | C5: =RTD("cqg.rtd", ,"ContractData",B5, "LongDescription",, "T") -> Apple Inc
B6: S.BA | C6: =RTD("cqg.rtd", ,"ContractData",B6, "LongDescription",, "T") -> Boeing Company | D6: Title
B7: S.CAT | C7: =RTD("cqg.rtd", ,"ContractData",B7, "LongDescription",, "T") -> Caterpillar Inc | D7: Dow 30
B8: S.CVX | C8: =RTD("cqg.rtd", ,"ContractData",B8, "LongDescription",, "T") -> Chevron Corp
B9: S.CSCO | C9: =RTD("cqg.rtd", ,"ContractData",B9, "LongDescription",, "T") -> Cisco Systems Inc
B10: S.KO | C10: =RTD("cqg.rtd", ,"ContractData",B10, "LongDescription",, "T") -> Coca-Cola Company
B11: S.DOW | C11: =RTD("cqg.rtd", ,"ContractData",B11, "LongDescription",, "T") -> Dow Inc.
B12: S.GS | C12: =RTD("cqg.rtd", ,"ContractData",B12, "LongDescription",, "T") -> Goldman Sachs Group
B13: S.HD | C13: =RTD("cqg.rtd", ,"ContractData",B13, "LongDescription",, "T") -> Home Depot, Inc.
B14: S.HON | C14: =RTD("cqg.rtd", ,"ContractData",B14, "LongDescription",, "T") -> Honeywell Intl
B15: S.INTC | C15: =RTD("cqg.rtd", ,"ContractData",B15, "LongDescription",, "T") -> Intel Corporation
B16: S.IBM | C16: =RTD("cqg.rtd", ,"ContractData",B16, "LongDescription",, "T") -> International Business Machines
B17: S.JNJ | C17: =RTD("cqg.rtd", ,"ContractData",B17, "LongDescription",, "T") -> Johnson & Johnson
B18: S.JPM | C18: =RTD("cqg.rtd", ,"ContractData",B18, "LongDescription",, "T") -> JPMorgan Chase & Co.
B19: S.MCD | C19: =RTD("cqg.rtd", ,"ContractData",B19, "LongDescription",, "T") -> McDonald's Corporation
B20: S.MRK | C20: =RTD("cqg.rtd", ,"ContractData",B20, "LongDescription",, "T") -> Merck & Co Inc
B21: S.MSFT | C21: =RTD("cqg.rtd", ,"ContractData",B21, "LongDescription",, "T") -> Microsoft Corporation
B22: S.NKE | C22: =RTD("cqg.rtd", ,"ContractData",B22, "LongDescription",, "T") -> NIKE Inc ClsB
B23: S.PG | C23: =RTD("cqg.rtd", ,"ContractData",B23, "LongDescription",, "T") -> Procter & Gamble Co
B24: S.CRM | C24: =RTD("cqg.rtd", ,"ContractData",B24, "LongDescription",, "T") -> Salesforce.com Inc
B25: S.TRV | C25: =RTD("cqg.rtd", ,"ContractData",B25, "LongDescription",, "T") -> Travelers Companies, Inc
B26: S.UNH | C26: =RTD("cqg.rtd", ,"ContractData",B26, "LongDescription",, "T") -> United Health Group Inc
B27: S.VZ | C27: =RTD("cqg.rtd", ,"ContractData",B27, "LongDescription",, "T") -> Verizon Communications
B28: S.V | C28: =RTD("cqg.rtd", ,"ContractData",B28, "LongDescription",, "T") -> Visa Inc.
B29: S.WBA | C29: =RTD("cqg.rtd", ,"ContractData",B29, "LongDescription",, "T") -> Walgreens Boots Alliance, Inc.
B30: S.WMT | C30: =RTD("cqg.rtd", ,"ContractData",B30, "LongDescription",, "T") -> Walmart Inc.
B31: S.DIS | C31: =RTD("cqg.rtd", ,"ContractData",B31, "LongDescription",, "T") -> Disney (Walt) Company

Sheet 15_Min (hidden)
C1: =Symbols!D2 -> 15
B2: =Symbols!B2 -> S.MMM | C2: =IFERROR(RTD("cqg.rtd",,"StudyData",B2,"PCB","BaseType=Index,Price=1000,Index=1,Date=12/30/2016","Close",$C$1,,"all",,,,"T")/100,"") -> -0.001599901545 | D2: =RANK($C2,$C$2:C$31)+COUNTIF($C$2:C2,C2)-1 -> 17 | E2: =B2 -> S.MMM | F2: 1 | G2: =IFERROR(VLOOKUP($F2,$D$2:$E$31,2,FALSE),"") -> S.DOW | H2: =IFERROR( RTD("cqg.rtd",,"StudyData",G2, "PCB","BaseType=Index,Price=1000,Index=1,Date=12/30/2016", "Close",$C$1,,"all",,,,"T")/100,"") -> 0.001882845188 | I2: =IF(H2<0,"",H2) -> 0.001882845188 | J2: =IF(H2>=0,"",-H2) ->  | K2: =IF(J2="","",H2) ->  | L2: =IF(G2="","",RTD("cqg.rtd",,"ContractData",G2,"LongDescription",,"T")) -> Dow Inc.
B3: =Symbols!B3 -> S.AXP | C3: =IFERROR(RTD("cqg.rtd",,"StudyData",B3,"PCB","BaseType=Index,Price=1000,Index=1,Date=12/30/2016","Close",$C$1,,"all",,,,"T")/100,"") -> -0.003160040775 | D3: =RANK($C3,$C$2:C$31)+COUNTIF($C$2:C3,C3)-1 -> 26 | E3: =B3 -> S.AXP | F3: =F2+1 -> 2 | G3: =IFERROR(VLOOKUP($F3,$D$2:$E$31,2,FALSE),"") -> S.MRK | H3: =IFERROR( RTD("cqg.rtd",,"StudyData",G3, "PCB","BaseType=Index,Price=1000,Index=1,Date=12/30/2016", "Close",$C$1,,"all",,,,"T")/100,"") -> 0.0004830334501 | I3: =IF(H3<0,"",H3) -> 0.0004830334501 | J3: =IF(H3>=0,"",-H3) ->  | K3: =IF(J3="","",H3) ->  | L3: =IF(G3="","",RTD("cqg.rtd",,"ContractData",G3,"LongDescription",,"T")) -> Merck & Co Inc
B4: =Symbols!B4 -> S.AMGN | C4: =IFERROR(RTD("cqg.rtd",,"StudyData",B4,"PCB","BaseType=Index,Price=1000,Index=1,Date=12/30/2016","Close",$C$1,,"all",,,,"T")/100,"") -> -0.0008226051906 | D4: =RANK($C4,$C$2:C$31)+COUNTIF($C$2:C4,C4)-1 -> 9 | E4: S.AMGN | F4: =F3+1 -> 3 | G4: S.CSCO | H4: =IFERROR( RTD("cqg.rtd",,"StudyData",G4, "PCB","BaseType=Index,Price=1000,Index=1,Date=12/30/2016", "Close",$C$1,,"all",,,,"T")/100,"") -> 0.0002542588355 | I4: 0.0002542588355 | L4: =IF(G4="","",RTD("cqg.rtd",,"ContractData",G4,"LongDescription",,"T")) -> Cisco Systems Inc
B5: =Symbols!B5 -> S.AAPL | C5: =IFERROR(RTD("cqg.rtd",,"StudyData",B5,"PCB","BaseType=Index,Price=1000,Index=1,Date=12/30/2016","Close",$C$1,,"all",,,,"T")/100,"") -> -0.005920875572 | D5: =RANK($C5,$C$2:C$31)+COUNTIF($C$2:C5,C5)-1 -> 29 | E5: S.AAPL | F5: 4 | G5: S.V | H5: =IFERROR( RTD("cqg.rtd",,"StudyData",G5, "PCB","BaseType=Index,Price=1000,Index=1,Date=12/30/2016", "Close",$C$1,,"all",,,,"T")/100,"") -> 0.0002014504432 | I5: 0.0002014504432 | L5: =IF(G5="","",RTD("cqg.rtd",,"ContractData",G5,"LongDescription",,"T")) -> Visa Inc.
B6: =Symbols!B6 -> S.BA | C6: =IFERROR(RTD("cqg.rtd",,"StudyData",B6,"PCB","BaseType=Index,Price=1000,Index=1,Date=12/30/2016","Close",$C$1,,"all",,,,"T")/100,"") -> -0.006803153611 | D6: =RANK($C6,$C$2:C$31)+COUNTIF($C$2:C6,C6)-1 -> 30 | E6: S.BA | F6: 5 | G6: S.WMT | H6: =IFERROR( RTD("cqg.rtd",,"StudyData",G6, "PCB","BaseType=Index,Price=1000,Index=1,Date=12/30/2016", "Close",$C$1,,"all",,,,"T")/100,"") -> -0.0001455180442 | J6: 0.0001455180442 | K6: -0.0001455180442 | L6: =IF(G6="","",RTD("cqg.rtd",,"ContractData",G6,"LongDescription",,"T")) -> Walmart Inc.
B7: =Symbols!B7 -> S.CAT | C7: =IFERROR(RTD("cqg.rtd",,"StudyData",B7,"PCB","BaseType=Index,Price=1000,Index=1,Date=12/30/2016","Close",$C$1,,"all",,,,"T")/100,"") -> -0.002448979592 | D7: =RANK($C7,$C$2:C$31)+COUNTIF($C$2:C7,C7)-1 -> 21 | E7: S.CAT | F7: 6 | G7: S.HD | H7: =IFERROR( RTD("cqg.rtd",,"StudyData",G7, "PCB","BaseType=Index,Price=1000,Index=1,Date=12/30/2016", "Close",$C$1,,"all",,,,"T")/100,"") -> -0.0005131964809 | J7: 0.0005131964809 | K7: -0.0005131964809 | L7: =IF(G7="","",RTD("cqg.rtd",,"ContractData",G7,"LongDescription",,"T")) -> Home Depot, Inc.
B8: =Symbols!B8 -> S.CVX | C8: =IFERROR(RTD("cqg.rtd",,"StudyData",B8,"PCB","BaseType=Index,Price=1000,Index=1,Date=12/30/2016","Close",$C$1,,"all",,,,"T")/100,"") -> -0.002092323787 | D8: =RANK($C8,$C$2:C$31)+COUNTIF($C$2:C8,C8)-1 -> 19 | E8: S.CVX | F8: 7 | G8: S.PG | H8: =IFERROR( RTD("cqg.rtd",,"StudyData",G8, "PCB","BaseType=Index,Price=1000,Index=1,Date=12/30/2016", "Close",$C$1,,"all",,,,"T")/100,"") -> -0.0006488824802 | J8: 0.0006488824802 | K8: -0.0006488824802 | L8: =IF(G8="","",RTD("cqg.rtd",,"ContractData",G8,"LongDescription",,"T")) -> Procter & Gamble Co
B9: =Symbols!B9 -> S.CSCO | C9: =IFERROR(RTD("cqg.rtd",,"StudyData",B9,"PCB","BaseType=Index,Price=1000,Index=1,Date=12/30/2016","Close",$C$1,,"all",,,,"T")/100,"") -> 0.0002542588355 | D9: =RANK($C9,$C$2:C$31)+COUNTIF($C$2:C9,C9)-1 -> 3 | E9: S.CSCO | F9: 8 | G9: S.JNJ | H9: =IFERROR( RTD("cqg.rtd",,"StudyData",G9, "PCB","BaseType=Index,Price=1000,Index=1,Date=12/30/2016", "Close",$C$1,,"all",,,,"T")/100,"") -> -0.0006914194842 | J9: 0.0006914194842 | K9: -0.0006914194842 | L9: =IF(G9="","",RTD("cqg.rtd",,"ContractData",G9,"LongDescription",,"T")) -> Johnson & Johnson
B10: =Symbols!B10 -> S.KO | C10: =IFERROR(RTD("cqg.rtd",,"StudyData",B10,"PCB","BaseType=Index,Price=1000,Index=1,Date=12/30/2016","Close",$C$1,,"all",,,,"T")/100,"") -> -0.001001602564 | D10: =RANK($C10,$C$2:C$31)+COUNTIF($C$2:C10,C10)-1 -> 12 | E10: S.KO | F10: 9 | G10: S.AMGN | H10: =IFERROR( RTD("cqg.rtd",,"StudyData",G10, "PCB","BaseType=Index,Price=1000,Index=1,Date=12/30/2016", "Close",$C$1,,"all",,,,"T")/100,"") -> -0.0008226051906 | J10: 0.0008226051906 | K10: -0.0008226051906 | L10: =IF(G10="","",RTD("cqg.rtd",,"ContractData",G10,"LongDescription",,"T")) -> Amgen Inc
B11: =Symbols!B11 -> S.DOW | C11: =IFERROR(RTD("cqg.rtd",,"StudyData",B11,"PCB","BaseType=Index,Price=1000,Index=1,Date=12/30/2016","Close",$C$1,,"all",,,,"T")/100,"") -> 0.001882845188 | D11: =RANK($C11,$C$2:C$31)+COUNTIF($C$2:C11,C11)-1 -> 1 | E11: S.DOW | F11: 10 | G11: S.NKE | H11: =IFERROR( RTD("cqg.rtd",,"StudyData",G11, "PCB","BaseType=Index,Price=1000,Index=1,Date=12/30/2016", "Close",$C$1,,"all",,,,"T")/100,"") -> -0.0008769622029 | J11: 0.0008769622029 | K11: -0.0008769622029 | L11: =IF(G11="","",RTD("cqg.rtd",,"ContractData",G11,"LongDescription",,"T")) -> NIKE Inc ClsB
B12: =Symbols!B12 -> S.GS | C12: =IFERROR(RTD("cqg.rtd",,"StudyData",B12,"PCB","BaseType=Index,Price=1000,Index=1,Date=12/30/2016","Close",$C$1,,"all",,,,"T")/100,"") -> -0.002548234438 | D12: =RANK($C12,$C$2:C$31)+COUNTIF($C$2:C12,C12)-1 -> 24 | E12: S.GS | F12: 11 | G12: S.MSFT | H12: =IFERROR( RTD("cqg.rtd",,"StudyData",G12, "PCB","BaseType=Index,Price=1000,Index=1,Date=12/30/2016", "Close",$C$1,,"all",,,,"T")/100,"") -> -0.0009302325581 | J12: 0.0009302325581 | K12: -0.0009302325581 | L12: =IF(G12="","",RTD("cqg.rtd",,"ContractData",G12,"LongDescription",,"T")) -> Microsoft Corporation
B13: =Symbols!B13 -> S.HD | C13: =IFERROR(RTD("cqg.rtd",,"StudyData",B13,"PCB","BaseType=Index,Price=1000,Index=1,Date=12/30/2016","Close",$C$1,,"all",,,,"T")/100,"") -> -0.0005131964809 | D13: =RANK($C13,$C$2:C$31)+COUNTIF($C$2:C13,C13)-1 -> 6 | E13: S.HD | F13: 12 | G13: S.KO | H13: =IFERROR( RTD("cqg.rtd",,"StudyData",G13, "PCB","BaseType=Index,Price=1000,Index=1,Date=12/30/2016", "Close",$C$1,,"all",,,,"T")/100,"") -> -0.001001602564 | J13: 0.001001602564 | K13: -0.001001602564 | L13: =IF(G13="","",RTD("cqg.rtd",,"ContractData",G13,"LongDescription",,"T")) -> Coca-Cola Company
B14: =Symbols!B14 -> S.HON | C14: =IFERROR(RTD("cqg.rtd",,"StudyData",B14,"PCB","BaseType=Index,Price=1000,Index=1,Date=12/30/2016","Close",$C$1,,"all",,,,"T")/100,"") -> -0.003576493803 | D14: =RANK($C14,$C$2:C$31)+COUNTIF($C$2:C14,C14)-1 -> 28 | E14: S.HON | F14: 13 | G14: S.INTC | H14: =IFERROR( RTD("cqg.rtd",,"StudyData",G14, "PCB","BaseType=Index,Price=1000,Index=1,Date=12/30/2016", "Close",$C$1,,"all",,,,"T")/100,"") -> -0.001003613007 | J14: 0.001003613007 | K14: -0.001003613007 | L14: =IF(G14="","",RTD("cqg.rtd",,"ContractData",G14,"LongDescription",,"T")) -> Intel Corporation
B15: =Symbols!B15 -> S.INTC | C15: =IFERROR(RTD("cqg.rtd",,"StudyData",B15,"PCB","BaseType=Index,Price=1000,Index=1,Date=12/30/2016","Close",$C$1,,"all",,,,"T")/100,"") -> -0.001003613007 | D15: =RANK($C15,$C$2:C$31)+COUNTIF($C$2:C15,C15)-1 -> 13 | E15: S.INTC | F15: 14 | G15: S.UNH | H15: =IFERROR( RTD("cqg.rtd",,"StudyData",G15, "PCB","BaseType=Index,Price=1000,Index=1,Date=12/30/2016", "Close",$C$1,,"all",,,,"T")/100,"") -> -0.001012077458 | J15: 0.001012077458 | K15: -0.001012077458 | L15: =IF(G15="","",RTD("cqg.rtd",,"ContractData",G15,"LongDescription",,"T")) -> United Health Group Inc
B16: =Symbols!B16 -> S.IBM | C16: =IFERROR(RTD("cqg.rtd",,"StudyData",B16,"PCB","BaseType=Index,Price=1000,Index=1,Date=12/30/2016","Close",$C$1,,"all",,,,"T")/100,"") -> -0.00156584803 | D16: =RANK($C16,$C$2:C$31)+COUNTIF($C$2:C16,C16)-1 -> 16 | E16: S.IBM | F16: 15 | G16: S.TRV | H16: =IFERROR( RTD("cqg.rtd",,"StudyData",G16, "PCB","BaseType=Index,Price=1000,Index=1,Date=12/30/2016", "Close",$C$1,,"all",,,,"T")/100,"") -> -0.001538322324 | J16: 0.001538322324 | K16: -0.001538322324 | L16: =IF(G16="","",RTD("cqg.rtd",,"ContractData",G16,"LongDescription",,"T")) -> Travelers Companies, Inc
B17: =Symbols!B17 -> S.JNJ | C17: =IFERROR(RTD("cqg.rtd",,"StudyData",B17,"PCB","BaseType=Index,Price=1000,Index=1,Date=12/30/2016","Close",$C$1,,"all",,,,"T")/100,"") -> -0.0006914194842 | D17: =RANK($C17,$C$2:C$31)+COUNTIF($C$2:C17,C17)-1 -> 8 | E17: S.JNJ | F17: 16 | G17: S.IBM | H17: =IFERROR( RTD("cqg.rtd",,"StudyData",G17, "PCB","BaseType=Index,Price=1000,Index=1,Date=12/30/2016", "Close",$C$1,,"all",,,,"T")/100,"") -> -0.00156584803 | J17: 0.00156584803 | K17: -0.00156584803 | L17: =IF(G17="","",RTD("cqg.rtd",,"ContractData",G17,"LongDescription",,"T")) -> International Business Machines
B18: =Symbols!B18 -> S.JPM | C18: =IFERROR(RTD("cqg.rtd",,"StudyData",B18,"PCB","BaseType=Index,Price=1000,Index=1,Date=12/30/2016","Close",$C$1,,"all",,,,"T")/100,"") -> -0.002325335588 | D18: =RANK($C18,$C$2:C$31)+COUNTIF($C$2:C18,C18)-1 -> 20 | E18: S.JPM | F18: 17 | G18: S.MMM | H18: =IFERROR( RTD("cqg.rtd",,"StudyData",G18, "PCB","BaseType=Index,Price=1000,Index=1,Date=12/30/2016", "Close",$C$1,,"all",,,,"T")/100,"") -> -0.001599901545 | J18: 0.001599901545 | K18: -0.001599901545 | L18: =IF(G18="","",RTD("cqg.rtd",,"ContractData",G18,"LongDescription",,"T")) -> 3M Company
B19: =Symbols!B19 -> S.MCD | C19: =IFERROR(RTD("cqg.rtd",,"StudyData",B19,"PCB","BaseType=Index,Price=1000,Index=1,Date=12/30/2016","Close",$C$1,,"all",,,,"T")/100,"") -> -0.00254053305 | D19: =RANK($C19,$C$2:C$31)+COUNTIF($C$2:C19,C19)-1 -> 23 | E19: S.MCD | F19: 18 | G19: S.CRM | H19: =IFERROR( RTD("cqg.rtd",,"StudyData",G19, "PCB","BaseType=Index,Price=1000,Index=1,Date=12/30/2016", "Close",$C$1,,"all",,,,"T")/100,"") -> -0.002002124704 | J19: 0.002002124704 | K19: -0.002002124704 | L19: =IF(G19="","",RTD("cqg.rtd",,"ContractData",G19,"LongDescription",,"T")) -> Salesforce.com Inc
B20: =Symbols!B20 -> S.MRK | C20: =IFERROR(RTD("cqg.rtd",,"StudyData",B20,"PCB","BaseType=Index,Price=1000,Index=1,Date=12/30/2016","Close",$C$1,,"all",,,,"T")/100,"") -> 0.0004830334501 | D20: =RANK($C20,$C$2:C$31)+COUNTIF($C$2:C20,C20)-1 -> 2 | E20: S.MRK | F20: 19 | G20: S.CVX | H20: =IFERROR( RTD("cqg.rtd",,"StudyData",G20, "PCB","BaseType=Index,Price=1000,Index=1,Date=12/30/2016", "Close",$C$1,,"all",,,,"T")/100,"") -> -0.002092323787 | J20: 0.002092323787 | K20: -0.002092323787 | L20: =IF(G20="","",RTD("cqg.rtd",,"ContractData",G20,"LongDescription",,"T")) -> Chevron Corp
B21: =Symbols!B21 -> S.MSFT | C21: =IFERROR(RTD("cqg.rtd",,"StudyData",B21,"PCB","BaseType=Index,Price=1000,Index=1,Date=12/30/2016","Close",$C$1,,"all",,,,"T")/100,"") -> -0.0009302325581 | D21: =RANK($C21,$C$2:C$31)+COUNTIF($C$2:C21,C21)-1 -> 11 | E21: S.MSFT | F21: 20 | G21: S.JPM | H21: =IFERROR( RTD("cqg.rtd",,"StudyData",G21, "PCB","BaseType=Index,Price=1000,Index=1,Date=12/30/2016", "Close",$C$1,,"all",,,,"T")/100,"") -> -0.002325335588 | J21: 0.002325335588 | K21: -0.002325335588 | L21: =IF(G21="","",RTD("cqg.rtd",,"ContractData",G21,"LongDescription",,"T")) -> JPMorgan Chase & Co.
B22: =Symbols!B22 -> S.NKE | C22: =IFERROR(RTD("cqg.rtd",,"StudyData",B22,"PCB","BaseType=Index,Price=1000,Index=1,Date=12/30/2016","Close",$C$1,,"all",,,,"T")/100,"") -> -0.0008769622029 | D22: =RANK($C22,$C$2:C$31)+COUNTIF($C$2:C22,C22)-1 -> 10 | E22: S.NKE | F22: 21 | G22: S.CAT | H22: =IFERROR( RTD("cqg.rtd",,"StudyData",G22, "PCB","BaseType=Index,Price=1000,Index=1,Date=12/30/2016", "Close",$C$1,,"all",,,,"T")/100,"") -> -0.002448979592 | J22: 0.002448979592 | K22: -0.002448979592 | L22: =IF(G22="","",RTD("cqg.rtd",,"ContractData",G22,"LongDescription",,"T")) -> Caterpillar Inc
B23: =Symbols!B23 -> S.PG | C23: =IFERROR(RTD("cqg.rtd",,"StudyData",B23,"PCB","BaseType=Index,Price=1000,Index=1,Date=12/30/2016","Close",$C$1,,"all",,,,"T")/100,"") -> -0.0006488824802 | D23: =RANK($C23,$C$2:C$31)+COUNTIF($C$2:C23,C23)-1 -> 7 | E23: S.PG | F23: 22 | G23: S.VZ | H23: =IFERROR( RTD("cqg.rtd",,"StudyData",G23, "PCB","BaseType=Index,Price=1000,Index=1,Date=12/30/2016", "Close",$C$1,,"all",,,,"T")/100,"") -> -0.002499583403 | J23: 0.002499583403 | K23: -0.002499583403 | L23: =IF(G23="","",RTD("cqg.rtd",,"ContractData",G23,"LongDescription",,"T")) -> Verizon Communications
B24: =Symbols!B24 -> S.CRM | C24: =IFERROR(RTD("cqg.rtd",,"StudyData",B24,"PCB","BaseType=Index,Price=1000,Index=1,Date=12/30/2016","Close",$C$1,,"all",,,,"T")/100,"") -> -0.002002124704 | D24: =RANK($C24,$C$2:C$31)+COUNTIF($C$2:C24,C24)-1 -> 18 | E24: S.CRM | F24: 23 | G24: S.MCD | H24: =IFERROR( RTD("cqg.rtd",,"StudyData",G24, "PCB","BaseType=Index,Price=1000,Index=1,Date=12/30/2016", "Close",$C$1,,"all",,,,"T")/100,"") -> -0.00254053305 | J24: 0.00254053305 | K24: -0.00254053305 | L24: =IF(G24="","",RTD("cqg.rtd",,"ContractData",G24,"LongDescription",,"T")) -> McDonald's Corporation
B25: =Symbols!B25 -> S.TRV | C25: =IFERROR(RTD("cqg.rtd",,"StudyData",B25,"PCB","BaseType=Index,Price=1000,Index=1,Date=12/30/2016","Close",$C$1,,"all",,,,"T")/100,"") -> -0.001538322324 | D25: =RANK($C25,$C$2:C$31)+COUNTIF($C$2:C25,C25)-1 -> 15 | E25: S.TRV | F25: 24 | G25: S.GS | H25: =IFERROR( RTD("cqg.rtd",,"StudyData",G25, "PCB","BaseType=Index,Price=1000,Index=1,Date=12/30/2016", "Close",$C$1,,"all",,,,"T")/100,"") -> -0.002548234438 | J25: 0.002548234438 | K25: -0.002548234438 | L25: =IF(G25="","",RTD("cqg.rtd",,"ContractData",G25,"LongDescription",,"T")) -> Goldman Sachs Group
B26: =Symbols!B26 -> S.UNH | C26: =IFERROR(RTD("cqg.rtd",,"StudyData",B26,"PCB","BaseType=Index,Price=1000,Index=1,Date=12/30/2016","Close",$C$1,,"all",,,,"T")/100,"") -> -0.001012077458 | D26: =RANK($C26,$C$2:C$31)+COUNTIF($C$2:C26,C26)-1 -> 14 | E26: S.UNH | F26: 25 | G26: S.WBA | H26: =IFERROR( RTD("cqg.rtd",,"StudyData",G26, "PCB","BaseType=Index,Price=1000,Index=1,Date=12/30/2016", "Close",$C$1,,"all",,,,"T")/100,"") -> -0.003064066852 | J26: 0.003064066852 | K26: -0.003064066852 | L26: =IF(G26="","",RTD("cqg.rtd",,"ContractData",G26,"LongDescription",,"T")) -> Walgreens Boots Alliance, Inc.
B27: =Symbols!B27 -> S.VZ | C27: =IFERROR(RTD("cqg.rtd",,"StudyData",B27,"PCB","BaseType=Index,Price=1000,Index=1,Date=12/30/2016","Close",$C$1,,"all",,,,"T")/100,"") -> -0.002499583403 | D27: =RANK($C27,$C$2:C$31)+COUNTIF($C$2:C27,C27)-1 -> 22 | E27: S.VZ | F27: 26 | G27: S.AXP | H27: =IFERROR( RTD("cqg.rtd",,"StudyData",G27, "PCB","BaseType=Index,Price=1000,Index=1,Date=12/30/2016", "Close",$C$1,,"all",,,,"T")/100,"") -> -0.003160040775 | J27: 0.003160040775 | K27: -0.003160040775 | L27: =IF(G27="","",RTD("cqg.rtd",,"ContractData",G27,"LongDescription",,"T")) -> American Express Co
B28: =Symbols!B28 -> S.V | C28: =IFERROR(RTD("cqg.rtd",,"StudyData",B28,"PCB","BaseType=Index,Price=1000,Index=1,Date=12/30/2016","Close",$C$1,,"all",,,,"T")/100,"") -> 0.0002014504432 | D28: =RANK($C28,$C$2:C$31)+COUNTIF($C$2:C28,C28)-1 -> 4 | E28: S.V | F28: 27 | G28: S.DIS | H28: =IFERROR( RTD("cqg.rtd",,"StudyData",G28, "PCB","BaseType=Index,Price=1000,Index=1,Date=12/30/2016", "Close",$C$1,,"all",,,,"T")/100,"") -> -0.003167313326 | J28: 0.003167313326 | K28: -0.003167313326 | L28: =IF(G28="","",RTD("cqg.rtd",,"ContractData",G28,"LongDescription",,"T")) -> Disney (Walt) Company
B29: =Symbols!B29 -> S.WBA | C29: =IFERROR(RTD("cqg.rtd",,"StudyData",B29,"PCB","BaseType=Index,Price=1000,Index=1,Date=12/30/2016","Close",$C$1,,"all",,,,"T")/100,"") -> -0.003064066852 | D29: =RANK($C29,$C$2:C$31)+COUNTIF($C$2:C29,C29)-1 -> 25 | E29: S.WBA | F29: 28 | G29: S.HON | H29: =IFERROR( RTD("cqg.rtd",,"StudyData",G29, "PCB","BaseType=Index,Price=1000,Index=1,Date=12/30/2016", "Close",$C$1,,"all",,,,"T")/100,"") -> -0.003576493803 | J29: 0.003576493803 | K29: -0.003576493803 | L29: =IF(G29="","",RTD("cqg.rtd",,"ContractData",G29,"LongDescription",,"T")) -> Honeywell Intl
B30: =Symbols!B30 -> S.WMT | C30: =IFERROR(RTD("cqg.rtd",,"StudyData",B30,"PCB","BaseType=Index,Price=1000,Index=1,Date=12/30/2016","Close",$C$1,,"all",,,,"T")/100,"") -> -0.0001455180442 | D30: =RANK($C30,$C$2:C$31)+COUNTIF($C$2:C30,C30)-1 -> 5 | E30: S.WMT | F30: 29 | G30: S.AAPL | H30: =IFERROR( RTD("cqg.rtd",,"StudyData",G30, "PCB","BaseType=Index,Price=1000,Index=1,Date=12/30/2016", "Close",$C$1,,"all",,,,"T")/100,"") -> -0.005920875572 | J30: 0.005920875572 | K30: -0.005920875572 | L30: =IF(G30="","",RTD("cqg.rtd",,"ContractData",G30,"LongDescription",,"T")) -> Apple Inc
B31: =Symbols!B31 -> S.DIS | C31: =IFERROR(RTD("cqg.rtd",,"StudyData",B31,"PCB","BaseType=Index,Price=1000,Index=1,Date=12/30/2016","Close",$C$1,,"all",,,,"T")/100,"") -> -0.003167313326 | D31: =RANK($C31,$C$2:C$31)+COUNTIF($C$2:C31,C31)-1 -> 27 | E31: S.DIS | F31: 30 | G31: S.BA | H31: =IFERROR( RTD("cqg.rtd",,"StudyData",G31, "PCB","BaseType=Index,Price=1000,Index=1,Date=12/30/2016", "Close",$C$1,,"all",,,,"T")/100,"") -> -0.006803153611 | J31: 0.006803153611 | K31: -0.006803153611 | L31: =IF(G31="","",RTD("cqg.rtd",,"ContractData",G31,"LongDescription",,"T")) -> Boeing Company

Sheet Daily (hidden)
C1: ="A"&Symbols!E2 -> AD
B2: =Symbols!B2 -> S.MMM | C2: =IFERROR(RTD("cqg.rtd",,"StudyData",B2,"PCB","BaseType=Index,Price=1000,Index=1,Date=12/30/2016","Close",$C$1,,"all",,,,"T")/100,"") -> 0.005515617253 | D2: =RANK($C2,$C$2:C$31)+COUNTIF($C$2:C2,C2)-1 -> 10 | E2: =B2 -> S.MMM | F2: 1 | G2: =IFERROR(VLOOKUP($F2,$D$2:$E$31,2,FALSE),"") -> S.KO | H2: =IFERROR( RTD("cqg.rtd",,"StudyData",G2, "PCB","BaseType=Index,Price=1000,Index=1,Date=12/30/2016", "Close",$C$1,,"all",,,,"T")/100,"") -> 0.01588918313 | I2: =IF(H2<0,"",H2) -> 0.01588918313 | J2: =IF(H2>=0,"",-H2) ->  | K2: =IF(J2="","",H2) ->  | L2: =IF(G2="","",RTD("cqg.rtd",,"ContractData",G2,"LongDescription",,"T")) -> Coca-Cola Company
B3: =Symbols!B3 -> S.AXP | C3: =IFERROR(RTD("cqg.rtd",,"StudyData",B3,"PCB","BaseType=Index,Price=1000,Index=1,Date=12/30/2016","Close",$C$1,,"all",,,,"T")/100,"") -> -0.003870836304 | D3: =RANK($C3,$C$2:C$31)+COUNTIF($C$2:C3,C3)-1 -> 26 | E3: =B3 -> S.AXP | F3: =F2+1 -> 2 | G3: =IFERROR(VLOOKUP($F3,$D$2:$E$31,2,FALSE),"") -> S.PG | H3: =IFERROR( RTD("cqg.rtd",,"StudyData",G3, "PCB","BaseType=Index,Price=1000,Index=1,Date=12/30/2016", "Close",$C$1,,"all",,,,"T")/100,"") -> 0.01389803233 | I3: =IF(H3<0,"",H3) -> 0.01389803233 | J3: =IF(H3>=0,"",-H3) ->  | K3: =IF(J3="","",H3) ->  | L3: =IF(G3="","",RTD("cqg.rtd",,"ContractData",G3,"LongDescription",,"T")) -> Procter & Gamble Co
B4: =Symbols!B4 -> S.AMGN | C4: =IFERROR(RTD("cqg.rtd",,"StudyData",B4,"PCB","BaseType=Index,Price=1000,Index=1,Date=12/30/2016","Close",$C$1,,"all",,,,"T")/100,"") -> -0.001069122908 | D4: =RANK($C4,$C$2:C$31)+COUNTIF($C$2:C4,C4)-1 -> 22 | E4: S.AMGN | F4: =F3+1 -> 3 | G4: S.CAT | H4: =IFERROR( RTD("cqg.rtd",,"StudyData",G4, "PCB","BaseType=Index,Price=1000,Index=1,Date=12/30/2016", "Close",$C$1,,"all",,,,"T")/100,"") -> 0.00901396821 | I4: 0.00901396821 | L4: =IF(G4="","",RTD("cqg.rtd",,"ContractData",G4,"LongDescription",,"T")) -> Caterpillar Inc
B5: =Symbols!B5 -> S.AAPL | C5: =IFERROR(RTD("cqg.rtd",,"StudyData",B5,"PCB","BaseType=Index,Price=1000,Index=1,Date=12/30/2016","Close",$C$1,,"all",,,,"T")/100,"") -> 0.006631540698 | D5: =RANK($C5,$C$2:C$31)+COUNTIF($C$2:C5,C5)-1 -> 8 | E5: S.AAPL | F5: 4 | G5: S.TRV | H5: =IFERROR( RTD("cqg.rtd",,"StudyData",G5, "PCB","BaseType=Index,Price=1000,Index=1,Date=12/30/2016", "Close",$C$1,,"all",,,,"T")/100,"") -> 0.008131566926 | I5: 0.008131566926 | L5: =IF(G5="","",RTD("cqg.rtd",,"ContractData",G5,"LongDescription",,"T")) -> Travelers Companies, Inc
B6: =Symbols!B6 -> S.BA | C6: =IFERROR(RTD("cqg.rtd",,"StudyData",B6,"PCB","BaseType=Index,Price=1000,Index=1,Date=12/30/2016","Close",$C$1,,"all",,,,"T")/100,"") -> -0.0008954269268 | D6: =RANK($C6,$C$2:C$31)+COUNTIF($C$2:C6,C6)-1 -> 21 | E6: S.BA | F6: 5 | G6: S.CSCO | H6: =IFERROR( RTD("cqg.rtd",,"StudyData",G6, "PCB","BaseType=Index,Price=1000,Index=1,Date=12/30/2016", "Close",$C$1,,"all",,,,"T")/100,"") -> 0.00768442623 | I6: 0.00768442623 | L6: =IF(G6="","",RTD("cqg.rtd",,"ContractData",G6,"LongDescription",,"T")) -> Cisco Systems Inc
B7: =Symbols!B7 -> S.CAT | C7: =IFERROR(RTD("cqg.rtd",,"StudyData",B7,"PCB","BaseType=Index,Price=1000,Index=1,Date=12/30/2016","Close",$C$1,,"all",,,,"T")/100,"") -> 0.00901396821 | D7: =RANK($C7,$C$2:C$31)+COUNTIF($C$2:C7,C7)-1 -> 3 | E7: S.CAT | F7: 6 | G7: S.MSFT | H7: =IFERROR( RTD("cqg.rtd",,"StudyData",G7, "PCB","BaseType=Index,Price=1000,Index=1,Date=12/30/2016", "Close",$C$1,,"all",,,,"T")/100,"") -> 0.007504690432 | I7: 0.007504690432 | L7: =IF(G7="","",RTD("cqg.rtd",,"ContractData",G7,"LongDescription",,"T")) -> Microsoft Corporation
B8: =Symbols!B8 -> S.CVX | C8: =IFERROR(RTD("cqg.rtd",,"StudyData",B8,"PCB","BaseType=Index,Price=1000,Index=1,Date=12/30/2016","Close",$C$1,,"all",,,,"T")/100,"") -> 0.000131061599 | D8: =RANK($C8,$C$2:C$31)+COUNTIF($C$2:C8,C8)-1 -> 18 | E8: S.CVX | F8: 7 | G8: S.IBM | H8: =IFERROR( RTD("cqg.rtd",,"StudyData",G8, "PCB","BaseType=Index,Price=1000,Index=1,Date=12/30/2016", "Close",$C$1,,"all",,,,"T")/100,"") -> 0.007484407484 | I8: 0.007484407484 | L8: =IF(G8="","",RTD("cqg.rtd",,"ContractData",G8,"LongDescription",,"T")) -> International Business Machines
B9: =Symbols!B9 -> S.CSCO | C9: =IFERROR(RTD("cqg.rtd",,"StudyData",B9,"PCB","BaseType=Index,Price=1000,Index=1,Date=12/30/2016","Close",$C$1,,"all",,,,"T")/100,"") -> 0.00768442623 | D9: =RANK($C9,$C$2:C$31)+COUNTIF($C$2:C9,C9)-1 -> 5 | E9: S.CSCO | F9: 8 | G9: S.AAPL | H9: =IFERROR( RTD("cqg.rtd",,"StudyData",G9, "PCB","BaseType=Index,Price=1000,Index=1,Date=12/30/2016", "Close",$C$1,,"all",,,,"T")/100,"") -> 0.006631540698 | I9: 0.006631540698 | L9: =IF(G9="","",RTD("cqg.rtd",,"ContractData",G9,"LongDescription",,"T")) -> Apple Inc
B10: =Symbols!B10 -> S.KO | C10: =IFERROR(RTD("cqg.rtd",,"StudyData",B10,"PCB","BaseType=Index,Price=1000,Index=1,Date=12/30/2016","Close",$C$1,,"all",,,,"T")/100,"") -> 0.01588918313 | D10: =RANK($C10,$C$2:C$31)+COUNTIF($C$2:C10,C10)-1 -> 1 | E10: S.KO | F10: 9 | G10: S.V | H10: =IFERROR( RTD("cqg.rtd",,"StudyData",G10, "PCB","BaseType=Index,Price=1000,Index=1,Date=12/30/2016", "Close",$C$1,,"all",,,,"T")/100,"") -> 0.005824259306 | I10: 0.005824259306 | L10: =IF(G10="","",RTD("cqg.rtd",,"ContractData",G10,"LongDescription",,"T")) -> Visa Inc.
B11: =Symbols!B11 -> S.DOW | C11: =IFERROR(RTD("cqg.rtd",,"StudyData",B11,"PCB","BaseType=Index,Price=1000,Index=1,Date=12/30/2016","Close",$C$1,,"all",,,,"T")/100,"") -> -0.0004174493843 | D11: =RANK($C11,$C$2:C$31)+COUNTIF($C$2:C11,C11)-1 -> 20 | E11: S.DOW | F11: 10 | G11: S.MMM | H11: =IFERROR( RTD("cqg.rtd",,"StudyData",G11, "PCB","BaseType=Index,Price=1000,Index=1,Date=12/30/2016", "Close",$C$1,,"all",,,,"T")/100,"") -> 0.005515617253 | I11: 0.005515617253 | L11: =IF(G11="","",RTD("cqg.rtd",,"ContractData",G11,"LongDescription",,"T")) -> 3M Company
B12: =Symbols!B12 -> S.GS | C12: =IFERROR(RTD("cqg.rtd",,"StudyData",B12,"PCB","BaseType=Index,Price=1000,Index=1,Date=12/30/2016","Close",$C$1,,"all",,,,"T")/100,"") -> -0.01134020619 | D12: =RANK($C12,$C$2:C$31)+COUNTIF($C$2:C12,C12)-1 -> 30 | E12: S.GS | F12: 11 | G12: S.NKE | H12: =IFERROR( RTD("cqg.rtd",,"StudyData",G12, "PCB","BaseType=Index,Price=1000,Index=1,Date=12/30/2016", "Close",$C$1,,"all",,,,"T")/100,"") -> 0.004939578372 | I12: 0.004939578372 | L12: =IF(G12="","",RTD("cqg.rtd",,"ContractData",G12,"LongDescription",,"T")) -> NIKE Inc ClsB
B13: =Symbols!B13 -> S.HD | C13: =IFERROR(RTD("cqg.rtd",,"StudyData",B13,"PCB","BaseType=Index,Price=1000,Index=1,Date=12/30/2016","Close",$C$1,,"all",,,,"T")/100,"") -> 0.001138241234 | D13: =RANK($C13,$C$2:C$31)+COUNTIF($C$2:C13,C13)-1 -> 16 | E13: S.HD | F13: 12 | G13: S.VZ | H13: =IFERROR( RTD("cqg.rtd",,"StudyData",G13, "PCB","BaseType=Index,Price=1000,Index=1,Date=12/30/2016", "Close",$C$1,,"all",,,,"T")/100,"") -> 0.004193927193 | I13: 0.004193927193 | L13: =IF(G13="","",RTD("cqg.rtd",,"ContractData",G13,"LongDescription",,"T")) -> Verizon Communications
B14: =Symbols!B14 -> S.HON | C14: =IFERROR(RTD("cqg.rtd",,"StudyData",B14,"PCB","BaseType=Index,Price=1000,Index=1,Date=12/30/2016","Close",$C$1,,"all",,,,"T")/100,"") -> 0.001363326517 | D14: =RANK($C14,$C$2:C$31)+COUNTIF($C$2:C14,C14)-1 -> 15 | E14: S.HON | F14: 13 | G14: S.DIS | H14: =IFERROR( RTD("cqg.rtd",,"StudyData",G14, "PCB","BaseType=Index,Price=1000,Index=1,Date=12/30/2016", "Close",$C$1,,"all",,,,"T")/100,"") -> 0.003827445977 | I14: 0.003827445977 | L14: =IF(G14="","",RTD("cqg.rtd",,"ContractData",G14,"LongDescription",,"T")) -> Disney (Walt) Company
B15: =Symbols!B15 -> S.INTC | C15: =IFERROR(RTD("cqg.rtd",,"StudyData",B15,"PCB","BaseType=Index,Price=1000,Index=1,Date=12/30/2016","Close",$C$1,,"all",,,,"T")/100,"") -> 0.001005631537 | D15: =RANK($C15,$C$2:C$31)+COUNTIF($C$2:C15,C15)-1 -> 17 | E15: S.INTC | F15: 14 | G15: S.WMT | H15: =IFERROR( RTD("cqg.rtd",,"StudyData",G15, "PCB","BaseType=Index,Price=1000,Index=1,Date=12/30/2016", "Close",$C$1,,"all",,,,"T")/100,"") -> 0.002553439848 | I15: 0.002553439848 | L15: =IF(G15="","",RTD("cqg.rtd",,"ContractData",G15,"LongDescription",,"T")) -> Walmart Inc.
B16: =Symbols!B16 -> S.IBM | C16: =IFERROR(RTD("cqg.rtd",,"StudyData",B16,"PCB","BaseType=Index,Price=1000,Index=1,Date=12/30/2016","Close",$C$1,,"all",,,,"T")/100,"") -> 0.007484407484 | D16: =RANK($C16,$C$2:C$31)+COUNTIF($C$2:C16,C16)-1 -> 7 | E16: S.IBM | F16: 15 | G16: S.HON | H16: =IFERROR( RTD("cqg.rtd",,"StudyData",G16, "PCB","BaseType=Index,Price=1000,Index=1,Date=12/30/2016", "Close",$C$1,,"all",,,,"T")/100,"") -> 0.001363326517 | I16: 0.001363326517 | L16: =IF(G16="","",RTD("cqg.rtd",,"ContractData",G16,"LongDescription",,"T")) -> Honeywell Intl
B17: =Symbols!B17 -> S.JNJ | C17: =IFERROR(RTD("cqg.rtd",,"StudyData",B17,"PCB","BaseType=Index,Price=1000,Index=1,Date=12/30/2016","Close",$C$1,,"all",,,,"T")/100,"") -> -0.003928325293 | D17: =RANK($C17,$C$2:C$31)+COUNTIF($C$2:C17,C17)-1 -> 27 | E17: S.JNJ | F17: 16 | G17: S.HD | H17: =IFERROR( RTD("cqg.rtd",,"StudyData",G17, "PCB","BaseType=Index,Price=1000,Index=1,Date=12/30/2016", "Close",$C$1,,"all",,,,"T")/100,"") -> 0.001138241234 | I17: 0.001138241234 | L17: =IF(G17="","",RTD("cqg.rtd",,"ContractData",G17,"LongDescription",,"T")) -> Home Depot, Inc.
B18: =Symbols!B18 -> S.JPM | C18: =IFERROR(RTD("cqg.rtd",,"StudyData",B18,"PCB","BaseType=Index,Price=1000,Index=1,Date=12/30/2016","Close",$C$1,,"all",,,,"T")/100,"") -> -0.009652712202 | D18: =RANK($C18,$C$2:C$31)+COUNTIF($C$2:C18,C18)-1 -> 28 | E18: S.JPM | F18: 17 | G18: S.INTC | H18: =IFERROR( RTD("cqg.rtd",,"StudyData",G18, "PCB","BaseType=Index,Price=1000,Index=1,Date=12/30/2016", "Close",$C$1,,"all",,,,"T")/100,"") -> 0.001005631537 | I18: 0.001005631537 | L18: =IF(G18="","",RTD("cqg.rtd",,"ContractData",G18,"LongDescription",,"T")) -> Intel Corporation
B19: =Symbols!B19 -> S.MCD | C19: =IFERROR(RTD("cqg.rtd",,"StudyData",B19,"PCB","BaseType=Index,Price=1000,Index=1,Date=12/30/2016","Close",$C$1,,"all",,,,"T")/100,"") -> -0.002171803521 | D19: =RANK($C19,$C$2:C$31)+COUNTIF($C$2:C19,C19)-1 -> 23 | E19: S.MCD | F19: 18 | G19: S.CVX | H19: =IFERROR( RTD("cqg.rtd",,"StudyData",G19, "PCB","BaseType=Index,Price=1000,Index=1,Date=12/30/2016", "Close",$C$1,,"all",,,,"T")/100,"") -> 0.000131061599 | I19: 0.000131061599 | L19: =IF(G19="","",RTD("cqg.rtd",,"ContractData",G19,"LongDescription",,"T")) -> Chevron Corp
B20: =Symbols!B20 -> S.MRK | C20: =IFERROR(RTD("cqg.rtd",,"StudyData",B20,"PCB","BaseType=Index,Price=1000,Index=1,Date=12/30/2016","Close",$C$1,,"all",,,,"T")/100,"") -> -0.003368218453 | D20: =RANK($C20,$C$2:C$31)+COUNTIF($C$2:C20,C20)-1 -> 25 | E20: S.MRK | F20: 19 | G20: S.WBA | H20: =IFERROR( RTD("cqg.rtd",,"StudyData",G20, "PCB","BaseType=Index,Price=1000,Index=1,Date=12/30/2016", "Close",$C$1,,"all",,,,"T")/100,"") -> 0 | I20: 0 | L20: =IF(G20="","",RTD("cqg.rtd",,"ContractData",G20,"LongDescription",,"T")) -> Walgreens Boots Alliance, Inc.
B21: =Symbols!B21 -> S.MSFT | C21: =IFERROR(RTD("cqg.rtd",,"StudyData",B21,"PCB","BaseType=Index,Price=1000,Index=1,Date=12/30/2016","Close",$C$1,,"all",,,,"T")/100,"") -> 0.007504690432 | D21: =RANK($C21,$C$2:C$31)+COUNTIF($C$2:C21,C21)-1 -> 6 | E21: S.MSFT | F21: 20 | G21: S.DOW | H21: =IFERROR( RTD("cqg.rtd",,"StudyData",G21, "PCB","BaseType=Index,Price=1000,Index=1,Date=12/30/2016", "Close",$C$1,,"all",,,,"T")/100,"") -> -0.0004174493843 | J21: 0.0004174493843 | K21: -0.0004174493843 | L21: =IF(G21="","",RTD("cqg.rtd",,"ContractData",G21,"LongDescription",,"T")) -> Dow Inc.
B22: =Symbols!B22 -> S.NKE | C22: =IFERROR(RTD("cqg.rtd",,"StudyData",B22,"PCB","BaseType=Index,Price=1000,Index=1,Date=12/30/2016","Close",$C$1,,"all",,,,"T")/100,"") -> 0.004939578372 | D22: =RANK($C22,$C$2:C$31)+COUNTIF($C$2:C22,C22)-1 -> 11 | E22: S.NKE | F22: 21 | G22: S.BA | H22: =IFERROR( RTD("cqg.rtd",,"StudyData",G22, "PCB","BaseType=Index,Price=1000,Index=1,Date=12/30/2016", "Close",$C$1,,"all",,,,"T")/100,"") -> -0.0008954269268 | J22: 0.0008954269268 | K22: -0.0008954269268 | L22: =IF(G22="","",RTD("cqg.rtd",,"ContractData",G22,"LongDescription",,"T")) -> Boeing Company
B23: =Symbols!B23 -> S.PG | C23: =IFERROR(RTD("cqg.rtd",,"StudyData",B23,"PCB","BaseType=Index,Price=1000,Index=1,Date=12/30/2016","Close",$C$1,,"all",,,,"T")/100,"") -> 0.01389803233 | D23: =RANK($C23,$C$2:C$31)+COUNTIF($C$2:C23,C23)-1 -> 2 | E23: S.PG | F23: 22 | G23: S.AMGN | H23: =IFERROR( RTD("cqg.rtd",,"StudyData",G23, "PCB","BaseType=Index,Price=1000,Index=1,Date=12/30/2016", "Close",$C$1,,"all",,,,"T")/100,"") -> -0.001069122908 | J23: 0.001069122908 | K23: -0.001069122908 | L23: =IF(G23="","",RTD("cqg.rtd",,"ContractData",G23,"LongDescription",,"T")) -> Amgen Inc
B24: =Symbols!B24 -> S.CRM | C24: =IFERROR(RTD("cqg.rtd",,"StudyData",B24,"PCB","BaseType=Index,Price=1000,Index=1,Date=12/30/2016","Close",$C$1,,"all",,,,"T")/100,"") -> -0.003264639869 | D24: =RANK($C24,$C$2:C$31)+COUNTIF($C$2:C24,C24)-1 -> 24 | E24: S.CRM | F24: 23 | G24: S.MCD | H24: =IFERROR( RTD("cqg.rtd",,"StudyData",G24, "PCB","BaseType=Index,Price=1000,Index=1,Date=12/30/2016", "Close",$C$1,,"all",,,,"T")/100,"") -> -0.002171803521 | J24: 0.002171803521 | K24: -0.002171803521 | L24: =IF(G24="","",RTD("cqg.rtd",,"ContractData",G24,"LongDescription",,"T")) -> McDonald's Corporation
B25: =Symbols!B25 -> S.TRV | C25: =IFERROR(RTD("cqg.rtd",,"StudyData",B25,"PCB","BaseType=Index,Price=1000,Index=1,Date=12/30/2016","Close",$C$1,,"all",,,,"T")/100,"") -> 0.008131566926 | D25: =RANK($C25,$C$2:C$31)+COUNTIF($C$2:C25,C25)-1 -> 4 | E25: S.TRV | F25: 24 | G25: S.CRM | H25: =IFERROR( RTD("cqg.rtd",,"StudyData",G25, "PCB","BaseType=Index,Price=1000,Index=1,Date=12/30/2016", "Close",$C$1,,"all",,,,"T")/100,"") -> -0.003264639869 | J25: 0.003264639869 | K25: -0.003264639869 | L25: =IF(G25="","",RTD("cqg.rtd",,"ContractData",G25,"LongDescription",,"T")) -> Salesforce.com Inc
B26: =Symbols!B26 -> S.UNH | C26: =IFERROR(RTD("cqg.rtd",,"StudyData",B26,"PCB","BaseType=Index,Price=1000,Index=1,Date=12/30/2016","Close",$C$1,,"all",,,,"T")/100,"") -> -0.01026103814 | D26: =RANK($C26,$C$2:C$31)+COUNTIF($C$2:C26,C26)-1 -> 29 | E26: S.UNH | F26: 25 | G26: S.MRK | H26: =IFERROR( RTD("cqg.rtd",,"StudyData",G26, "PCB","BaseType=Index,Price=1000,Index=1,Date=12/30/2016", "Close",$C$1,,"all",,,,"T")/100,"") -> -0.003368218453 | J26: 0.003368218453 | K26: -0.003368218453 | L26: =IF(G26="","",RTD("cqg.rtd",,"ContractData",G26,"LongDescription",,"T")) -> Merck & Co Inc
B27: =Symbols!B27 -> S.VZ | C27: =IFERROR(RTD("cqg.rtd",,"StudyData",B27,"PCB","BaseType=Index,Price=1000,Index=1,Date=12/30/2016","Close",$C$1,,"all",,,,"T")/100,"") -> 0.004193927193 | D27: =RANK($C27,$C$2:C$31)+COUNTIF($C$2:C27,C27)-1 -> 12 | E27: S.VZ | F27: 26 | G27: S.AXP | H27: =IFERROR( RTD("cqg.rtd",,"StudyData",G27, "PCB","BaseType=Index,Price=1000,Index=1,Date=12/30/2016", "Close",$C$1,,"all",,,,"T")/100,"") -> -0.003870836304 | J27: 0.003870836304 | K27: -0.003870836304 | L27: =IF(G27="","",RTD("cqg.rtd",,"ContractData",G27,"LongDescription",,"T")) -> American Express Co
B28: =Symbols!B28 -> S.V | C28: =IFERROR(RTD("cqg.rtd",,"StudyData",B28,"PCB","BaseType=Index,Price=1000,Index=1,Date=12/30/2016","Close",$C$1,,"all",,,,"T")/100,"") -> 0.005824259306 | D28: =RANK($C28,$C$2:C$31)+COUNTIF($C$2:C28,C28)-1 -> 9 | E28: S.V | F28: 27 | G28: S.JNJ | H28: =IFERROR( RTD("cqg.rtd",,"StudyData",G28, "PCB","BaseType=Index,Price=1000,Index=1,Date=12/30/2016", "Close",$C$1,,"all",,,,"T")/100,"") -> -0.003928325293 | J28: 0.003928325293 | K28: -0.003928325293 | L28: =IF(G28="","",RTD("cqg.rtd",,"ContractData",G28,"LongDescription",,"T")) -> Johnson & Johnson
B29: =Symbols!B29 -> S.WBA | C29: =IFERROR(RTD("cqg.rtd",,"StudyData",B29,"PCB","BaseType=Index,Price=1000,Index=1,Date=12/30/2016","Close",$C$1,,"all",,,,"T")/100,"") -> 0 | D29: =RANK($C29,$C$2:C$31)+COUNTIF($C$2:C29,C29)-1 -> 19 | E29: S.WBA | F29: 28 | G29: S.JPM | H29: =IFERROR( RTD("cqg.rtd",,"StudyData",G29, "PCB","BaseType=Index,Price=1000,Index=1,Date=12/30/2016", "Close",$C$1,,"all",,,,"T")/100,"") -> -0.009652712202 | J29: 0.009652712202 | K29: -0.009652712202 | L29: =IF(G29="","",RTD("cqg.rtd",,"ContractData",G29,"LongDescription",,"T")) -> JPMorgan Chase & Co.
B30: =Symbols!B30 -> S.WMT | C30: =IFERROR(RTD("cqg.rtd",,"StudyData",B30,"PCB","BaseType=Index,Price=1000,Index=1,Date=12/30/2016","Close",$C$1,,"all",,,,"T")/100,"") -> 0.002553439848 | D30: =RANK($C30,$C$2:C$31)+COUNTIF($C$2:C30,C30)-1 -> 14 | E30: S.WMT | F30: 29 | G30: S.UNH | H30: =IFERROR( RTD("cqg.rtd",,"StudyData",G30, "PCB","BaseType=Index,Price=1000,Index=1,Date=12/30/2016", "Close",$C$1,,"all",,,,"T")/100,"") -> -0.01026103814 | J30: 0.01026103814 | K30: -0.01026103814 | L30: =IF(G30="","",RTD("cqg.rtd",,"ContractData",G30,"LongDescription",,"T")) -> United Health Group Inc
B31: =Symbols!B31 -> S.DIS | C31: =IFERROR(RTD("cqg.rtd",,"StudyData",B31,"PCB","BaseType=Index,Price=1000,Index=1,Date=12/30/2016","Close",$C$1,,"all",,,,"T")/100,"") -> 0.003827445977 | D31: =RANK($C31,$C$2:C$31)+COUNTIF($C$2:C31,C31)-1 -> 13 | E31: S.DIS | F31: 30 | G31: S.GS | H31: =IFERROR( RTD("cqg.rtd",,"StudyData",G31, "PCB","BaseType=Index,Price=1000,Index=1,Date=12/30/2016", "Close",$C$1,,"all",,,,"T")/100,"") -> -0.01134020619 | J31: 0.01134020619 | K31: -0.01134020619 | L31: =IF(G31="","",RTD("cqg.rtd",,"ContractData",G31,"LongDescription",,"T")) -> Goldman Sachs Group

Sheet Weekly (hidden)
C1: ="A"&Symbols!F2 -> AW
B2: =Symbols!B2 -> S.MMM | C2: =IFERROR(RTD("cqg.rtd",,"StudyData",B2, "PCB","BaseType=Index,Price=1000,Index=1,Date=12/30/2016", "Close",$C$1,,"all",,,,"T")/100,"") -> -0.04305514597 | D2: =RANK($C2,$C$2:C$31)+COUNTIF($C$2:C2,C2)-1 -> 28 | E2: =B2 -> S.MMM | F2: 1 | G2: =IFERROR(VLOOKUP($F2,$D$2:$E$31,2,FALSE),"") -> S.AAPL | H2: =IFERROR( RTD("cqg.rtd",,"StudyData",G2, "PCB","BaseType=Index,Price=1000,Index=1,Date=12/30/2016", "Close",$C$1,,"all",,,,"T")/100,"") -> 0.03715836765 | I2: =IF(H2<0,"",H2) -> 0.03715836765 | J2: =IF(H2>=0,"",-H2) ->  | K2: =IF(J2="","",H2) ->  | L2: =IF(G2="","",RTD("cqg.rtd",,"ContractData",G2,"LongDescription",,"T")) -> Apple Inc
B3: =Symbols!B3 -> S.AXP | C3: =IFERROR(RTD("cqg.rtd",,"StudyData",B3, "PCB","BaseType=Index,Price=1000,Index=1,Date=12/30/2016", "Close",$C$1,,"all",,,,"T")/100,"") -> -0.05462103635 | D3: =RANK($C3,$C$2:C$31)+COUNTIF($C$2:C3,C3)-1 -> 30 | E3: =B3 -> S.AXP | F3: =F2+1 -> 2 | G3: =IFERROR(VLOOKUP($F3,$D$2:$E$31,2,FALSE),"") -> S.MSFT | H3: =IFERROR( RTD("cqg.rtd",,"StudyData",G3, "PCB","BaseType=Index,Price=1000,Index=1,Date=12/30/2016", "Close",$C$1,,"all",,,,"T")/100,"") -> 0.01831428714 | I3: =IF(H3<0,"",H3) -> 0.01831428714 | J3: =IF(H3>=0,"",-H3) ->  | K3: =IF(J3="","",H3) ->  | L3: =IF(G3="","",RTD("cqg.rtd",,"ContractData",G3,"LongDescription",,"T")) -> Microsoft Corporation
B4: =Symbols!B4 -> S.AMGN | C4: =IFERROR(RTD("cqg.rtd",,"StudyData",B4, "PCB","BaseType=Index,Price=1000,Index=1,Date=12/30/2016", "Close",$C$1,,"all",,,,"T")/100,"") -> -0.01933634749 | D4: =RANK($C4,$C$2:C$31)+COUNTIF($C$2:C4,C4)-1 -> 15 | E4: S.AMGN | F4: =F3+1 -> 3 | G4: S.WMT | H4: =IFERROR( RTD("cqg.rtd",,"StudyData",G4, "PCB","BaseType=Index,Price=1000,Index=1,Date=12/30/2016", "Close",$C$1,,"all",,,,"T")/100,"") -> 0.01574395742 | I4: 0.01574395742 | L4: =IF(G4="","",RTD("cqg.rtd",,"ContractData",G4,"LongDescription",,"T")) -> Walmart Inc.
B5: =Symbols!B5 -> S.AAPL | C5: =IFERROR(RTD("cqg.rtd",,"StudyData",B5, "PCB","BaseType=Index,Price=1000,Index=1,Date=12/30/2016", "Close",$C$1,,"all",,,,"T")/100,"") -> 0.03715836765 | D5: =RANK($C5,$C$2:C$31)+COUNTIF($C$2:C5,C5)-1 -> 1 | E5: S.AAPL | F5: 4 | G5: S.PG | H5: =IFERROR( RTD("cqg.rtd",,"StudyData",G5, "PCB","BaseType=Index,Price=1000,Index=1,Date=12/30/2016", "Close",$C$1,,"all",,,,"T")/100,"") -> 0.009026716168 | I5: 0.009026716168 | L5: =IF(G5="","",RTD("cqg.rtd",,"ContractData",G5,"LongDescription",,"T")) -> Procter & Gamble Co
B6: =Symbols!B6 -> S.BA | C6: =IFERROR(RTD("cqg.rtd",,"StudyData",B6, "PCB","BaseType=Index,Price=1000,Index=1,Date=12/30/2016", "Close",$C$1,,"all",,,,"T")/100,"") -> -0.03059451409 | D6: =RANK($C6,$C$2:C$31)+COUNTIF($C$2:C6,C6)-1 -> 20 | E6: S.BA | F6: 5 | G6: S.CRM | H6: =IFERROR( RTD("cqg.rtd",,"StudyData",G6, "PCB","BaseType=Index,Price=1000,Index=1,Date=12/30/2016", "Close",$C$1,,"all",,,,"T")/100,"") -> 0.006054864486 | I6: 0.006054864486 | L6: =IF(G6="","",RTD("cqg.rtd",,"ContractData",G6,"LongDescription",,"T")) -> Salesforce.com Inc
B7: =Symbols!B7 -> S.CAT | C7: =IFERROR(RTD("cqg.rtd",,"StudyData",B7, "PCB","BaseType=Index,Price=1000,Index=1,Date=12/30/2016", "Close",$C$1,,"all",,,,"T")/100,"") -> -0.03773213465 | D7: =RANK($C7,$C$2:C$31)+COUNTIF($C$2:C7,C7)-1 -> 24 | E7: S.CAT | F7: 6 | G7: S.INTC | H7: =IFERROR( RTD("cqg.rtd",,"StudyData",G7, "PCB","BaseType=Index,Price=1000,Index=1,Date=12/30/2016", "Close",$C$1,,"all",,,,"T")/100,"") -> -0.002405291642 | J7: 0.002405291642 | K7: -0.002405291642 | L7: =IF(G7="","",RTD("cqg.rtd",,"ContractData",G7,"LongDescription",,"T")) -> Intel Corporation
B8: =Symbols!B8 -> S.CVX | C8: =IFERROR(RTD("cqg.rtd",,"StudyData",B8, "PCB","BaseType=Index,Price=1000,Index=1,Date=12/30/2016", "Close",$C$1,,"all",,,,"T")/100,"") -> -0.0242935686 | D8: =RANK($C8,$C$2:C$31)+COUNTIF($C$2:C8,C8)-1 -> 19 | E8: S.CVX | F8: 7 | G8: S.NKE | H8: =IFERROR( RTD("cqg.rtd",,"StudyData",G8, "PCB","BaseType=Index,Price=1000,Index=1,Date=12/30/2016", "Close",$C$1,,"all",,,,"T")/100,"") -> -0.006366649224 | J8: 0.006366649224 | K8: -0.006366649224 | L8: =IF(G8="","",RTD("cqg.rtd",,"ContractData",G8,"LongDescription",,"T")) -> NIKE Inc ClsB
B9: =Symbols!B9 -> S.CSCO | C9: =IFERROR(RTD("cqg.rtd",,"StudyData",B9, "PCB","BaseType=Index,Price=1000,Index=1,Date=12/30/2016", "Close",$C$1,,"all",,,,"T")/100,"") -> -0.01180607887 | D9: =RANK($C9,$C$2:C$31)+COUNTIF($C$2:C9,C9)-1 -> 12 | E9: S.CSCO | F9: 8 | G9: S.VZ | H9: =IFERROR( RTD("cqg.rtd",,"StudyData",G9, "PCB","BaseType=Index,Price=1000,Index=1,Date=12/30/2016", "Close",$C$1,,"all",,,,"T")/100,"") -> -0.00811930406 | J9: 0.00811930406 | K9: -0.00811930406 | L9: =IF(G9="","",RTD("cqg.rtd",,"ContractData",G9,"LongDescription",,"T")) -> Verizon Communications
B10: =Symbols!B10 -> S.KO | C10: =IFERROR(RTD("cqg.rtd",,"StudyData",B10, "PCB","BaseType=Index,Price=1000,Index=1,Date=12/30/2016", "Close",$C$1,,"all",,,,"T")/100,"") -> -0.01149653122 | D10: =RANK($C10,$C$2:C$31)+COUNTIF($C$2:C10,C10)-1 -> 11 | E10: S.KO | F10: 9 | G10: S.HD | H10: =IFERROR( RTD("cqg.rtd",,"StudyData",G10, "PCB","BaseType=Index,Price=1000,Index=1,Date=12/30/2016", "Close",$C$1,,"all",,,,"T")/100,"") -> -0.009193648025 | J10: 0.009193648025 | K10: -0.009193648025 | L10: =IF(G10="","",RTD("cqg.rtd",,"ContractData",G10,"LongDescription",,"T")) -> Home Depot, Inc.
B11: =Symbols!B11 -> S.DOW | C11: =IFERROR(RTD("cqg.rtd",,"StudyData",B11, "PCB","BaseType=Index,Price=1000,Index=1,Date=12/30/2016", "Close",$C$1,,"all",,,,"T")/100,"") -> -0.04923565614 | D11: =RANK($C11,$C$2:C$31)+COUNTIF($C$2:C11,C11)-1 -> 29 | E11: S.DOW | F11: 10 | G11: S.TRV | H11: =IFERROR( RTD("cqg.rtd",,"StudyData",G11, "PCB","BaseType=Index,Price=1000,Index=1,Date=12/30/2016", "Close",$C$1,,"all",,,,"T")/100,"") -> -0.0113789087 | J11: 0.0113789087 | K11: -0.0113789087 | L11: =IF(G11="","",RTD("cqg.rtd",,"ContractData",G11,"LongDescription",,"T")) -> Travelers Companies, Inc
B12: =Symbols!B12 -> S.GS | C12: =IFERROR(RTD("cqg.rtd",,"StudyData",B12, "PCB","BaseType=Index,Price=1000,Index=1,Date=12/30/2016", "Close",$C$1,,"all",,,,"T")/100,"") -> -0.01570358206 | D12: =RANK($C12,$C$2:C$31)+COUNTIF($C$2:C12,C12)-1 -> 14 | E12: S.GS | F12: 11 | G12: S.KO | H12: =IFERROR( RTD("cqg.rtd",,"StudyData",G12, "PCB","BaseType=Index,Price=1000,Index=1,Date=12/30/2016", "Close",$C$1,,"all",,,,"T")/100,"") -> -0.01149653122 | J12: 0.01149653122 | K12: -0.01149653122 | L12: =IF(G12="","",RTD("cqg.rtd",,"ContractData",G12,"LongDescription",,"T")) -> Coca-Cola Company
B13: =Symbols!B13 -> S.HD | C13: =IFERROR(RTD("cqg.rtd",,"StudyData",B13, "PCB","BaseType=Index,Price=1000,Index=1,Date=12/30/2016", "Close",$C$1,,"all",,,,"T")/100,"") -> -0.009193648025 | D13: =RANK($C13,$C$2:C$31)+COUNTIF($C$2:C13,C13)-1 -> 9 | E13: S.HD | F13: 12 | G13: S.CSCO | H13: =IFERROR( RTD("cqg.rtd",,"StudyData",G13, "PCB","BaseType=Index,Price=1000,Index=1,Date=12/30/2016", "Close",$C$1,,"all",,,,"T")/100,"") -> -0.01180607887 | J13: 0.01180607887 | K13: -0.01180607887 | L13: =IF(G13="","",RTD("cqg.rtd",,"ContractData",G13,"LongDescription",,"T")) -> Cisco Systems Inc
B14: =Symbols!B14 -> S.HON | C14: =IFERROR(RTD("cqg.rtd",,"StudyData",B14, "PCB","BaseType=Index,Price=1000,Index=1,Date=12/30/2016", "Close",$C$1,,"all",,,,"T")/100,"") -> -0.04214582098 | D14: =RANK($C14,$C$2:C$31)+COUNTIF($C$2:C14,C14)-1 -> 27 | E14: S.HON | F14: 13 | G14: S.IBM | H14: =IFERROR( RTD("cqg.rtd",,"StudyData",G14, "PCB","BaseType=Index,Price=1000,Index=1,Date=12/30/2016", "Close",$C$1,,"all",,,,"T")/100,"") -> -0.01311502118 | J14: 0.01311502118 | K14: -0.01311502118 | L14: =IF(G14="","",RTD("cqg.rtd",,"ContractData",G14,"LongDescription",,"T")) -> International Business Machines
B15: =Symbols!B15 -> S.INTC | C15: =IFERROR(RTD("cqg.rtd",,"StudyData",B15, "PCB","BaseType=Index,Price=1000,Index=1,Date=12/30/2016", "Close",$C$1,,"all",,,,"T")/100,"") -> -0.002405291642 | D15: =RANK($C15,$C$2:C$31)+COUNTIF($C$2:C15,C15)-1 -> 6 | E15: S.INTC | F15: 14 | G15: S.GS | H15: =IFERROR( RTD("cqg.rtd",,"StudyData",G15, "PCB","BaseType=Index,Price=1000,Index=1,Date=12/30/2016", "Close",$C$1,,"all",,,,"T")/100,"") -> -0.01570358206 | J15: 0.01570358206 | K15: -0.01570358206 | L15: =IF(G15="","",RTD("cqg.rtd",,"ContractData",G15,"LongDescription",,"T")) -> Goldman Sachs Group
B16: =Symbols!B16 -> S.IBM | C16: =IFERROR(RTD("cqg.rtd",,"StudyData",B16, "PCB","BaseType=Index,Price=1000,Index=1,Date=12/30/2016", "Close",$C$1,,"all",,,,"T")/100,"") -> -0.01311502118 | D16: =RANK($C16,$C$2:C$31)+COUNTIF($C$2:C16,C16)-1 -> 13 | E16: S.IBM | F16: 15 | G16: S.AMGN | H16: =IFERROR( RTD("cqg.rtd",,"StudyData",G16, "PCB","BaseType=Index,Price=1000,Index=1,Date=12/30/2016", "Close",$C$1,,"all",,,,"T")/100,"") -> -0.01933634749 | J16: 0.01933634749 | K16: -0.01933634749 | L16: =IF(G16="","",RTD("cqg.rtd",,"ContractData",G16,"LongDescription",,"T")) -> Amgen Inc
B17: =Symbols!B17 -> S.JNJ | C17: =IFERROR(RTD("cqg.rtd",,"StudyData",B17, "PCB","BaseType=Index,Price=1000,Index=1,Date=12/30/2016", "Close",$C$1,,"all",,,,"T")/100,"") -> -0.03117039818 | D17: =RANK($C17,$C$2:C$31)+COUNTIF($C$2:C17,C17)-1 -> 22 | E17: S.JNJ | F17: 16 | G17: S.MCD | H17: =IFERROR( RTD("cqg.rtd",,"StudyData",G17, "PCB","BaseType=Index,Price=1000,Index=1,Date=12/30/2016", "Close",$C$1,,"all",,,,"T")/100,"") -> -0.01965769283 | J17: 0.01965769283 | K17: -0.01965769283 | L17: =IF(G17="","",RTD("cqg.rtd",,"ContractData",G17,"LongDescription",,"T")) -> McDonald's Corporation
B18: =Symbols!B18 -> S.JPM | C18: =IFERROR(RTD("cqg.rtd",,"StudyData",B18, "PCB","BaseType=Index,Price=1000,Index=1,Date=12/30/2016", "Close",$C$1,,"all",,,,"T")/100,"") -> -0.04026436197 | D18: =RANK($C18,$C$2:C$31)+COUNTIF($C$2:C18,C18)-1 -> 26 | E18: S.JPM | F18: 17 | G18: S.V | H18: =IFERROR( RTD("cqg.rtd",,"StudyData",G18, "PCB","BaseType=Index,Price=1000,Index=1,Date=12/30/2016", "Close",$C$1,,"all",,,,"T")/100,"") -> -0.01979171808 | J18: 0.01979171808 | K18: -0.01979171808 | L18: =IF(G18="","",RTD("cqg.rtd",,"ContractData",G18,"LongDescription",,"T")) -> Visa Inc.
B19: =Symbols!B19 -> S.MCD | C19: =IFERROR(RTD("cqg.rtd",,"StudyData",B19, "PCB","BaseType=Index,Price=1000,Index=1,Date=12/30/2016", "Close",$C$1,,"all",,,,"T")/100,"") -> -0.01965769283 | D19: =RANK($C19,$C$2:C$31)+COUNTIF($C$2:C19,C19)-1 -> 16 | E19: S.MCD | F19: 18 | G19: S.DIS | H19: =IFERROR( RTD("cqg.rtd",,"StudyData",G19, "PCB","BaseType=Index,Price=1000,Index=1,Date=12/30/2016", "Close",$C$1,,"all",,,,"T")/100,"") -> -0.02130140714 | J19: 0.02130140714 | K19: -0.02130140714 | L19: =IF(G19="","",RTD("cqg.rtd",,"ContractData",G19,"LongDescription",,"T")) -> Disney (Walt) Company
B20: =Symbols!B20 -> S.MRK | C20: =IFERROR(RTD("cqg.rtd",,"StudyData",B20, "PCB","BaseType=Index,Price=1000,Index=1,Date=12/30/2016", "Close",$C$1,,"all",,,,"T")/100,"") -> -0.03449481412 | D20: =RANK($C20,$C$2:C$31)+COUNTIF($C$2:C20,C20)-1 -> 23 | E20: S.MRK | F20: 19 | G20: S.CVX | H20: =IFERROR( RTD("cqg.rtd",,"StudyData",G20, "PCB","BaseType=Index,Price=1000,Index=1,Date=12/30/2016", "Close",$C$1,,"all",,,,"T")/100,"") -> -0.0242935686 | J20: 0.0242935686 | K20: -0.0242935686 | L20: =IF(G20="","",RTD("cqg.rtd",,"ContractData",G20,"LongDescription",,"T")) -> Chevron Corp
B21: =Symbols!B21 -> S.MSFT | C21: =IFERROR(RTD("cqg.rtd",,"StudyData",B21, "PCB","BaseType=Index,Price=1000,Index=1,Date=12/30/2016", "Close",$C$1,,"all",,,,"T")/100,"") -> 0.01831428714 | D21: =RANK($C21,$C$2:C$31)+COUNTIF($C$2:C21,C21)-1 -> 2 | E21: S.MSFT | F21: 20 | G21: S.BA | H21: =IFERROR( RTD("cqg.rtd",,"StudyData",G21, "PCB","BaseType=Index,Price=1000,Index=1,Date=12/30/2016", "Close",$C$1,,"all",,,,"T")/100,"") -> -0.03059451409 | J21: 0.03059451409 | K21: -0.03059451409 | L21: =IF(G21="","",RTD("cqg.rtd",,"ContractData",G21,"LongDescription",,"T")) -> Boeing Company
B22: =Symbols!B22 -> S.NKE | C22: =IFERROR(RTD("cqg.rtd",,"StudyData",B22, "PCB","BaseType=Index,Price=1000,Index=1,Date=12/30/2016", "Close",$C$1,,"all",,,,"T")/100,"") -> -0.006366649224 | D22: =RANK($C22,$C$2:C$31)+COUNTIF($C$2:C22,C22)-1 -> 7 | E22: S.NKE | F22: 21 | G22: S.WBA | H22: =IFERROR( RTD("cqg.rtd",,"StudyData",G22, "PCB","BaseType=Index,Price=1000,Index=1,Date=12/30/2016", "Close",$C$1,,"all",,,,"T")/100,"") -> -0.03086921202 | J22: 0.03086921202 | K22: -0.03086921202 | L22: =IF(G22="","",RTD("cqg.rtd",,"ContractData",G22,"LongDescription",,"T")) -> Walgreens Boots Alliance, Inc.
B23: =Symbols!B23 -> S.PG | C23: =IFERROR(RTD("cqg.rtd",,"StudyData",B23, "PCB","BaseType=Index,Price=1000,Index=1,Date=12/30/2016", "Close",$C$1,,"all",,,,"T")/100,"") -> 0.009026716168 | D23: =RANK($C23,$C$2:C$31)+COUNTIF($C$2:C23,C23)-1 -> 4 | E23: S.PG | F23: 22 | G23: S.JNJ | H23: =IFERROR( RTD("cqg.rtd",,"StudyData",G23, "PCB","BaseType=Index,Price=1000,Index=1,Date=12/30/2016", "Close",$C$1,,"all",,,,"T")/100,"") -> -0.03117039818 | J23: 0.03117039818 | K23: -0.03117039818 | L23: =IF(G23="","",RTD("cqg.rtd",,"ContractData",G23,"LongDescription",,"T")) -> Johnson & Johnson
B24: =Symbols!B24 -> S.CRM | C24: =IFERROR(RTD("cqg.rtd",,"StudyData",B24, "PCB","BaseType=Index,Price=1000,Index=1,Date=12/30/2016", "Close",$C$1,,"all",,,,"T")/100,"") -> 0.006054864486 | D24: =RANK($C24,$C$2:C$31)+COUNTIF($C$2:C24,C24)-1 -> 5 | E24: S.CRM | F24: 23 | G24: S.MRK | H24: =IFERROR( RTD("cqg.rtd",,"StudyData",G24, "PCB","BaseType=Index,Price=1000,Index=1,Date=12/30/2016", "Close",$C$1,,"all",,,,"T")/100,"") -> -0.03449481412 | J24: 0.03449481412 | K24: -0.03449481412 | L24: =IF(G24="","",RTD("cqg.rtd",,"ContractData",G24,"LongDescription",,"T")) -> Merck & Co Inc
B25: =Symbols!B25 -> S.TRV | C25: =IFERROR(RTD("cqg.rtd",,"StudyData",B25, "PCB","BaseType=Index,Price=1000,Index=1,Date=12/30/2016", "Close",$C$1,,"all",,,,"T")/100,"") -> -0.0113789087 | D25: =RANK($C25,$C$2:C$31)+COUNTIF($C$2:C25,C25)-1 -> 10 | E25: S.TRV | F25: 24 | G25: S.CAT | H25: =IFERROR( RTD("cqg.rtd",,"StudyData",G25, "PCB","BaseType=Index,Price=1000,Index=1,Date=12/30/2016", "Close",$C$1,,"all",,,,"T")/100,"") -> -0.03773213465 | J25: 0.03773213465 | K25: -0.03773213465 | L25: =IF(G25="","",RTD("cqg.rtd",,"ContractData",G25,"LongDescription",,"T")) -> Caterpillar Inc
B26: =Symbols!B26 -> S.UNH | C26: =IFERROR(RTD("cqg.rtd",,"StudyData",B26, "PCB","BaseType=Index,Price=1000,Index=1,Date=12/30/2016", "Close",$C$1,,"all",,,,"T")/100,"") -> -0.03863385494 | D26: =RANK($C26,$C$2:C$31)+COUNTIF($C$2:C26,C26)-1 -> 25 | E26: S.UNH | F26: 25 | G26: S.UNH | H26: =IFERROR( RTD("cqg.rtd",,"StudyData",G26, "PCB","BaseType=Index,Price=1000,Index=1,Date=12/30/2016", "Close",$C$1,,"all",,,,"T")/100,"") -> -0.03863385494 | J26: 0.03863385494 | K26: -0.03863385494 | L26: =IF(G26="","",RTD("cqg.rtd",,"ContractData",G26,"LongDescription",,"T")) -> United Health Group Inc
B27: =Symbols!B27 -> S.VZ | C27: =IFERROR(RTD("cqg.rtd",,"StudyData",B27, "PCB","BaseType=Index,Price=1000,Index=1,Date=12/30/2016", "Close",$C$1,,"all",,,,"T")/100,"") -> -0.00811930406 | D27: =RANK($C27,$C$2:C$31)+COUNTIF($C$2:C27,C27)-1 -> 8 | E27: S.VZ | F27: 26 | G27: S.JPM | H27: =IFERROR( RTD("cqg.rtd",,"StudyData",G27, "PCB","BaseType=Index,Price=1000,Index=1,Date=12/30/2016", "Close",$C$1,,"all",,,,"T")/100,"") -> -0.04026436197 | J27: 0.04026436197 | K27: -0.04026436197 | L27: =IF(G27="","",RTD("cqg.rtd",,"ContractData",G27,"LongDescription",,"T")) -> JPMorgan Chase & Co.
B28: =Symbols!B28 -> S.V | C28: =IFERROR(RTD("cqg.rtd",,"StudyData",B28, "PCB","BaseType=Index,Price=1000,Index=1,Date=12/30/2016", "Close",$C$1,,"all",,,,"T")/100,"") -> -0.01979171808 | D28: =RANK($C28,$C$2:C$31)+COUNTIF($C$2:C28,C28)-1 -> 17 | E28: S.V | F28: 27 | G28: S.HON | H28: =IFERROR( RTD("cqg.rtd",,"StudyData",G28, "PCB","BaseType=Index,Price=1000,Index=1,Date=12/30/2016", "Close",$C$1,,"all",,,,"T")/100,"") -> -0.04214582098 | J28: 0.04214582098 | K28: -0.04214582098 | L28: =IF(G28="","",RTD("cqg.rtd",,"ContractData",G28,"LongDescription",,"T")) -> Honeywell Intl
B29: =Symbols!B29 -> S.WBA | C29: =IFERROR(RTD("cqg.rtd",,"StudyData",B29, "PCB","BaseType=Index,Price=1000,Index=1,Date=12/30/2016", "Close",$C$1,,"all",,,,"T")/100,"") -> -0.03086921202 | D29: =RANK($C29,$C$2:C$31)+COUNTIF($C$2:C29,C29)-1 -> 21 | E29: S.WBA | F29: 28 | G29: S.MMM | H29: =IFERROR( RTD("cqg.rtd",,"StudyData",G29, "PCB","BaseType=Index,Price=1000,Index=1,Date=12/30/2016", "Close",$C$1,,"all",,,,"T")/100,"") -> -0.04305514597 | J29: 0.04305514597 | K29: -0.04305514597 | L29: =IF(G29="","",RTD("cqg.rtd",,"ContractData",G29,"LongDescription",,"T")) -> 3M Company
B30: =Symbols!B30 -> S.WMT | C30: =IFERROR(RTD("cqg.rtd",,"StudyData",B30, "PCB","BaseType=Index,Price=1000,Index=1,Date=12/30/2016", "Close",$C$1,,"all",,,,"T")/100,"") -> 0.01574395742 | D30: =RANK($C30,$C$2:C$31)+COUNTIF($C$2:C30,C30)-1 -> 3 | E30: S.WMT | F30: 29 | G30: S.DOW | H30: =IFERROR( RTD("cqg.rtd",,"StudyData",G30, "PCB","BaseType=Index,Price=1000,Index=1,Date=12/30/2016", "Close",$C$1,,"all",,,,"T")/100,"") -> -0.04923565614 | J30: 0.04923565614 | K30: -0.04923565614 | L30: =IF(G30="","",RTD("cqg.rtd",,"ContractData",G30,"LongDescription",,"T")) -> Dow Inc.
B31: =Symbols!B31 -> S.DIS | C31: =IFERROR(RTD("cqg.rtd",,"StudyData",B31, "PCB","BaseType=Index,Price=1000,Index=1,Date=12/30/2016", "Close",$C$1,,"all",,,,"T")/100,"") -> -0.02130140714 | D31: =RANK($C31,$C$2:C$31)+COUNTIF($C$2:C31,C31)-1 -> 18 | E31: S.DIS | F31: 30 | G31: S.AXP | H31: =IFERROR( RTD("cqg.rtd",,"StudyData",G31, "PCB","BaseType=Index,Price=1000,Index=1,Date=12/30/2016", "Close",$C$1,,"all",,,,"T")/100,"") -> -0.05462103635 | J31: 0.05462103635 | K31: -0.05462103635 | L31: =IF(G31="","",RTD("cqg.rtd",,"ContractData",G31,"LongDescription",,"T")) -> American Express Co

Sheet Monthly (hidden)
C1: ="A"&Symbols!G2 -> AM
B2: =Symbols!B2 -> S.MMM | C2: =IFERROR(RTD("cqg.rtd",,"StudyData",B2, "PCB","BaseType=Index,Price=1000,Index=1,Date=12/30/2016", "Close",$C$1,,"all",,,,"T")/100,"") -> -0.004723346829 | D2: =RANK($C2,$C$2:C$31)+COUNTIF($C$2:C2,C2)-1 -> 8 | E2: =B2 -> S.MMM | F2: 1 | G2: =IFERROR(VLOOKUP($F2,$D$2:$E$31,2,FALSE),"") -> S.DOW | H2: =IFERROR( RTD("cqg.rtd",,"StudyData",G2, "PCB","BaseType=Index,Price=1000,Index=1,Date=12/30/2016", "Close",$C$1,,"all",,,,"T")/100,"") -> 0.06139184397 | I2: =IF(H2<0,"",H2) -> 0.06139184397 | J2: =IF(H2>=0,"",-H2) ->  | K2: =IF(J2="","",H2) ->  | L2: =IF(G2="","",RTD("cqg.rtd",,"ContractData",G2,"LongDescription",,"T")) -> Dow Inc.
B3: =Symbols!B3 -> S.AXP | C3: =IFERROR(RTD("cqg.rtd",,"StudyData",B3, "PCB","BaseType=Index,Price=1000,Index=1,Date=12/30/2016", "Close",$C$1,,"all",,,,"T")/100,"") -> -0.03740525642 | D3: =RANK($C3,$C$2:C$31)+COUNTIF($C$2:C3,C3)-1 -> 14 | E3: =B3 -> S.AXP | F3: =F2+1 -> 2 | G3: =IFERROR(VLOOKUP($F3,$D$2:$E$31,2,FALSE),"") -> S.CAT | H3: =IFERROR( RTD("cqg.rtd",,"StudyData",G3, "PCB","BaseType=Index,Price=1000,Index=1,Date=12/30/2016", "Close",$C$1,,"all",,,,"T")/100,"") -> 0.03042653362 | I3: =IF(H3<0,"",H3) -> 0.03042653362 | J3: =IF(H3>=0,"",-H3) ->  | K3: =IF(J3="","",H3) ->  | L3: =IF(G3="","",RTD("cqg.rtd",,"ContractData",G3,"LongDescription",,"T")) -> Caterpillar Inc
B4: =Symbols!B4 -> S.AMGN | C4: =IFERROR(RTD("cqg.rtd",,"StudyData",B4, "PCB","BaseType=Index,Price=1000,Index=1,Date=12/30/2016", "Close",$C$1,,"all",,,,"T")/100,"") -> -0.0410153166 | D4: =RANK($C4,$C$2:C$31)+COUNTIF($C$2:C4,C4)-1 -> 15 | E4: S.AMGN | F4: =F3+1 -> 3 | G4: S.NKE | H4: =IFERROR( RTD("cqg.rtd",,"StudyData",G4, "PCB","BaseType=Index,Price=1000,Index=1,Date=12/30/2016", "Close",$C$1,,"all",,,,"T")/100,"") -> 0.01823219233 | I4: 0.01823219233 | L4: =IF(G4="","",RTD("cqg.rtd",,"ContractData",G4,"LongDescription",,"T")) -> NIKE Inc ClsB
B5: =Symbols!B5 -> S.AAPL | C5: =IFERROR(RTD("cqg.rtd",,"StudyData",B5, "PCB","BaseType=Index,Price=1000,Index=1,Date=12/30/2016", "Close",$C$1,,"all",,,,"T")/100,"") -> -0.1412740236 | D5: =RANK($C5,$C$2:C$31)+COUNTIF($C$2:C5,C5)-1 -> 30 | E5: S.AAPL | F5: 4 | G5: S.MCD | H5: =IFERROR( RTD("cqg.rtd",,"StudyData",G5, "PCB","BaseType=Index,Price=1000,Index=1,Date=12/30/2016", "Close",$C$1,,"all",,,,"T")/100,"") -> 0.0113338329 | I5: 0.0113338329 | L5: =IF(G5="","",RTD("cqg.rtd",,"ContractData",G5,"LongDescription",,"T")) -> McDonald's Corporation
B6: =Symbols!B6 -> S.BA | C6: =IFERROR(RTD("cqg.rtd",,"StudyData",B6, "PCB","BaseType=Index,Price=1000,Index=1,Date=12/30/2016", "Close",$C$1,,"all",,,,"T")/100,"") -> -0.09085089047 | D6: =RANK($C6,$C$2:C$31)+COUNTIF($C$2:C6,C6)-1 -> 27 | E6: S.BA | F6: 5 | G6: S.VZ | H6: =IFERROR( RTD("cqg.rtd",,"StudyData",G6, "PCB","BaseType=Index,Price=1000,Index=1,Date=12/30/2016", "Close",$C$1,,"all",,,,"T")/100,"") -> 0.009954445757 | I6: 0.009954445757 | L6: =IF(G6="","",RTD("cqg.rtd",,"ContractData",G6,"LongDescription",,"T")) -> Verizon Communications
B7: =Symbols!B7 -> S.CAT | C7: =IFERROR(RTD("cqg.rtd",,"StudyData",B7, "PCB","BaseType=Index,Price=1000,Index=1,Date=12/30/2016", "Close",$C$1,,"all",,,,"T")/100,"") -> 0.03042653362 | D7: =RANK($C7,$C$2:C$31)+COUNTIF($C$2:C7,C7)-1 -> 2 | E7: S.CAT | F7: 6 | G7: S.KO | H7: =IFERROR( RTD("cqg.rtd",,"StudyData",G7, "PCB","BaseType=Index,Price=1000,Index=1,Date=12/30/2016", "Close",$C$1,,"all",,,,"T")/100,"") -> 0.00686452655 | I7: 0.00686452655 | L7: =IF(G7="","",RTD("cqg.rtd",,"ContractData",G7,"LongDescription",,"T")) -> Coca-Cola Company
B8: =Symbols!B8 -> S.CVX | C8: =IFERROR(RTD("cqg.rtd",,"StudyData",B8, "PCB","BaseType=Index,Price=1000,Index=1,Date=12/30/2016", "Close",$C$1,,"all",,,,"T")/100,"") -> -0.090789944 | D8: =RANK($C8,$C$2:C$31)+COUNTIF($C$2:C8,C8)-1 -> 26 | E8: S.CVX | F8: 7 | G8: S.PG | H8: =IFERROR( RTD("cqg.rtd",,"StudyData",G8, "PCB","BaseType=Index,Price=1000,Index=1,Date=12/30/2016", "Close",$C$1,,"all",,,,"T")/100,"") -> 0.00202414516 | I8: 0.00202414516 | L8: =IF(G8="","",RTD("cqg.rtd",,"ContractData",G8,"LongDescription",,"T")) -> Procter & Gamble Co
B9: =Symbols!B9 -> S.CSCO | C9: =IFERROR(RTD("cqg.rtd",,"StudyData",B9, "PCB","BaseType=Index,Price=1000,Index=1,Date=12/30/2016", "Close",$C$1,,"all",,,,"T")/100,"") -> -0.06821411653 | D9: =RANK($C9,$C$2:C$31)+COUNTIF($C$2:C9,C9)-1 -> 25 | E9: S.CSCO | F9: 8 | G9: S.MMM | H9: =IFERROR( RTD("cqg.rtd",,"StudyData",G9, "PCB","BaseType=Index,Price=1000,Index=1,Date=12/30/2016", "Close",$C$1,,"all",,,,"T")/100,"") -> -0.004723346829 | J9: 0.004723346829 | K9: -0.004723346829 | L9: =IF(G9="","",RTD("cqg.rtd",,"ContractData",G9,"LongDescription",,"T")) -> 3M Company
B10: =Symbols!B10 -> S.KO | C10: =IFERROR(RTD("cqg.rtd",,"StudyData",B10, "PCB","BaseType=Index,Price=1000,Index=1,Date=12/30/2016", "Close",$C$1,,"all",,,,"T")/100,"") -> 0.00686452655 | D10: =RANK($C10,$C$2:C$31)+COUNTIF($C$2:C10,C10)-1 -> 6 | E10: S.KO | F10: 9 | G10: S.WMT | H10: =IFERROR( RTD("cqg.rtd",,"StudyData",G10, "PCB","BaseType=Index,Price=1000,Index=1,Date=12/30/2016", "Close",$C$1,,"all",,,,"T")/100,"") -> -0.01029888369 | J10: 0.01029888369 | K10: -0.01029888369 | L10: =IF(G10="","",RTD("cqg.rtd",,"ContractData",G10,"LongDescription",,"T")) -> Walmart Inc.
B11: =Symbols!B11 -> S.DOW | C11: =IFERROR(RTD("cqg.rtd",,"StudyData",B11, "PCB","BaseType=Index,Price=1000,Index=1,Date=12/30/2016", "Close",$C$1,,"all",,,,"T")/100,"") -> 0.06139184397 | D11: =RANK($C11,$C$2:C$31)+COUNTIF($C$2:C11,C11)-1 -> 1 | E11: S.DOW | F11: 10 | G11: S.IBM | H11: =IFERROR( RTD("cqg.rtd",,"StudyData",G11, "PCB","BaseType=Index,Price=1000,Index=1,Date=12/30/2016", "Close",$C$1,,"all",,,,"T")/100,"") -> -0.01751682751 | J11: 0.01751682751 | K11: -0.01751682751 | L11: =IF(G11="","",RTD("cqg.rtd",,"ContractData",G11,"LongDescription",,"T")) -> International Business Machines
B12: =Symbols!B12 -> S.GS | C12: =IFERROR(RTD("cqg.rtd",,"StudyData",B12, "PCB","BaseType=Index,Price=1000,Index=1,Date=12/30/2016", "Close",$C$1,,"all",,,,"T")/100,"") -> -0.06379655391 | D12: =RANK($C12,$C$2:C$31)+COUNTIF($C$2:C12,C12)-1 -> 24 | E12: S.GS | F12: 11 | G12: S.INTC | H12: =IFERROR( RTD("cqg.rtd",,"StudyData",G12, "PCB","BaseType=Index,Price=1000,Index=1,Date=12/30/2016", "Close",$C$1,,"all",,,,"T")/100,"") -> -0.02315996075 | J12: 0.02315996075 | K12: -0.02315996075 | L12: =IF(G12="","",RTD("cqg.rtd",,"ContractData",G12,"LongDescription",,"T")) -> Intel Corporation
B13: =Symbols!B13 -> S.HD | C13: =IFERROR(RTD("cqg.rtd",,"StudyData",B13, "PCB","BaseType=Index,Price=1000,Index=1,Date=12/30/2016", "Close",$C$1,,"all",,,,"T")/100,"") -> -0.0434325007 | D13: =RANK($C13,$C$2:C$31)+COUNTIF($C$2:C13,C13)-1 -> 16 | E13: S.HD | F13: 12 | G13: S.HON | H13: =IFERROR( RTD("cqg.rtd",,"StudyData",G13, "PCB","BaseType=Index,Price=1000,Index=1,Date=12/30/2016", "Close",$C$1,,"all",,,,"T")/100,"") -> -0.02392026578 | J13: 0.02392026578 | K13: -0.02392026578 | L13: =IF(G13="","",RTD("cqg.rtd",,"ContractData",G13,"LongDescription",,"T")) -> Honeywell Intl
B14: =Symbols!B14 -> S.HON | C14: =IFERROR(RTD("cqg.rtd",,"StudyData",B14, "PCB","BaseType=Index,Price=1000,Index=1,Date=12/30/2016", "Close",$C$1,,"all",,,,"T")/100,"") -> -0.02392026578 | D14: =RANK($C14,$C$2:C$31)+COUNTIF($C$2:C14,C14)-1 -> 12 | E14: S.HON | F14: 13 | G14: S.MRK | H14: =IFERROR( RTD("cqg.rtd",,"StudyData",G14, "PCB","BaseType=Index,Price=1000,Index=1,Date=12/30/2016", "Close",$C$1,,"all",,,,"T")/100,"") -> -0.02838043861 | J14: 0.02838043861 | K14: -0.02838043861 | L14: =IF(G14="","",RTD("cqg.rtd",,"ContractData",G14,"LongDescription",,"T")) -> Merck & Co Inc
B15: =Symbols!B15 -> S.INTC | C15: =IFERROR(RTD("cqg.rtd",,"StudyData",B15, "PCB","BaseType=Index,Price=1000,Index=1,Date=12/30/2016", "Close",$C$1,,"all",,,,"T")/100,"") -> -0.02315996075 | D15: =RANK($C15,$C$2:C$31)+COUNTIF($C$2:C15,C15)-1 -> 11 | E15: S.INTC | F15: 14 | G15: S.AXP | H15: =IFERROR( RTD("cqg.rtd",,"StudyData",G15, "PCB","BaseType=Index,Price=1000,Index=1,Date=12/30/2016", "Close",$C$1,,"all",,,,"T")/100,"") -> -0.03740525642 | J15: 0.03740525642 | K15: -0.03740525642 | L15: =IF(G15="","",RTD("cqg.rtd",,"ContractData",G15,"LongDescription",,"T")) -> American Express Co
B16: =Symbols!B16 -> S.IBM | C16: =IFERROR(RTD("cqg.rtd",,"StudyData",B16, "PCB","BaseType=Index,Price=1000,Index=1,Date=12/30/2016", "Close",$C$1,,"all",,,,"T")/100,"") -> -0.01751682751 | D16: =RANK($C16,$C$2:C$31)+COUNTIF($C$2:C16,C16)-1 -> 10 | E16: S.IBM | F16: 15 | G16: S.AMGN | H16: =IFERROR( RTD("cqg.rtd",,"StudyData",G16, "PCB","BaseType=Index,Price=1000,Index=1,Date=12/30/2016", "Close",$C$1,,"all",,,,"T")/100,"") -> -0.0410153166 | J16: 0.0410153166 | K16: -0.0410153166 | L16: =IF(G16="","",RTD("cqg.rtd",,"ContractData",G16,"LongDescription",,"T")) -> Amgen Inc
B17: =Symbols!B17 -> S.JNJ | C17: =IFERROR(RTD("cqg.rtd",,"StudyData",B17, "PCB","BaseType=Index,Price=1000,Index=1,Date=12/30/2016", "Close",$C$1,,"all",,,,"T")/100,"") -> -0.05788410143 | D17: =RANK($C17,$C$2:C$31)+COUNTIF($C$2:C17,C17)-1 -> 20 | E17: S.JNJ | F17: 16 | G17: S.HD | H17: =IFERROR( RTD("cqg.rtd",,"StudyData",G17, "PCB","BaseType=Index,Price=1000,Index=1,Date=12/30/2016", "Close",$C$1,,"all",,,,"T")/100,"") -> -0.0434325007 | J17: 0.0434325007 | K17: -0.0434325007 | L17: =IF(G17="","",RTD("cqg.rtd",,"ContractData",G17,"LongDescription",,"T")) -> Home Depot, Inc.
B18: =Symbols!B18 -> S.JPM | C18: =IFERROR(RTD("cqg.rtd",,"StudyData",B18, "PCB","BaseType=Index,Price=1000,Index=1,Date=12/30/2016", "Close",$C$1,,"all",,,,"T")/100,"") -> -0.05789000898 | D18: =RANK($C18,$C$2:C$31)+COUNTIF($C$2:C18,C18)-1 -> 21 | E18: S.JPM | F18: 17 | G18: S.DIS | H18: =IFERROR( RTD("cqg.rtd",,"StudyData",G18, "PCB","BaseType=Index,Price=1000,Index=1,Date=12/30/2016", "Close",$C$1,,"all",,,,"T")/100,"") -> -0.04534769091 | J18: 0.04534769091 | K18: -0.04534769091 | L18: =IF(G18="","",RTD("cqg.rtd",,"ContractData",G18,"LongDescription",,"T")) -> Disney (Walt) Company
B19: =Symbols!B19 -> S.MCD | C19: =IFERROR(RTD("cqg.rtd",,"StudyData",B19, "PCB","BaseType=Index,Price=1000,Index=1,Date=12/30/2016", "Close",$C$1,,"all",,,,"T")/100,"") -> 0.0113338329 | D19: =RANK($C19,$C$2:C$31)+COUNTIF($C$2:C19,C19)-1 -> 4 | E19: S.MCD | F19: 18 | G19: S.TRV | H19: =IFERROR( RTD("cqg.rtd",,"StudyData",G19, "PCB","BaseType=Index,Price=1000,Index=1,Date=12/30/2016", "Close",$C$1,,"all",,,,"T")/100,"") -> -0.04912099276 | J19: 0.04912099276 | K19: -0.04912099276 | L19: =IF(G19="","",RTD("cqg.rtd",,"ContractData",G19,"LongDescription",,"T")) -> Travelers Companies, Inc
B20: =Symbols!B20 -> S.MRK | C20: =IFERROR(RTD("cqg.rtd",,"StudyData",B20, "PCB","BaseType=Index,Price=1000,Index=1,Date=12/30/2016", "Close",$C$1,,"all",,,,"T")/100,"") -> -0.02838043861 | D20: =RANK($C20,$C$2:C$31)+COUNTIF($C$2:C20,C20)-1 -> 13 | E20: S.MRK | F20: 19 | G20: S.UNH | H20: =IFERROR( RTD("cqg.rtd",,"StudyData",G20, "PCB","BaseType=Index,Price=1000,Index=1,Date=12/30/2016", "Close",$C$1,,"all",,,,"T")/100,"") -> -0.05256758919 | J20: 0.05256758919 | K20: -0.05256758919 | L20: =IF(G20="","",RTD("cqg.rtd",,"ContractData",G20,"LongDescription",,"T")) -> United Health Group Inc
B21: =Symbols!B21 -> S.MSFT | C21: =IFERROR(RTD("cqg.rtd",,"StudyData",B21, "PCB","BaseType=Index,Price=1000,Index=1,Date=12/30/2016", "Close",$C$1,,"all",,,,"T")/100,"") -> -0.0951979781 | D21: =RANK($C21,$C$2:C$31)+COUNTIF($C$2:C21,C21)-1 -> 28 | E21: S.MSFT | F21: 20 | G21: S.JNJ | H21: =IFERROR( RTD("cqg.rtd",,"StudyData",G21, "PCB","BaseType=Index,Price=1000,Index=1,Date=12/30/2016", "Close",$C$1,,"all",,,,"T")/100,"") -> -0.05788410143 | J21: 0.05788410143 | K21: -0.05788410143 | L21: =IF(G21="","",RTD("cqg.rtd",,"ContractData",G21,"LongDescription",,"T")) -> Johnson & Johnson
B22: =Symbols!B22 -> S.NKE | C22: =IFERROR(RTD("cqg.rtd",,"StudyData",B22, "PCB","BaseType=Index,Price=1000,Index=1,Date=12/30/2016", "Close",$C$1,,"all",,,,"T")/100,"") -> 0.01823219233 | D22: =RANK($C22,$C$2:C$31)+COUNTIF($C$2:C22,C22)-1 -> 3 | E22: S.NKE | F22: 21 | G22: S.JPM | H22: =IFERROR( RTD("cqg.rtd",,"StudyData",G22, "PCB","BaseType=Index,Price=1000,Index=1,Date=12/30/2016", "Close",$C$1,,"all",,,,"T")/100,"") -> -0.05789000898 | J22: 0.05789000898 | K22: -0.05789000898 | L22: =IF(G22="","",RTD("cqg.rtd",,"ContractData",G22,"LongDescription",,"T")) -> JPMorgan Chase & Co.
B23: =Symbols!B23 -> S.PG | C23: =IFERROR(RTD("cqg.rtd",,"StudyData",B23, "PCB","BaseType=Index,Price=1000,Index=1,Date=12/30/2016", "Close",$C$1,,"all",,,,"T")/100,"") -> 0.00202414516 | D23: =RANK($C23,$C$2:C$31)+COUNTIF($C$2:C23,C23)-1 -> 7 | E23: S.PG | F23: 22 | G23: S.WBA | H23: =IFERROR( RTD("cqg.rtd",,"StudyData",G23, "PCB","BaseType=Index,Price=1000,Index=1,Date=12/30/2016", "Close",$C$1,,"all",,,,"T")/100,"") -> -0.05865334035 | J23: 0.05865334035 | K23: -0.05865334035 | L23: =IF(G23="","",RTD("cqg.rtd",,"ContractData",G23,"LongDescription",,"T")) -> Walgreens Boots Alliance, Inc.
B24: =Symbols!B24 -> S.CRM | C24: =IFERROR(RTD("cqg.rtd",,"StudyData",B24, "PCB","BaseType=Index,Price=1000,Index=1,Date=12/30/2016", "Close",$C$1,,"all",,,,"T")/100,"") -> -0.1041628461 | D24: =RANK($C24,$C$2:C$31)+COUNTIF($C$2:C24,C24)-1 -> 29 | E24: S.CRM | F24: 23 | G24: S.V | H24: =IFERROR( RTD("cqg.rtd",,"StudyData",G24, "PCB","BaseType=Index,Price=1000,Index=1,Date=12/30/2016", "Close",$C$1,,"all",,,,"T")/100,"") -> -0.06316335676 | J24: 0.06316335676 | K24: -0.06316335676 | L24: =IF(G24="","",RTD("cqg.rtd",,"ContractData",G24,"LongDescription",,"T")) -> Visa Inc.
B25: =Symbols!B25 -> S.TRV | C25: =IFERROR(RTD("cqg.rtd",,"StudyData",B25, "PCB","BaseType=Index,Price=1000,Index=1,Date=12/30/2016", "Close",$C$1,,"all",,,,"T")/100,"") -> -0.04912099276 | D25: =RANK($C25,$C$2:C$31)+COUNTIF($C$2:C25,C25)-1 -> 18 | E25: S.TRV | F25: 24 | G25: S.GS | H25: =IFERROR( RTD("cqg.rtd",,"StudyData",G25, "PCB","BaseType=Index,Price=1000,Index=1,Date=12/30/2016", "Close",$C$1,,"all",,,,"T")/100,"") -> -0.06379655391 | J25: 0.06379655391 | K25: -0.06379655391 | L25: =IF(G25="","",RTD("cqg.rtd",,"ContractData",G25,"LongDescription",,"T")) -> Goldman Sachs Group
B26: =Symbols!B26 -> S.UNH | C26: =IFERROR(RTD("cqg.rtd",,"StudyData",B26, "PCB","BaseType=Index,Price=1000,Index=1,Date=12/30/2016", "Close",$C$1,,"all",,,,"T")/100,"") -> -0.05256758919 | D26: =RANK($C26,$C$2:C$31)+COUNTIF($C$2:C26,C26)-1 -> 19 | E26: S.UNH | F26: 25 | G26: S.CSCO | H26: =IFERROR( RTD("cqg.rtd",,"StudyData",G26, "PCB","BaseType=Index,Price=1000,Index=1,Date=12/30/2016", "Close",$C$1,,"all",,,,"T")/100,"") -> -0.06821411653 | J26: 0.06821411653 | K26: -0.06821411653 | L26: =IF(G26="","",RTD("cqg.rtd",,"ContractData",G26,"LongDescription",,"T")) -> Cisco Systems Inc
B27: =Symbols!B27 -> S.VZ | C27: =IFERROR(RTD("cqg.rtd",,"StudyData",B27, "PCB","BaseType=Index,Price=1000,Index=1,Date=12/30/2016", "Close",$C$1,,"all",,,,"T")/100,"") -> 0.009954445757 | D27: =RANK($C27,$C$2:C$31)+COUNTIF($C$2:C27,C27)-1 -> 5 | E27: S.VZ | F27: 26 | G27: S.CVX | H27: =IFERROR( RTD("cqg.rtd",,"StudyData",G27, "PCB","BaseType=Index,Price=1000,Index=1,Date=12/30/2016", "Close",$C$1,,"all",,,,"T")/100,"") -> -0.090789944 | J27: 0.090789944 | K27: -0.090789944 | L27: =IF(G27="","",RTD("cqg.rtd",,"ContractData",G27,"LongDescription",,"T")) -> Chevron Corp
B28: =Symbols!B28 -> S.V | C28: =IFERROR(RTD("cqg.rtd",,"StudyData",B28, "PCB","BaseType=Index,Price=1000,Index=1,Date=12/30/2016", "Close",$C$1,,"all",,,,"T")/100,"") -> -0.06316335676 | D28: =RANK($C28,$C$2:C$31)+COUNTIF($C$2:C28,C28)-1 -> 23 | E28: S.V | F28: 27 | G28: S.BA | H28: =IFERROR( RTD("cqg.rtd",,"StudyData",G28, "PCB","BaseType=Index,Price=1000,Index=1,Date=12/30/2016", "Close",$C$1,,"all",,,,"T")/100,"") -> -0.09085089047 | J28: 0.09085089047 | K28: -0.09085089047 | L28: =IF(G28="","",RTD("cqg.rtd",,"ContractData",G28,"LongDescription",,"T")) -> Boeing Company
B29: =Symbols!B29 -> S.WBA | C29: =IFERROR(RTD("cqg.rtd",,"StudyData",B29, "PCB","BaseType=Index,Price=1000,Index=1,Date=12/30/2016", "Close",$C$1,,"all",,,,"T")/100,"") -> -0.05865334035 | D29: =RANK($C29,$C$2:C$31)+COUNTIF($C$2:C29,C29)-1 -> 22 | E29: S.WBA | F29: 28 | G29: S.MSFT | H29: =IFERROR( RTD("cqg.rtd",,"StudyData",G29, "PCB","BaseType=Index,Price=1000,Index=1,Date=12/30/2016", "Close",$C$1,,"all",,,,"T")/100,"") -> -0.0951979781 | J29: 0.0951979781 | K29: -0.0951979781 | L29: =IF(G29="","",RTD("cqg.rtd",,"ContractData",G29,"LongDescription",,"T")) -> Microsoft Corporation
B30: =Symbols!B30 -> S.WMT | C30: =IFERROR(RTD("cqg.rtd",,"StudyData",B30, "PCB","BaseType=Index,Price=1000,Index=1,Date=12/30/2016", "Close",$C$1,,"all",,,,"T")/100,"") -> -0.01029888369 | D30: =RANK($C30,$C$2:C$31)+COUNTIF($C$2:C30,C30)-1 -> 9 | E30: S.WMT | F30: 29 | G30: S.CRM | H30: =IFERROR( RTD("cqg.rtd",,"StudyData",G30, "PCB","BaseType=Index,Price=1000,Index=1,Date=12/30/2016", "Close",$C$1,,"all",,,,"T")/100,"") -> -0.1041628461 | J30: 0.1041628461 | K30: -0.1041628461 | L30: =IF(G30="","",RTD("cqg.rtd",,"ContractData",G30,"LongDescription",,"T")) -> Salesforce.com Inc
B31: =Symbols!B31 -> S.DIS | C31: =IFERROR(RTD("cqg.rtd",,"StudyData",B31, "PCB","BaseType=Index,Price=1000,Index=1,Date=12/30/2016", "Close",$C$1,,"all",,,,"T")/100,"") -> -0.04534769091 | D31: =RANK($C31,$C$2:C$31)+COUNTIF($C$2:C31,C31)-1 -> 17 | E31: S.DIS | F31: 30 | G31: S.AAPL | H31: =IFERROR( RTD("cqg.rtd",,"StudyData",G31, "PCB","BaseType=Index,Price=1000,Index=1,Date=12/30/2016", "Close",$C$1,,"all",,,,"T")/100,"") -> -0.1412740236 | J31: 0.1412740236 | K31: -0.1412740236 | L31: =IF(G31="","",RTD("cqg.rtd",,"ContractData",G31,"LongDescription",,"T")) -> Apple Inc

Sheet Symbols (2)
B1: Symbols | C1: Description | D1: Chart 1 | E1: Chart 2 | F1: Chart 3 | G1: Chart 4
B2: F.DXE? | C2: =RTD("cqg.rtd", ,"ContractData",B2, "LongDescription",, "T") -> Dollar Index (ICE), Dec 20 | D2: 15 | E2: D | F2: W | G2: M
B3: F.EU6? | C3: =RTD("cqg.rtd", ,"ContractData",B3, "LongDescription",, "T") -> Euro FX (Globex), Dec 20 | D3: =IF(ISNUMBER(D2),D2,IF(D2="D","Daily",IF(D2="W","Weekly",IF(D2="M","Monthly",IF(D2="Q","Quarterly",IF(D2="S","Semi-Annual",IF(D2="A","Annual"))))))) -> 15 | E3: =IF(ISNUMBER(E2),E2,IF(E2="D","Daily",IF(E2="W","Weekly",IF(E2="M","Monthly",IF(E2="Q","Quarterly",IF(E2="S","Semi-Annual",IF(E2="A","Annual"))))))) -> Daily | F3: =IF(ISNUMBER(F2),F2,IF(F2="D","Daily",IF(F2="W","Weekly",IF(F2="M","Monthly",IF(F2="Q","Quarterly",IF(F2="S","Semi-Annual",IF(F2="A","Annual"))))))) -> Weekly | G3: =IF(ISNUMBER(G2),G2,IF(G2="D","Daily",IF(G2="W","Weekly",IF(G2="M","Monthly",IF(G2="Q","Quarterly",IF(G2="S","Semi-Annual",IF(G2="A","Annual"))))))) -> Monthly
B4: F.JY6? | C4: =RTD("cqg.rtd", ,"ContractData",B4, "LongDescription",, "T") -> Japanese Yen (Globex), Dec 20 | D4: Use All Capitals for Symbols and Time Frame
B5: F.BP6? | C5: =RTD("cqg.rtd", ,"ContractData",B5, "LongDescription",, "T") -> British Pound (Globex), Dec 20
B6: F.CA6? | C6: =RTD("cqg.rtd", ,"ContractData",B6, "LongDescription",, "T") -> Canadian Dollar (Globex), Dec 20 | D6: Title
B7: F.SF6? | C7: =RTD("cqg.rtd", ,"ContractData",B7, "LongDescription",, "T") -> Swiss Franc (Globex), Dec 20 | D7: Futures Markets
B8: F.DA6? | C8: =RTD("cqg.rtd", ,"ContractData",B8, "LongDescription",, "T") -> Australian Dollar (Globex), Dec 20
B9: F.NE6? | C9: =RTD("cqg.rtd", ,"ContractData",B9, "LongDescription",, "T") -> New Zealand Dollar (Globex), Dec 20
B10: F.MX6? | C10: =RTD("cqg.rtd", ,"ContractData",B10, "LongDescription",, "T") -> Mexican Peso (Globex), Dec 20
B11: F.GCE? | C11: =RTD("cqg.rtd", ,"ContractData",B11, "LongDescription",, "T") -> Gold (Globex), Dec 20
B12: F.SIE? | C12: =RTD("cqg.rtd", ,"ContractData",B12, "LongDescription",, "T") -> Silver (Globex), Dec 20
B13: F.PLE? | C13: =RTD("cqg.rtd", ,"ContractData",B13, "LongDescription",, "T") -> Platinum (Globex), Oct 20
B14: F.TYA? | C14: =RTD("cqg.rtd", ,"ContractData",B14, "LongDescription",, "T") -> 10yr US Treasury Notes (Globex), Dec 20
B15: F.CLE? | C15: =RTD("cqg.rtd", ,"ContractData",B15, "LongDescription",, "T") -> Crude Light (Globex), Nov 20
B16: F.HOE? | C16: =RTD("cqg.rtd", ,"ContractData",B16, "LongDescription",, "T") -> NY Harbor ULSD, Nov 20
B17: F.RBE? | C17: =RTD("cqg.rtd", ,"ContractData",B17, "LongDescription",, "T") -> RBOB Gasoline (Globex), Nov 20
B18: F.ZSE | C18: =RTD("cqg.rtd", ,"ContractData",B18, "LongDescription",, "T") -> Soybeans (Globex), Nov 20
B19: F.ZWA | C19: =RTD("cqg.rtd", ,"ContractData",B19, "LongDescription",, "T") -> Wheat (Globex), Dec 20
B20: F.ZCE | C20: =RTD("cqg.rtd", ,"ContractData",B20, "LongDescription",, "T") -> Corn (Globex), Dec 20
B21: F.GLE | C21: =RTD("cqg.rtd", ,"ContractData",B21, "LongDescription",, "T") -> Live Cattle (Globex), Dec 20
B22: F.HE | C22: =RTD("cqg.rtd", ,"ContractData",B22, "LongDescription",, "T") -> Lean Hogs (Globex), Dec 20
B23: F.YM? | C23: =RTD("cqg.rtd", ,"ContractData",B23, "LongDescription",, "T") -> E-mini Dow ($5), Dec 20
B24: F.EP? | C24: =RTD("cqg.rtd", ,"ContractData",B24, "LongDescription",, "T") -> E-Mini S&P 500, Dec 20
B25: F.ENQ? | C25: =RTD("cqg.rtd", ,"ContractData",B25, "LongDescription",, "T") -> E-mini NASDAQ-100, Dec 20
B26: F.RTY? | C26: =RTD("cqg.rtd", ,"ContractData",B26, "LongDescription",, "T") -> E-mini Russell 2000, Dec 20
B27: F.DD? | C27: =RTD("cqg.rtd", ,"ContractData",B27, "LongDescription",, "T") -> DAX Index, Dec 20
B28: F.DSX? | C28: =RTD("cqg.rtd", ,"ContractData",B28, "LongDescription",, "T") -> Euro STOXX 50, Dec 20
B29: F.QFA? | C29: =RTD("cqg.rtd", ,"ContractData",B29, "LongDescription",, "T") -> FTSE 100 - Stnd Index, Dec 20
B30: F.PIL? | C30: =RTD("cqg.rtd", ,"ContractData",B30, "LongDescription",, "T") -> CAC40, Oct 20
B31: F.NKD? | C31: =RTD("cqg.rtd", ,"ContractData",B31, "LongDescription",, "T") -> Nikkei 225 (Globex), Dec 20

Sheet 15_Min (2) (hidden)
C1: ='Symbols (2)'!D2 -> 15
B2: ='Symbols (2)'!B2 -> F.DXE? | C2: =IFERROR( RTD("cqg.rtd",,"StudyData",B2, "PCB","BaseType=Index,Price=1000,Index=1,Date=12/30/2016", "Close",$C$1,,"all",,,,"T")/100,"") -> 0.001066041256 | D2: =IFERROR(RANK($C2,$C$2:C$31)+COUNTIF($C$2:C2,C2)-1,"") -> 4 | E2: =B2 -> F.DXE? | F2: 1 | G2: =IFERROR(VLOOKUP($F2,$D$2:$E$31,2,FALSE),"") -> F.RBE? | H2: =IFERROR( RTD("cqg.rtd",,"StudyData",G2, "PCB","BaseType=Index,Price=1000,Index=1,Date=12/30/2016", "Close",$C$1,,"all",,,,"T")/100,"") -> 0.003738805321 | I2: =IF(H2<0,"",H2) -> 0.003738805321 | J2: =IF(H2>=0,"",-H2) ->  | K2: =IF(J2="","",H2) ->  | L2: =IF(G2="","",RTD("cqg.rtd",,"ContractData",G2,"LongDescription",,"T")) -> RBOB Gasoline (Globex), Nov 20
B3: ='Symbols (2)'!B3 -> F.EU6? | C3: =IFERROR( RTD("cqg.rtd",,"StudyData",B3, "PCB","BaseType=Index,Price=1000,Index=1,Date=12/30/2016", "Close",$C$1,,"all",,,,"T")/100,"") -> -0.001063377286 | D3: =IFERROR(RANK($C3,$C$2:C$31)+COUNTIF($C$2:C3,C3)-1,"") -> 18 | E3: =B3 -> F.EU6? | F3: =F2+1 -> 2 | G3: =IFERROR(VLOOKUP($F3,$D$2:$E$31,2,FALSE),"") -> F.HE | H3: =IFERROR( RTD("cqg.rtd",,"StudyData",G3, "PCB","BaseType=Index,Price=1000,Index=1,Date=12/30/2016", "Close",$C$1,,"all",,,,"T")/100,"") -> 0.002726918582 | I3: =IF(H3<0,"",H3) -> 0.002726918582 | J3: =IF(H3>=0,"",-H3) ->  | K3: =IF(J3="","",H3) ->  | L3: =IF(G3="","",RTD("cqg.rtd",,"ContractData",G3,"LongDescription",,"T")) -> Lean Hogs (Globex), Dec 20
B4: ='Symbols (2)'!B4 -> F.JY6? | C4: =IFERROR( RTD("cqg.rtd",,"StudyData",B4, "PCB","BaseType=Index,Price=1000,Index=1,Date=12/30/2016", "Close",$C$1,,"all",,,,"T")/100,"") -> -0.001517927244 | D4: =IFERROR(RANK($C4,$C$2:C$31)+COUNTIF($C$2:C4,C4)-1,"") -> 23 | E4: F.JY6? | F4: =F3+1 -> 3 | G4: F.CLE? | H4: =IFERROR( RTD("cqg.rtd",,"StudyData",G4, "PCB","BaseType=Index,Price=1000,Index=1,Date=12/30/2016", "Close",$C$1,,"all",,,,"T")/100,"") -> 0.001253446979 | I4: 0.001253446979 | L4: =IF(G4="","",RTD("cqg.rtd",,"ContractData",G4,"LongDescription",,"T")) -> Crude Light (Globex), Nov 20
B5: ='Symbols (2)'!B5 -> F.BP6? | C5: =IFERROR( RTD("cqg.rtd",,"StudyData",B5, "PCB","BaseType=Index,Price=1000,Index=1,Date=12/30/2016", "Close",$C$1,,"all",,,,"T")/100,"") -> -0.001644093009 | D5: =IFERROR(RANK($C5,$C$2:C$31)+COUNTIF($C$2:C5,C5)-1,"") -> 25 | E5: F.BP6? | F5: 4 | G5: F.DXE? | H5: =IFERROR( RTD("cqg.rtd",,"StudyData",G5, "PCB","BaseType=Index,Price=1000,Index=1,Date=12/30/2016", "Close",$C$1,,"all",,,,"T")/100,"") -> 0.001066041256 | I5: 0.001066041256 | L5: =IF(G5="","",RTD("cqg.rtd",,"ContractData",G5,"LongDescription",,"T")) -> Dollar Index (ICE), Dec 20
B6: ='Symbols (2)'!B6 -> F.CA6? | C6: =IFERROR( RTD("cqg.rtd",,"StudyData",B6, "PCB","BaseType=Index,Price=1000,Index=1,Date=12/30/2016", "Close",$C$1,,"all",,,,"T")/100,"") -> -0.0009970089731 | D6: =IFERROR(RANK($C6,$C$2:C$31)+COUNTIF($C$2:C6,C6)-1,"") -> 16 | E6: F.CA6? | F6: 5 | G6: F.GLE | H6: =IFERROR( RTD("cqg.rtd",,"StudyData",G6, "PCB","BaseType=Index,Price=1000,Index=1,Date=12/30/2016", "Close",$C$1,,"all",,,,"T")/100,"") -> 0.0006796556411 | I6: 0.0006796556411 | L6: =IF(G6="","",RTD("cqg.rtd",,"ContractData",G6,"LongDescription",,"T")) -> Live Cattle (Globex), Dec 20
B7: ='Symbols (2)'!B7 -> F.SF6? | C7: =IFERROR( RTD("cqg.rtd",,"StudyData",B7, "PCB","BaseType=Index,Price=1000,Index=1,Date=12/30/2016", "Close",$C$1,,"all",,,,"T")/100,"") -> -0.0008238740388 | D7: =IFERROR(RANK($C7,$C$2:C$31)+COUNTIF($C$2:C7,C7)-1,"") -> 14 | E7: F.SF6? | F7: 6 | G7: F.QFA? | H7: =IFERROR( RTD("cqg.rtd",,"StudyData",G7, "PCB","BaseType=Index,Price=1000,Index=1,Date=12/30/2016", "Close",$C$1,,"all",,,,"T")/100,"") -> 0.0002573560951 | I7: 0.0002573560951 | L7: =IF(G7="","",RTD("cqg.rtd",,"ContractData",G7,"LongDescription",,"T")) -> FTSE 100 - Stnd Index, Dec 20
B8: ='Symbols (2)'!B8 -> F.DA6? | C8: =IFERROR( RTD("cqg.rtd",,"StudyData",B8, "PCB","BaseType=Index,Price=1000,Index=1,Date=12/30/2016", "Close",$C$1,,"all",,,,"T")/100,"") -> -0.001803301429 | D8: =IFERROR(RANK($C8,$C$2:C$31)+COUNTIF($C$2:C8,C8)-1,"") -> 27 | E8: F.DA6? | F8: 7 | G8: F.PLE? | H8: =IFERROR( RTD("cqg.rtd",,"StudyData",G8, "PCB","BaseType=Index,Price=1000,Index=1,Date=12/30/2016", "Close",$C$1,,"all",,,,"T")/100,"") -> 0.0001151675688 | I8: 0.0001151675688 | L8: =IF(G8="","",RTD("cqg.rtd",,"ContractData",G8,"LongDescription",,"T")) -> Platinum (Globex), Oct 20
B9: ='Symbols (2)'!B9 -> F.NE6? | C9: =IFERROR( RTD("cqg.rtd",,"StudyData",B9, "PCB","BaseType=Index,Price=1000,Index=1,Date=12/30/2016", "Close",$C$1,,"all",,,,"T")/100,"") -> -0.001502629602 | D9: =IFERROR(RANK($C9,$C$2:C$31)+COUNTIF($C$2:C9,C9)-1,"") -> 22 | E9: F.NE6? | F9: 8 | G9: F.HOE? | H9: =IFERROR( RTD("cqg.rtd",,"StudyData",G9, "PCB","BaseType=Index,Price=1000,Index=1,Date=12/30/2016", "Close",$C$1,,"all",,,,"T")/100,"") -> 0 | I9: 0 | L9: =IF(G9="","",RTD("cqg.rtd",,"ContractData",G9,"LongDescription",,"T")) -> NY Harbor ULSD, Nov 20
B10: ='Symbols (2)'!B10 -> F.MX6? | C10: =IFERROR( RTD("cqg.rtd",,"StudyData",B10, "PCB","BaseType=Index,Price=1000,Index=1,Date=12/30/2016", "Close",$C$1,,"all",,,,"T")/100,"") -> -0.001945945946 | D10: =IFERROR(RANK($C10,$C$2:C$31)+COUNTIF($C$2:C10,C10)-1,"") -> 28 | E10: F.MX6? | F10: 9 | G10: F.TYA? | H10: =IFERROR( RTD("cqg.rtd",,"StudyData",G10, "PCB","BaseType=Index,Price=1000,Index=1,Date=12/30/2016", "Close",$C$1,,"all",,,,"T")/100,"") -> -0.0001119570085 | J10: 0.0001119570085 | K10: -0.0001119570085 | L10: =IF(G10="","",RTD("cqg.rtd",,"ContractData",G10,"LongDescription",,"T")) -> 10yr US Treasury Notes (Globex), Dec 20
B11: ='Symbols (2)'!B11 -> F.GCE? | C11: =IFERROR( RTD("cqg.rtd",,"StudyData",B11, "PCB","BaseType=Index,Price=1000,Index=1,Date=12/30/2016", "Close",$C$1,,"all",,,,"T")/100,"") -> -0.001462064644 | D11: =IFERROR(RANK($C11,$C$2:C$31)+COUNTIF($C$2:C11,C11)-1,"") -> 21 | E11: F.GCE? | F11: 10 | G11: F.PIL? | H11: =IFERROR( RTD("cqg.rtd",,"StudyData",G11, "PCB","BaseType=Index,Price=1000,Index=1,Date=12/30/2016", "Close",$C$1,,"all",,,,"T")/100,"") -> -0.0003120773952 | J11: 0.0003120773952 | K11: -0.0003120773952 | L11: =IF(G11="","",RTD("cqg.rtd",,"ContractData",G11,"LongDescription",,"T")) -> CAC40, Oct 20
B12: ='Symbols (2)'!B12 -> F.SIE? | C12: =IFERROR( RTD("cqg.rtd",,"StudyData",B12, "PCB","BaseType=Index,Price=1000,Index=1,Date=12/30/2016", "Close",$C$1,,"all",,,,"T")/100,"") -> -0.001628332994 | D12: =IFERROR(RANK($C12,$C$2:C$31)+COUNTIF($C$2:C12,C12)-1,"") -> 24 | E12: F.SIE? | F12: 11 | G12: F.NKD? | H12: =IFERROR( RTD("cqg.rtd",,"StudyData",G12, "PCB","BaseType=Index,Price=1000,Index=1,Date=12/30/2016", "Close",$C$1,,"all",,,,"T")/100,"") -> -0.0004384042087 | J12: 0.0004384042087 | K12: -0.0004384042087 | L12: =IF(G12="","",RTD("cqg.rtd",,"ContractData",G12,"LongDescription",,"T")) -> Nikkei 225 (Globex), Dec 20
B13: ='Symbols (2)'!B13 -> F.PLE? | C13: =IFERROR( RTD("cqg.rtd",,"StudyData",B13, "PCB","BaseType=Index,Price=1000,Index=1,Date=12/30/2016", "Close",$C$1,,"all",,,,"T")/100,"") -> 0.0001151675688 | D13: =IFERROR(RANK($C13,$C$2:C$31)+COUNTIF($C$2:C13,C13)-1,"") -> 7 | E13: F.PLE? | F13: 12 | G13: F.DD? | H13: =IFERROR( RTD("cqg.rtd",,"StudyData",G13, "PCB","BaseType=Index,Price=1000,Index=1,Date=12/30/2016", "Close",$C$1,,"all",,,,"T")/100,"") -> -0.0005528570864 | J13: 0.0005528570864 | K13: -0.0005528570864 | L13: =IF(G13="","",RTD("cqg.rtd",,"ContractData",G13,"LongDescription",,"T")) -> DAX Index, Dec 20
B14: ='Symbols (2)'!B14 -> F.TYA? | C14: =IFERROR( RTD("cqg.rtd",,"StudyData",B14, "PCB","BaseType=Index,Price=1000,Index=1,Date=12/30/2016", "Close",$C$1,,"all",,,,"T")/100,"") -> -0.0001119570085 | D14: =IFERROR(RANK($C14,$C$2:C$31)+COUNTIF($C$2:C14,C14)-1,"") -> 9 | E14: F.TYA? | F14: 13 | G14: F.DSX? | H14: =IFERROR( RTD("cqg.rtd",,"StudyData",G14, "PCB","BaseType=Index,Price=1000,Index=1,Date=12/30/2016", "Close",$C$1,,"all",,,,"T")/100,"") -> -0.0006293266205 | J14: 0.0006293266205 | K14: -0.0006293266205 | L14: =IF(G14="","",RTD("cqg.rtd",,"ContractData",G14,"LongDescription",,"T")) -> Euro STOXX 50, Dec 20
B15: ='Symbols (2)'!B15 -> F.CLE? | C15: =IFERROR( RTD("cqg.rtd",,"StudyData",B15, "PCB","BaseType=Index,Price=1000,Index=1,Date=12/30/2016", "Close",$C$1,,"all",,,,"T")/100,"") -> 0.001253446979 | D15: =IFERROR(RANK($C15,$C$2:C$31)+COUNTIF($C$2:C15,C15)-1,"") -> 3 | E15: F.CLE? | F15: 14 | G15: F.SF6? | H15: =IFERROR( RTD("cqg.rtd",,"StudyData",G15, "PCB","BaseType=Index,Price=1000,Index=1,Date=12/30/2016", "Close",$C$1,,"all",,,,"T")/100,"") -> -0.0008238740388 | J15: 0.0008238740388 | K15: -0.0008238740388 | L15: =IF(G15="","",RTD("cqg.rtd",,"ContractData",G15,"LongDescription",,"T")) -> Swiss Franc (Globex), Dec 20
B16: ='Symbols (2)'!B16 -> F.HOE? | C16: =IFERROR( RTD("cqg.rtd",,"StudyData",B16, "PCB","BaseType=Index,Price=1000,Index=1,Date=12/30/2016", "Close",$C$1,,"all",,,,"T")/100,"") -> 0 | D16: =IFERROR(RANK($C16,$C$2:C$31)+COUNTIF($C$2:C16,C16)-1,"") -> 8 | E16: F.HOE? | F16: 15 | G16: F.ZSE | H16: =IFERROR( RTD("cqg.rtd",,"StudyData",G16, "PCB","BaseType=Index,Price=1000,Index=1,Date=12/30/2016", "Close",$C$1,,"all",,,,"T")/100,"") -> -0.0009725261366 | J16: 0.0009725261366 | K16: -0.0009725261366 | L16: =IF(G16="","",RTD("cqg.rtd",,"ContractData",G16,"LongDescription",,"T")) -> Soybeans (Globex), Nov 20
B17: ='Symbols (2)'!B17 -> F.RBE? | C17: =IFERROR( RTD("cqg.rtd",,"StudyData",B17, "PCB","BaseType=Index,Price=1000,Index=1,Date=12/30/2016", "Close",$C$1,,"all",,,,"T")/100,"") -> 0.003738805321 | D17: =IFERROR(RANK($C17,$C$2:C$31)+COUNTIF($C$2:C17,C17)-1,"") -> 1 | E17: F.RBE? | F17: 16 | G17: F.CA6? | H17: =IFERROR( RTD("cqg.rtd",,"StudyData",G17, "PCB","BaseType=Index,Price=1000,Index=1,Date=12/30/2016", "Close",$C$1,,"all",,,,"T")/100,"") -> -0.0009970089731 | J17: 0.0009970089731 | K17: -0.0009970089731 | L17: =IF(G17="","",RTD("cqg.rtd",,"ContractData",G17,"LongDescription",,"T")) -> Canadian Dollar (Globex), Dec 20
B18: ='Symbols (2)'!B18 -> F.ZSE | C18: =IFERROR( RTD("cqg.rtd",,"StudyData",B18, "PCB","BaseType=Index,Price=1000,Index=1,Date=12/30/2016", "Close",$C$1,,"all",,,,"T")/100,"") -> -0.0009725261366 | D18: =IFERROR(RANK($C18,$C$2:C$31)+COUNTIF($C$2:C18,C18)-1,"") -> 15 | E18: F.ZSE | F18: 17 | G18: F.ENQ? | H18: =IFERROR( RTD("cqg.rtd",,"StudyData",G18, "PCB","BaseType=Index,Price=1000,Index=1,Date=12/30/2016", "Close",$C$1,,"all",,,,"T")/100,"") -> -0.00101911405 | J18: 0.00101911405 | K18: -0.00101911405 | L18: =IF(G18="","",RTD("cqg.rtd",,"ContractData",G18,"LongDescription",,"T")) -> E-mini NASDAQ-100, Dec 20
B19: ='Symbols (2)'!B19 -> F.ZWA | C19: =IFERROR( RTD("cqg.rtd",,"StudyData",B19, "PCB","BaseType=Index,Price=1000,Index=1,Date=12/30/2016", "Close",$C$1,,"all",,,,"T")/100,"") -> -0.003557136505 | D19: =IFERROR(RANK($C19,$C$2:C$31)+COUNTIF($C$2:C19,C19)-1,"") -> 30 | E19: F.ZWA | F19: 18 | G19: F.EU6? | H19: =IFERROR( RTD("cqg.rtd",,"StudyData",G19, "PCB","BaseType=Index,Price=1000,Index=1,Date=12/30/2016", "Close",$C$1,,"all",,,,"T")/100,"") -> -0.001063377286 | J19: 0.001063377286 | K19: -0.001063377286 | L19: =IF(G19="","",RTD("cqg.rtd",,"ContractData",G19,"LongDescription",,"T")) -> Euro FX (Globex), Dec 20
B20: ='Symbols (2)'!B20 -> F.ZCE | C20: =IFERROR( RTD("cqg.rtd",,"StudyData",B20, "PCB","BaseType=Index,Price=1000,Index=1,Date=12/30/2016", "Close",$C$1,,"all",,,,"T")/100,"") -> -0.002027027027 | D20: =IFERROR(RANK($C20,$C$2:C$31)+COUNTIF($C$2:C20,C20)-1,"") -> 29 | E20: F.ZCE | F20: 19 | G20: F.RTY? | H20: =IFERROR( RTD("cqg.rtd",,"StudyData",G20, "PCB","BaseType=Index,Price=1000,Index=1,Date=12/30/2016", "Close",$C$1,,"all",,,,"T")/100,"") -> -0.001348799568 | J20: 0.001348799568 | K20: -0.001348799568 | L20: =IF(G20="","",RTD("cqg.rtd",,"ContractData",G20,"LongDescription",,"T")) -> E-mini Russell 2000, Dec 20
B21: ='Symbols (2)'!B21 -> F.GLE | C21: =IFERROR( RTD("cqg.rtd",,"StudyData",B21, "PCB","BaseType=Index,Price=1000,Index=1,Date=12/30/2016", "Close",$C$1,,"all",,,,"T")/100,"") -> 0.0006796556411 | D21: =IFERROR(RANK($C21,$C$2:C$31)+COUNTIF($C$2:C21,C21)-1,"") -> 5 | E21: F.GLE | F21: 20 | G21: F.EP? | H21: =IFERROR( RTD("cqg.rtd",,"StudyData",G21, "PCB","BaseType=Index,Price=1000,Index=1,Date=12/30/2016", "Close",$C$1,,"all",,,,"T")/100,"") -> -0.001368509085 | J21: 0.001368509085 | K21: -0.001368509085 | L21: =IF(G21="","",RTD("cqg.rtd",,"ContractData",G21,"LongDescription",,"T")) -> E-Mini S&P 500, Dec 20
B22: ='Symbols (2)'!B22 -> F.HE | C22: =IFERROR( RTD("cqg.rtd",,"StudyData",B22, "PCB","BaseType=Index,Price=1000,Index=1,Date=12/30/2016", "Close",$C$1,,"all",,,,"T")/100,"") -> 0.002726918582 | D22: =IFERROR(RANK($C22,$C$2:C$31)+COUNTIF($C$2:C22,C22)-1,"") -> 2 | E22: F.HE | F22: 21 | G22: F.GCE? | H22: =IFERROR( RTD("cqg.rtd",,"StudyData",G22, "PCB","BaseType=Index,Price=1000,Index=1,Date=12/30/2016", "Close",$C$1,,"all",,,,"T")/100,"") -> -0.001462064644 | J22: 0.001462064644 | K22: -0.001462064644 | L22: =IF(G22="","",RTD("cqg.rtd",,"ContractData",G22,"LongDescription",,"T")) -> Gold (Globex), Dec 20
B23: ='Symbols (2)'!B23 -> F.YM? | C23: =IFERROR( RTD("cqg.rtd",,"StudyData",B23, "PCB","BaseType=Index,Price=1000,Index=1,Date=12/30/2016", "Close",$C$1,,"all",,,,"T")/100,"") -> -0.001698168931 | D23: =IFERROR(RANK($C23,$C$2:C$31)+COUNTIF($C$2:C23,C23)-1,"") -> 26 | E23: F.YM? | F23: 22 | G23: F.NE6? | H23: =IFERROR( RTD("cqg.rtd",,"StudyData",G23, "PCB","BaseType=Index,Price=1000,Index=1,Date=12/30/2016", "Close",$C$1,,"all",,,,"T")/100,"") -> -0.001502629602 | J23: 0.001502629602 | K23: -0.001502629602 | L23: =IF(G23="","",RTD("cqg.rtd",,"ContractData",G23,"LongDescription",,"T")) -> New Zealand Dollar (Globex), Dec 20
B24: ='Symbols (2)'!B24 -> F.EP? | C24: =IFERROR( RTD("cqg.rtd",,"StudyData",B24, "PCB","BaseType=Index,Price=1000,Index=1,Date=12/30/2016", "Close",$C$1,,"all",,,,"T")/100,"") -> -0.001368509085 | D24: =IFERROR(RANK($C24,$C$2:C$31)+COUNTIF($C$2:C24,C24)-1,"") -> 20 | E24: F.EP? | F24: 23 | G24: F.JY6? | H24: =IFERROR( RTD("cqg.rtd",,"StudyData",G24, "PCB","BaseType=Index,Price=1000,Index=1,Date=12/30/2016", "Close",$C$1,,"all",,,,"T")/100,"") -> -0.001517927244 | J24: 0.001517927244 | K24: -0.001517927244 | L24: =IF(G24="","",RTD("cqg.rtd",,"ContractData",G24,"LongDescription",,"T")) -> Japanese Yen (Globex), Dec 20
B25: ='Symbols (2)'!B25 -> F.ENQ? | C25: =IFERROR( RTD("cqg.rtd",,"StudyData",B25, "PCB","BaseType=Index,Price=1000,Index=1,Date=12/30/2016", "Close",$C$1,,"all",,,,"T")/100,"") -> -0.00101911405 | D25: =IFERROR(RANK($C25,$C$2:C$31)+COUNTIF($C$2:C25,C25)-1,"") -> 17 | E25: F.ENQ? | F25: 24 | G25: F.SIE? | H25: =IFERROR( RTD("cqg.rtd",,"StudyData",G25, "PCB","BaseType=Index,Price=1000,Index=1,Date=12/30/2016", "Close",$C$1,,"all",,,,"T")/100,"") -> -0.001628332994 | J25: 0.001628332994 | K25: -0.001628332994 | L25: =IF(G25="","",RTD("cqg.rtd",,"ContractData",G25,"LongDescription",,"T")) -> Silver (Globex), Dec 20
B26: ='Symbols (2)'!B26 -> F.RTY? | C26: =IFERROR( RTD("cqg.rtd",,"StudyData",B26, "PCB","BaseType=Index,Price=1000,Index=1,Date=12/30/2016", "Close",$C$1,,"all",,,,"T")/100,"") -> -0.001348799568 | D26: =IFERROR(RANK($C26,$C$2:C$31)+COUNTIF($C$2:C26,C26)-1,"") -> 19 | E26: F.RTY? | F26: 25 | G26: F.BP6? | H26: =IFERROR( RTD("cqg.rtd",,"StudyData",G26, "PCB","BaseType=Index,Price=1000,Index=1,Date=12/30/2016", "Close",$C$1,,"all",,,,"T")/100,"") -> -0.001644093009 | J26: 0.001644093009 | K26: -0.001644093009 | L26: =IF(G26="","",RTD("cqg.rtd",,"ContractData",G26,"LongDescription",,"T")) -> British Pound (Globex), Dec 20
B27: ='Symbols (2)'!B27 -> F.DD? | C27: =IFERROR( RTD("cqg.rtd",,"StudyData",B27, "PCB","BaseType=Index,Price=1000,Index=1,Date=12/30/2016", "Close",$C$1,,"all",,,,"T")/100,"") -> -0.0005528570864 | D27: =IFERROR(RANK($C27,$C$2:C$31)+COUNTIF($C$2:C27,C27)-1,"") -> 12 | E27: F.DD? | F27: 26 | G27: F.YM? | H27: =IFERROR( RTD("cqg.rtd",,"StudyData",G27, "PCB","BaseType=Index,Price=1000,Index=1,Date=12/30/2016", "Close",$C$1,,"all",,,,"T")/100,"") -> -0.001698168931 | J27: 0.001698168931 | K27: -0.001698168931 | L27: =IF(G27="","",RTD("cqg.rtd",,"ContractData",G27,"LongDescription",,"T")) -> E-mini Dow ($5), Dec 20
B28: ='Symbols (2)'!B28 -> F.DSX? | C28: =IFERROR( RTD("cqg.rtd",,"StudyData",B28, "PCB","BaseType=Index,Price=1000,Index=1,Date=12/30/2016", "Close",$C$1,,"all",,,,"T")/100,"") -> -0.0006293266205 | D28: =IFERROR(RANK($C28,$C$2:C$31)+COUNTIF($C$2:C28,C28)-1,"") -> 13 | E28: F.DSX? | F28: 27 | G28: F.DA6? | H28: =IFERROR( RTD("cqg.rtd",,"StudyData",G28, "PCB","BaseType=Index,Price=1000,Index=1,Date=12/30/2016", "Close",$C$1,,"all",,,,"T")/100,"") -> -0.001803301429 | J28: 0.001803301429 | K28: -0.001803301429 | L28: =IF(G28="","",RTD("cqg.rtd",,"ContractData",G28,"LongDescription",,"T")) -> Australian Dollar (Globex), Dec 20
B29: ='Symbols (2)'!B29 -> F.QFA? | C29: =IFERROR( RTD("cqg.rtd",,"StudyData",B29, "PCB","BaseType=Index,Price=1000,Index=1,Date=12/30/2016", "Close",$C$1,,"all",,,,"T")/100,"") -> 0.0002573560951 | D29: =IFERROR(RANK($C29,$C$2:C$31)+COUNTIF($C$2:C29,C29)-1,"") -> 6 | E29: F.QFA? | F29: 28 | G29: F.MX6? | H29: =IFERROR( RTD("cqg.rtd",,"StudyData",G29, "PCB","BaseType=Index,Price=1000,Index=1,Date=12/30/2016", "Close",$C$1,,"all",,,,"T")/100,"") -> -0.001945945946 | J29: 0.001945945946 | K29: -0.001945945946 | L29: =IF(G29="","",RTD("cqg.rtd",,"ContractData",G29,"LongDescription",,"T")) -> Mexican Peso (Globex), Dec 20
B30: ='Symbols (2)'!B30 -> F.PIL? | C30: =IFERROR( RTD("cqg.rtd",,"StudyData",B30, "PCB","BaseType=Index,Price=1000,Index=1,Date=12/30/2016", "Close",$C$1,,"all",,,,"T")/100,"") -> -0.0003120773952 | D30: =IFERROR(RANK($C30,$C$2:C$31)+COUNTIF($C$2:C30,C30)-1,"") -> 10 | E30: F.PIL? | F30: 29 | G30: F.ZCE | H30: =IFERROR( RTD("cqg.rtd",,"StudyData",G30, "PCB","BaseType=Index,Price=1000,Index=1,Date=12/30/2016", "Close",$C$1,,"all",,,,"T")/100,"") -> -0.002027027027 | J30: 0.002027027027 | K30: -0.002027027027 | L30: =IF(G30="","",RTD("cqg.rtd",,"ContractData",G30,"LongDescription",,"T")) -> Corn (Globex), Dec 20
B31: ='Symbols (2)'!B31 -> F.NKD? | C31: =IFERROR( RTD("cqg.rtd",,"StudyData",B31, "PCB","BaseType=Index,Price=1000,Index=1,Date=12/30/2016", "Close",$C$1,,"all",,,,"T")/100,"") -> -0.0004384042087 | D31: =IFERROR(RANK($C31,$C$2:C$31)+COUNTIF($C$2:C31,C31)-1,"") -> 11 | E31: F.NKD? | F31: 30 | G31: F.ZWA | H31: =IFERROR( RTD("cqg.rtd",,"StudyData",G31, "PCB","BaseType=Index,Price=1000,Index=1,Date=12/30/2016", "Close",$C$1,,"all",,,,"T")/100,"") -> -0.003557136505 | J31: 0.003557136505 | K31: -0.003557136505 | L31: =IF(G31="","",RTD("cqg.rtd",,"ContractData",G31,"LongDescription",,"T")) -> Wheat (Globex), Dec 20

Sheet Daily (2) (hidden)
C1: ="A"&'Symbols (2)'!E2 -> AD
B2: ='Symbols (2)'!B2 -> F.DXE? | C2: =IFERROR(RTD("cqg.rtd",,"StudyData",B2, "PCB","BaseType=Index,Price=1000,Index=1,Date=12/30/2016", "Close",$C$1,,"all",,,,"T")/100,"") -> 0.002358994065 | D2: =RANK($C2,$C$2:C$31)+COUNTIF($C$2:C2,C2)-1 -> 12 | E2: =B2 -> F.DXE? | F2: 1 | G2: =IFERROR(VLOOKUP($F2,$D$2:$E$31,2,FALSE),"") -> F.HE | H2: =IFERROR( RTD("cqg.rtd",,"StudyData",G2, "PCB","BaseType=Index,Price=1000,Index=1,Date=12/30/2016", "Close",$C$1,,"all",,,,"T")/100,"") -> 0.04549147035 | I2: =IF(H2<0,"",H2) -> 0.04549147035 | J2: =IF(H2>=0,"",-H2) ->  | K2: =IF(J2="","",H2) ->  | L2: =IF(G2="","",RTD("cqg.rtd",,"ContractData",G2,"LongDescription",,"T")) -> Lean Hogs (Globex), Dec 20
B3: ='Symbols (2)'!B3 -> F.EU6? | C3: =IFERROR(RTD("cqg.rtd",,"StudyData",B3, "PCB","BaseType=Index,Price=1000,Index=1,Date=12/30/2016", "Close",$C$1,,"all",,,,"T")/100,"") -> -0.002802428772 | D3: =RANK($C3,$C$2:C$31)+COUNTIF($C$2:C3,C3)-1 -> 27 | E3: =B3 -> F.EU6? | F3: =F2+1 -> 2 | G3: =IFERROR(VLOOKUP($F3,$D$2:$E$31,2,FALSE),"") -> F.DD? | H3: =IFERROR( RTD("cqg.rtd",,"StudyData",G3, "PCB","BaseType=Index,Price=1000,Index=1,Date=12/30/2016", "Close",$C$1,,"all",,,,"T")/100,"") -> 0.01312997878 | I3: =IF(H3<0,"",H3) -> 0.01312997878 | J3: =IF(H3>=0,"",-H3) ->  | K3: =IF(J3="","",H3) ->  | L3: =IF(G3="","",RTD("cqg.rtd",,"ContractData",G3,"LongDescription",,"T")) -> DAX Index, Dec 20
B4: ='Symbols (2)'!B4 -> F.JY6? | C4: =IFERROR(RTD("cqg.rtd",,"StudyData",B4, "PCB","BaseType=Index,Price=1000,Index=1,Date=12/30/2016", "Close",$C$1,,"all",,,,"T")/100,"") -> -0.001570187376 | D4: =RANK($C4,$C$2:C$31)+COUNTIF($C$2:C4,C4)-1 -> 20 | E4: F.JY6? | F4: =F3+1 -> 3 | G4: F.DSX? | H4: =IFERROR( RTD("cqg.rtd",,"StudyData",G4, "PCB","BaseType=Index,Price=1000,Index=1,Date=12/30/2016", "Close",$C$1,,"all",,,,"T")/100,"") -> 0.01114294811 | I4: 0.01114294811 | L4: =IF(G4="","",RTD("cqg.rtd",,"ContractData",G4,"LongDescription",,"T")) -> Euro STOXX 50, Dec 20
B5: ='Symbols (2)'!B5 -> F.BP6? | C5: =IFERROR(RTD("cqg.rtd",,"StudyData",B5, "PCB","BaseType=Index,Price=1000,Index=1,Date=12/30/2016", "Close",$C$1,,"all",,,,"T")/100,"") -> -0.00375 | D5: =RANK($C5,$C$2:C$31)+COUNTIF($C$2:C5,C5)-1 -> 29 | E5: F.BP6? | F5: 4 | G5: F.CLE? | H5: =IFERROR( RTD("cqg.rtd",,"StudyData",G5, "PCB","BaseType=Index,Price=1000,Index=1,Date=12/30/2016", "Close",$C$1,,"all",,,,"T")/100,"") -> 0.01011633789 | I5: 0.01011633789 | L5: =IF(G5="","",RTD("cqg.rtd",,"ContractData",G5,"LongDescription",,"T")) -> Crude Light (Globex), Nov 20
B6: ='Symbols (2)'!B6 -> F.CA6? | C6: =IFERROR(RTD("cqg.rtd",,"StudyData",B6, "PCB","BaseType=Index,Price=1000,Index=1,Date=12/30/2016", "Close",$C$1,,"all",,,,"T")/100,"") -> 0.0006657789614 | D6: =RANK($C6,$C$2:C$31)+COUNTIF($C$2:C6,C6)-1 -> 14 | E6: F.CA6? | F6: 5 | G6: F.ZWA | H6: =IFERROR( RTD("cqg.rtd",,"StudyData",G6, "PCB","BaseType=Index,Price=1000,Index=1,Date=12/30/2016", "Close",$C$1,,"all",,,,"T")/100,"") -> 0.009914375845 | I6: 0.009914375845 | L6: =IF(G6="","",RTD("cqg.rtd",,"ContractData",G6,"LongDescription",,"T")) -> Wheat (Globex), Dec 20
B7: ='Symbols (2)'!B7 -> F.SF6? | C7: =IFERROR(RTD("cqg.rtd",,"StudyData",B7, "PCB","BaseType=Index,Price=1000,Index=1,Date=12/30/2016", "Close",$C$1,,"all",,,,"T")/100,"") -> -0.003469369123 | D7: =RANK($C7,$C$2:C$31)+COUNTIF($C$2:C7,C7)-1 -> 28 | E7: F.SF6? | F7: 6 | G7: F.SIE? | H7: =IFERROR( RTD("cqg.rtd",,"StudyData",G7, "PCB","BaseType=Index,Price=1000,Index=1,Date=12/30/2016", "Close",$C$1,,"all",,,,"T")/100,"") -> 0.005658752614 | I7: 0.005658752614 | L7: =IF(G7="","",RTD("cqg.rtd",,"ContractData",G7,"LongDescription",,"T")) -> Silver (Globex), Dec 20
B8: ='Symbols (2)'!B8 -> F.DA6? | C8: =IFERROR(RTD("cqg.rtd",,"StudyData",B8, "PCB","BaseType=Index,Price=1000,Index=1,Date=12/30/2016", "Close",$C$1,,"all",,,,"T")/100,"") -> -0.001803301429 | D8: =RANK($C8,$C$2:C$31)+COUNTIF($C$2:C8,C8)-1 -> 22 | E8: F.DA6? | F8: 7 | G8: F.QFA? | H8: =IFERROR( RTD("cqg.rtd",,"StudyData",G8, "PCB","BaseType=Index,Price=1000,Index=1,Date=12/30/2016", "Close",$C$1,,"all",,,,"T")/100,"") -> 0.005345749267 | I8: 0.005345749267 | L8: =IF(G8="","",RTD("cqg.rtd",,"ContractData",G8,"LongDescription",,"T")) -> FTSE 100 - Stnd Index, Dec 20
B9: ='Symbols (2)'!B9 -> F.NE6? | C9: =IFERROR(RTD("cqg.rtd",,"StudyData",B9, "PCB","BaseType=Index,Price=1000,Index=1,Date=12/30/2016", "Close",$C$1,,"all",,,,"T")/100,"") -> -0.00210241778 | D9: =RANK($C9,$C$2:C$31)+COUNTIF($C$2:C9,C9)-1 -> 23 | E9: F.NE6? | F9: 8 | G9: F.ZSE | H9: =IFERROR( RTD("cqg.rtd",,"StudyData",G9, "PCB","BaseType=Index,Price=1000,Index=1,Date=12/30/2016", "Close",$C$1,,"all",,,,"T")/100,"") -> 0.004645476773 | I9: 0.004645476773 | L9: =IF(G9="","",RTD("cqg.rtd",,"ContractData",G9,"LongDescription",,"T")) -> Soybeans (Globex), Nov 20
B10: ='Symbols (2)'!B10 -> F.MX6? | C10: =IFERROR(RTD("cqg.rtd",,"StudyData",B10, "PCB","BaseType=Index,Price=1000,Index=1,Date=12/30/2016", "Close",$C$1,,"all",,,,"T")/100,"") -> -0.002592912705 | D10: =RANK($C10,$C$2:C$31)+COUNTIF($C$2:C10,C10)-1 -> 25 | E10: F.MX6? | F10: 9 | G10: F.HOE? | H10: =IFERROR( RTD("cqg.rtd",,"StudyData",G10, "PCB","BaseType=Index,Price=1000,Index=1,Date=12/30/2016", "Close",$C$1,,"all",,,,"T")/100,"") -> 0.003664640686 | I10: 0.003664640686 | L10: =IF(G10="","",RTD("cqg.rtd",,"ContractData",G10,"LongDescription",,"T")) -> NY Harbor ULSD, Nov 20
B11: ='Symbols (2)'!B11 -> F.GCE? | C11: =IFERROR(RTD("cqg.rtd",,"StudyData",B11, "PCB","BaseType=Index,Price=1000,Index=1,Date=12/30/2016", "Close",$C$1,,"all",,,,"T")/100,"") -> 0.0008897728462 | D11: =RANK($C11,$C$2:C$31)+COUNTIF($C$2:C11,C11)-1 -> 13 | E11: F.GCE? | F11: 10 | G11: F.ENQ? | H11: =IFERROR( RTD("cqg.rtd",,"StudyData",G11, "PCB","BaseType=Index,Price=1000,Index=1,Date=12/30/2016", "Close",$C$1,,"all",,,,"T")/100,"") -> 0.003526253526 | I11: 0.003526253526 | L11: =IF(G11="","",RTD("cqg.rtd",,"ContractData",G11,"LongDescription",,"T")) -> E-mini NASDAQ-100, Dec 20
B12: ='Symbols (2)'!B12 -> F.SIE? | C12: =IFERROR(RTD("cqg.rtd",,"StudyData",B12, "PCB","BaseType=Index,Price=1000,Index=1,Date=12/30/2016", "Close",$C$1,,"all",,,,"T")/100,"") -> 0.005658752614 | D12: =RANK($C12,$C$2:C$31)+COUNTIF($C$2:C12,C12)-1 -> 6 | E12: F.SIE? | F12: 11 | G12: F.EP? | H12: =IFERROR( RTD("cqg.rtd",,"StudyData",G12, "PCB","BaseType=Index,Price=1000,Index=1,Date=12/30/2016", "Close",$C$1,,"all",,,,"T")/100,"") -> 0.002671755725 | I12: 0.002671755725 | L12: =IF(G12="","",RTD("cqg.rtd",,"ContractData",G12,"LongDescription",,"T")) -> E-Mini S&P 500, Dec 20
B13: ='Symbols (2)'!B13 -> F.PLE? | C13: =IFERROR(RTD("cqg.rtd",,"StudyData",B13, "PCB","BaseType=Index,Price=1000,Index=1,Date=12/30/2016", "Close",$C$1,,"all",,,,"T")/100,"") -> -0.008788951033 | D13: =RANK($C13,$C$2:C$31)+COUNTIF($C$2:C13,C13)-1 -> 30 | E13: F.PLE? | F13: 12 | G13: F.DXE? | H13: =IFERROR( RTD("cqg.rtd",,"StudyData",G13, "PCB","BaseType=Index,Price=1000,Index=1,Date=12/30/2016", "Close",$C$1,,"all",,,,"T")/100,"") -> 0.002358994065 | I13: 0.002358994065 | L13: =IF(G13="","",RTD("cqg.rtd",,"ContractData",G13,"LongDescription",,"T")) -> Dollar Index (ICE), Dec 20
B14: ='Symbols (2)'!B14 -> F.TYA? | C14: =IFERROR(RTD("cqg.rtd",,"StudyData",B14, "PCB","BaseType=Index,Price=1000,Index=1,Date=12/30/2016", "Close",$C$1,,"all",,,,"T")/100,"") -> -0.0001119570085 | D14: =RANK($C14,$C$2:C$31)+COUNTIF($C$2:C14,C14)-1 -> 16 | E14: F.TYA? | F14: 13 | G14: F.GCE? | H14: =IFERROR( RTD("cqg.rtd",,"StudyData",G14, "PCB","BaseType=Index,Price=1000,Index=1,Date=12/30/2016", "Close",$C$1,,"all",,,,"T")/100,"") -> 0.0008897728462 | I14: 0.0008897728462 | L14: =IF(G14="","",RTD("cqg.rtd",,"ContractData",G14,"LongDescription",,"T")) -> Gold (Globex), Dec 20
B15: ='Symbols (2)'!B15 -> F.CLE? | C15: =IFERROR(RTD("cqg.rtd",,"StudyData",B15, "PCB","BaseType=Index,Price=1000,Index=1,Date=12/30/2016", "Close",$C$1,,"all",,,,"T")/100,"") -> 0.01011633789 | D15: =RANK($C15,$C$2:C$31)+COUNTIF($C$2:C15,C15)-1 -> 4 | E15: F.CLE? | F15: 14 | G15: F.CA6? | H15: =IFERROR( RTD("cqg.rtd",,"StudyData",G15, "PCB","BaseType=Index,Price=1000,Index=1,Date=12/30/2016", "Close",$C$1,,"all",,,,"T")/100,"") -> 0.0006657789614 | I15: 0.0006657789614 | L15: =IF(G15="","",RTD("cqg.rtd",,"ContractData",G15,"LongDescription",,"T")) -> Canadian Dollar (Globex), Dec 20
B16: ='Symbols (2)'!B16 -> F.HOE? | C16: =IFERROR(RTD("cqg.rtd",,"StudyData",B16, "PCB","BaseType=Index,Price=1000,Index=1,Date=12/30/2016", "Close",$C$1,,"all",,,,"T")/100,"") -> 0.003664640686 | D16: =RANK($C16,$C$2:C$31)+COUNTIF($C$2:C16,C16)-1 -> 9 | E16: F.HOE? | F16: 15 | G16: F.RBE? | H16: =IFERROR( RTD("cqg.rtd",,"StudyData",G16, "PCB","BaseType=Index,Price=1000,Index=1,Date=12/30/2016", "Close",$C$1,,"all",,,,"T")/100,"") -> 0 | I16: 0 | L16: =IF(G16="","",RTD("cqg.rtd",,"ContractData",G16,"LongDescription",,"T")) -> RBOB Gasoline (Globex), Nov 20
B17: ='Symbols (2)'!B17 -> F.RBE? | C17: =IFERROR(RTD("cqg.rtd",,"StudyData",B17, "PCB","BaseType=Index,Price=1000,Index=1,Date=12/30/2016", "Close",$C$1,,"all",,,,"T")/100,"") -> 0 | D17: =RANK($C17,$C$2:C$31)+COUNTIF($C$2:C17,C17)-1 -> 15 | E17: F.RBE? | F17: 16 | G17: F.TYA? | H17: =IFERROR( RTD("cqg.rtd",,"StudyData",G17, "PCB","BaseType=Index,Price=1000,Index=1,Date=12/30/2016", "Close",$C$1,,"all",,,,"T")/100,"") -> -0.0001119570085 | J17: 0.0001119570085 | K17: -0.0001119570085 | L17: =IF(G17="","",RTD("cqg.rtd",,"ContractData",G17,"LongDescription",,"T")) -> 10yr US Treasury Notes (Globex), Dec 20
B18: ='Symbols (2)'!B18 -> F.ZSE | C18: =IFERROR(RTD("cqg.rtd",,"StudyData",B18, "PCB","BaseType=Index,Price=1000,Index=1,Date=12/30/2016", "Close",$C$1,,"all",,,,"T")/100,"") -> 0.004645476773 | D18: =RANK($C18,$C$2:C$31)+COUNTIF($C$2:C18,C18)-1 -> 8 | E18: F.ZSE | F18: 17 | G18: F.YM? | H18: =IFERROR( RTD("cqg.rtd",,"StudyData",G18, "PCB","BaseType=Index,Price=1000,Index=1,Date=12/30/2016", "Close",$C$1,,"all",,,,"T")/100,"") -> -0.0004805026797 | J18: 0.0004805026797 | K18: -0.0004805026797 | L18: =IF(G18="","",RTD("cqg.rtd",,"ContractData",G18,"LongDescription",,"T")) -> E-mini Dow ($5), Dec 20
B19: ='Symbols (2)'!B19 -> F.ZWA | C19: =IFERROR(RTD("cqg.rtd",,"StudyData",B19, "PCB","BaseType=Index,Price=1000,Index=1,Date=12/30/2016", "Close",$C$1,,"all",,,,"T")/100,"") -> 0.009914375845 | D19: =RANK($C19,$C$2:C$31)+COUNTIF($C$2:C19,C19)-1 -> 5 | E19: F.ZWA | F19: 18 | G19: F.RTY? | H19: =IFERROR( RTD("cqg.rtd",,"StudyData",G19, "PCB","BaseType=Index,Price=1000,Index=1,Date=12/30/2016", "Close",$C$1,,"all",,,,"T")/100,"") -> -0.001348799568 | J19: 0.001348799568 | K19: -0.001348799568 | L19: =IF(G19="","",RTD("cqg.rtd",,"ContractData",G19,"LongDescription",,"T")) -> E-mini Russell 2000, Dec 20
B20: ='Symbols (2)'!B20 -> F.ZCE | C20: =IFERROR(RTD("cqg.rtd",,"StudyData",B20, "PCB","BaseType=Index,Price=1000,Index=1,Date=12/30/2016", "Close",$C$1,,"all",,,,"T")/100,"") -> -0.001352265044 | D20: =RANK($C20,$C$2:C$31)+COUNTIF($C$2:C20,C20)-1 -> 19 | E20: F.ZCE | F20: 19 | G20: F.ZCE | H20: =IFERROR( RTD("cqg.rtd",,"StudyData",G20, "PCB","BaseType=Index,Price=1000,Index=1,Date=12/30/2016", "Close",$C$1,,"all",,,,"T")/100,"") -> -0.001352265044 | J20: 0.001352265044 | K20: -0.001352265044 | L20: =IF(G20="","",RTD("cqg.rtd",,"ContractData",G20,"LongDescription",,"T")) -> Corn (Globex), Dec 20
B21: ='Symbols (2)'!B21 -> F.GLE | C21: =IFERROR(RTD("cqg.rtd",,"StudyData",B21, "PCB","BaseType=Index,Price=1000,Index=1,Date=12/30/2016", "Close",$C$1,,"all",,,,"T")/100,"") -> -0.001582278481 | D21: =RANK($C21,$C$2:C$31)+COUNTIF($C$2:C21,C21)-1 -> 21 | E21: F.GLE | F21: 20 | G21: F.JY6? | H21: =IFERROR( RTD("cqg.rtd",,"StudyData",G21, "PCB","BaseType=Index,Price=1000,Index=1,Date=12/30/2016", "Close",$C$1,,"all",,,,"T")/100,"") -> -0.001570187376 | J21: 0.001570187376 | K21: -0.001570187376 | L21: =IF(G21="","",RTD("cqg.rtd",,"ContractData",G21,"LongDescription",,"T")) -> Japanese Yen (Globex), Dec 20
B22: ='Symbols (2)'!B22 -> F.HE | C22: =IFERROR(RTD("cqg.rtd",,"StudyData",B22, "PCB","BaseType=Index,Price=1000,Index=1,Date=12/30/2016", "Close",$C$1,,"all",,,,"T")/100,"") -> 0.04549147035 | D22: =RANK($C22,$C$2:C$31)+COUNTIF($C$2:C22,C22)-1 -> 1 | E22: F.HE | F22: 21 | G22: F.GLE | H22: =IFERROR( RTD("cqg.rtd",,"StudyData",G22, "PCB","BaseType=Index,Price=1000,Index=1,Date=12/30/2016", "Close",$C$1,,"all",,,,"T")/100,"") -> -0.001582278481 | J22: 0.001582278481 | K22: -0.001582278481 | L22: =IF(G22="","",RTD("cqg.rtd",,"ContractData",G22,"LongDescription",,"T")) -> Live Cattle (Globex), Dec 20
B23: ='Symbols (2)'!B23 -> F.YM? | C23: =IFERROR(RTD("cqg.rtd",,"StudyData",B23, "PCB","BaseType=Index,Price=1000,Index=1,Date=12/30/2016", "Close",$C$1,,"all",,,,"T")/100,"") -> -0.0004805026797 | D23: =RANK($C23,$C$2:C$31)+COUNTIF($C$2:C23,C23)-1 -> 17 | E23: F.YM? | F23: 22 | G23: F.DA6? | H23: =IFERROR( RTD("cqg.rtd",,"StudyData",G23, "PCB","BaseType=Index,Price=1000,Index=1,Date=12/30/2016", "Close",$C$1,,"all",,,,"T")/100,"") -> -0.001803301429 | J23: 0.001803301429 | K23: -0.001803301429 | L23: =IF(G23="","",RTD("cqg.rtd",,"ContractData",G23,"LongDescription",,"T")) -> Australian Dollar (Globex), Dec 20
B24: ='Symbols (2)'!B24 -> F.EP? | C24: =IFERROR(RTD("cqg.rtd",,"StudyData",B24, "PCB","BaseType=Index,Price=1000,Index=1,Date=12/30/2016", "Close",$C$1,,"all",,,,"T")/100,"") -> 0.002671755725 | D24: =RANK($C24,$C$2:C$31)+COUNTIF($C$2:C24,C24)-1 -> 11 | E24: F.EP? | F24: 23 | G24: F.NE6? | H24: =IFERROR( RTD("cqg.rtd",,"StudyData",G24, "PCB","BaseType=Index,Price=1000,Index=1,Date=12/30/2016", "Close",$C$1,,"all",,,,"T")/100,"") -> -0.00210241778 | J24: 0.00210241778 | K24: -0.00210241778 | L24: =IF(G24="","",RTD("cqg.rtd",,"ContractData",G24,"LongDescription",,"T")) -> New Zealand Dollar (Globex), Dec 20
B25: ='Symbols (2)'!B25 -> F.ENQ? | C25: =IFERROR(RTD("cqg.rtd",,"StudyData",B25, "PCB","BaseType=Index,Price=1000,Index=1,Date=12/30/2016", "Close",$C$1,,"all",,,,"T")/100,"") -> 0.003526253526 | D25: =RANK($C25,$C$2:C$31)+COUNTIF($C$2:C25,C25)-1 -> 10 | E25: F.ENQ? | F25: 24 | G25: F.NKD? | H25: =IFERROR( RTD("cqg.rtd",,"StudyData",G25, "PCB","BaseType=Index,Price=1000,Index=1,Date=12/30/2016", "Close",$C$1,,"all",,,,"T")/100,"") -> -0.002406475607 | J25: 0.002406475607 | K25: -0.002406475607 | L25: =IF(G25="","",RTD("cqg.rtd",,"ContractData",G25,"LongDescription",,"T")) -> Nikkei 225 (Globex), Dec 20
B26: ='Symbols (2)'!B26 -> F.RTY? | C26: =IFERROR(RTD("cqg.rtd",,"StudyData",B26, "PCB","BaseType=Index,Price=1000,Index=1,Date=12/30/2016", "Close",$C$1,,"all",,,,"T")/100,"") -> -0.001348799568 | D26: =RANK($C26,$C$2:C$31)+COUNTIF($C$2:C26,C26)-1 -> 18 | E26: F.RTY? | F26: 25 | G26: F.MX6? | H26: =IFERROR( RTD("cqg.rtd",,"StudyData",G26, "PCB","BaseType=Index,Price=1000,Index=1,Date=12/30/2016", "Close",$C$1,,"all",,,,"T")/100,"") -> -0.002592912705 | J26: 0.002592912705 | K26: -0.002592912705 | L26: =IF(G26="","",RTD("cqg.rtd",,"ContractData",G26,"LongDescription",,"T")) -> Mexican Peso (Globex), Dec 20
B27: ='Symbols (2)'!B27 -> F.DD? | C27: =IFERROR(RTD("cqg.rtd",,"StudyData",B27, "PCB","BaseType=Index,Price=1000,Index=1,Date=12/30/2016", "Close",$C$1,,"all",,,,"T")/100,"") -> 0.01312997878 | D27: =RANK($C27,$C$2:C$31)+COUNTIF($C$2:C27,C27)-1 -> 2 | E27: F.DD? | F27: 26 | G27: F.PIL? | H27: =IFERROR( RTD("cqg.rtd",,"StudyData",G27, "PCB","BaseType=Index,Price=1000,Index=1,Date=12/30/2016", "Close",$C$1,,"all",,,,"T")/100,"") -> -0.002698215027 | J27: 0.002698215027 | K27: -0.002698215027 | L27: =IF(G27="","",RTD("cqg.rtd",,"ContractData",G27,"LongDescription",,"T")) -> CAC40, Oct 20
B28: ='Symbols (2)'!B28 -> F.DSX? | C28: =IFERROR(RTD("cqg.rtd",,"StudyData",B28, "PCB","BaseType=Index,Price=1000,Index=1,Date=12/30/2016", "Close",$C$1,,"all",,,,"T")/100,"") -> 0.01114294811 | D28: =RANK($C28,$C$2:C$31)+COUNTIF($C$2:C28,C28)-1 -> 3 | E28: F.DSX? | F28: 27 | G28: F.EU6? | H28: =IFERROR( RTD("cqg.rtd",,"StudyData",G28, "PCB","BaseType=Index,Price=1000,Index=1,Date=12/30/2016", "Close",$C$1,,"all",,,,"T")/100,"") -> -0.002802428772 | J28: 0.002802428772 | K28: -0.002802428772 | L28: =IF(G28="","",RTD("cqg.rtd",,"ContractData",G28,"LongDescription",,"T")) -> Euro FX (Globex), Dec 20
B29: ='Symbols (2)'!B29 -> F.QFA? | C29: =IFERROR(RTD("cqg.rtd",,"StudyData",B29, "PCB","BaseType=Index,Price=1000,Index=1,Date=12/30/2016", "Close",$C$1,,"all",,,,"T")/100,"") -> 0.005345749267 | D29: =RANK($C29,$C$2:C$31)+COUNTIF($C$2:C29,C29)-1 -> 7 | E29: F.QFA? | F29: 28 | G29: F.SF6? | H29: =IFERROR( RTD("cqg.rtd",,"StudyData",G29, "PCB","BaseType=Index,Price=1000,Index=1,Date=12/30/2016", "Close",$C$1,,"all",,,,"T")/100,"") -> -0.003469369123 | J29: 0.003469369123 | K29: -0.003469369123 | L29: =IF(G29="","",RTD("cqg.rtd",,"ContractData",G29,"LongDescription",,"T")) -> Swiss Franc (Globex), Dec 20
B30: ='Symbols (2)'!B30 -> F.PIL? | C30: =IFERROR(RTD("cqg.rtd",,"StudyData",B30, "PCB","BaseType=Index,Price=1000,Index=1,Date=12/30/2016", "Close",$C$1,,"all",,,,"T")/100,"") -> -0.002698215027 | D30: =RANK($C30,$C$2:C$31)+COUNTIF($C$2:C30,C30)-1 -> 26 | E30: F.PIL? | F30: 29 | G30: F.BP6? | H30: =IFERROR( RTD("cqg.rtd",,"StudyData",G30, "PCB","BaseType=Index,Price=1000,Index=1,Date=12/30/2016", "Close",$C$1,,"all",,,,"T")/100,"") -> -0.00375 | J30: 0.00375 | K30: -0.00375 | L30: =IF(G30="","",RTD("cqg.rtd",,"ContractData",G30,"LongDescription",,"T")) -> British Pound (Globex), Dec 20
B31: ='Symbols (2)'!B31 -> F.NKD? | C31: =IFERROR(RTD("cqg.rtd",,"StudyData",B31, "PCB","BaseType=Index,Price=1000,Index=1,Date=12/30/2016", "Close",$C$1,,"all",,,,"T")/100,"") -> -0.002406475607 | D31: =RANK($C31,$C$2:C$31)+COUNTIF($C$2:C31,C31)-1 -> 24 | E31: F.NKD? | F31: 30 | G31: F.PLE? | H31: =IFERROR( RTD("cqg.rtd",,"StudyData",G31, "PCB","BaseType=Index,Price=1000,Index=1,Date=12/30/2016", "Close",$C$1,,"all",,,,"T")/100,"") -> -0.008788951033 | J31: 0.008788951033 | K31: -0.008788951033 | L31: =IF(G31="","",RTD("cqg.rtd",,"ContractData",G31,"LongDescription",,"T")) -> Platinum (Globex), Oct 20

Sheet Weekly (2) (hidden)
C1: ="A"&'Symbols (2)'!F2 -> AW
B2: ='Symbols (2)'!B2 -> F.DXE? | C2: =IFERROR(RTD("cqg.rtd",,"StudyData",B2, "PCB","BaseType=Index,Price=1000,Index=1,Date=12/30/2016", "Close",$C$1,,"all",,,,"T")/100,"") -> 0.01025260349 | D2: =RANK($C2,$C$2:C$31)+COUNTIF($C$2:C2,C2)-1 -> 2 | E2: =B2 -> F.DXE? | F2: 1 | G2: =IFERROR(VLOOKUP($F2,$D$2:$E$31,2,FALSE),"") -> F.HE | H2: =IFERROR( RTD("cqg.rtd",,"StudyData",G2, "PCB","BaseType=Index,Price=1000,Index=1,Date=12/30/2016", "Close",$C$1,,"all",,,,"T")/100,"") -> 0.01298701299 | I2: =IF(H2<0,"",H2) -> 0.01298701299 | J2: =IF(H2>=0,"",-H2) ->  | K2: =IF(J2="","",H2) ->  | L2: =IF(G2="","",RTD("cqg.rtd",,"ContractData",G2,"LongDescription",,"T")) -> Lean Hogs (Globex), Dec 20
B3: ='Symbols (2)'!B3 -> F.EU6? | C3: =IFERROR(RTD("cqg.rtd",,"StudyData",B3, "PCB","BaseType=Index,Price=1000,Index=1,Date=12/30/2016", "Close",$C$1,,"all",,,,"T")/100,"") -> -0.01107461681 | D3: =RANK($C3,$C$2:C$31)+COUNTIF($C$2:C3,C3)-1 -> 9 | E3: =B3 -> F.EU6? | F3: =F2+1 -> 2 | G3: =IFERROR(VLOOKUP($F3,$D$2:$E$31,2,FALSE),"") -> F.DXE? | H3: =IFERROR( RTD("cqg.rtd",,"StudyData",G3, "PCB","BaseType=Index,Price=1000,Index=1,Date=12/30/2016", "Close",$C$1,,"all",,,,"T")/100,"") -> 0.01025260349 | I3: =IF(H3<0,"",H3) -> 0.01025260349 | J3: =IF(H3>=0,"",-H3) ->  | K3: =IF(J3="","",H3) ->  | L3: =IF(G3="","",RTD("cqg.rtd",,"ContractData",G3,"LongDescription",,"T")) -> Dollar Index (ICE), Dec 20
B4: ='Symbols (2)'!B4 -> F.JY6? | C4: =IFERROR(RTD("cqg.rtd",,"StudyData",B4, "PCB","BaseType=Index,Price=1000,Index=1,Date=12/30/2016", "Close",$C$1,,"all",,,,"T")/100,"") -> -0.003916244583 | D4: =RANK($C4,$C$2:C$31)+COUNTIF($C$2:C4,C4)-1 -> 5 | E4: F.JY6? | F4: =F3+1 -> 3 | G4: F.ENQ? | H4: =IFERROR( RTD("cqg.rtd",,"StudyData",G4, "PCB","BaseType=Index,Price=1000,Index=1,Date=12/30/2016", "Close",$C$1,,"all",,,,"T")/100,"") -> 0.00922028004 | I4: 0.00922028004 | L4: =IF(G4="","",RTD("cqg.rtd",,"ContractData",G4,"LongDescription",,"T")) -> E-mini NASDAQ-100, Dec 20
B5: ='Symbols (2)'!B5 -> F.BP6? | C5: =IFERROR(RTD("cqg.rtd",,"StudyData",B5, "PCB","BaseType=Index,Price=1000,Index=1,Date=12/30/2016", "Close",$C$1,,"all",,,,"T")/100,"") -> -0.01399520606 | D5: =RANK($C5,$C$2:C$31)+COUNTIF($C$2:C5,C5)-1 -> 11 | E5: F.BP6? | F5: 4 | G5: F.TYA? | H5: =IFERROR( RTD("cqg.rtd",,"StudyData",G5, "PCB","BaseType=Index,Price=1000,Index=1,Date=12/30/2016", "Close",$C$1,,"all",,,,"T")/100,"") -> 0.001008742434 | I5: 0.001008742434 | L5: =IF(G5="","",RTD("cqg.rtd",,"ContractData",G5,"LongDescription",,"T")) -> 10yr US Treasury Notes (Globex), Dec 20
B6: ='Symbols (2)'!B6 -> F.CA6? | C6: =IFERROR(RTD("cqg.rtd",,"StudyData",B6, "PCB","BaseType=Index,Price=1000,Index=1,Date=12/30/2016", "Close",$C$1,,"all",,,,"T")/100,"") -> -0.008575197889 | D6: =RANK($C6,$C$2:C$31)+COUNTIF($C$2:C6,C6)-1 -> 6 | E6: F.CA6? | F6: 5 | G6: F.JY6? | H6: =IFERROR( RTD("cqg.rtd",,"StudyData",G6, "PCB","BaseType=Index,Price=1000,Index=1,Date=12/30/2016", "Close",$C$1,,"all",,,,"T")/100,"") -> -0.003916244583 | J6: 0.003916244583 | K6: -0.003916244583 | L6: =IF(G6="","",RTD("cqg.rtd",,"ContractData",G6,"LongDescription",,"T")) -> Japanese Yen (Globex), Dec 20
B7: ='Symbols (2)'!B7 -> F.SF6? | C7: =IFERROR(RTD("cqg.rtd",,"StudyData",B7, "PCB","BaseType=Index,Price=1000,Index=1,Date=12/30/2016", "Close",$C$1,,"all",,,,"T")/100,"") -> -0.009078529278 | D7: =RANK($C7,$C$2:C$31)+COUNTIF($C$2:C7,C7)-1 -> 7 | E7: F.SF6? | F7: 6 | G7: F.CA6? | H7: =IFERROR( RTD("cqg.rtd",,"StudyData",G7, "PCB","BaseType=Index,Price=1000,Index=1,Date=12/30/2016", "Close",$C$1,,"all",,,,"T")/100,"") -> -0.008575197889 | J7: 0.008575197889 | K7: -0.008575197889 | L7: =IF(G7="","",RTD("cqg.rtd",,"ContractData",G7,"LongDescription",,"T")) -> Canadian Dollar (Globex), Dec 20
B8: ='Symbols (2)'!B8 -> F.DA6? | C8: =IFERROR(RTD("cqg.rtd",,"StudyData",B8, "PCB","BaseType=Index,Price=1000,Index=1,Date=12/30/2016", "Close",$C$1,,"all",,,,"T")/100,"") -> -0.01438159156 | D8: =RANK($C8,$C$2:C$31)+COUNTIF($C$2:C8,C8)-1 -> 12 | E8: F.DA6? | F8: 7 | G8: F.SF6? | H8: =IFERROR( RTD("cqg.rtd",,"StudyData",G8, "PCB","BaseType=Index,Price=1000,Index=1,Date=12/30/2016", "Close",$C$1,,"all",,,,"T")/100,"") -> -0.009078529278 | J8: 0.009078529278 | K8: -0.009078529278 | L8: =IF(G8="","",RTD("cqg.rtd",,"ContractData",G8,"LongDescription",,"T")) -> Swiss Franc (Globex), Dec 20
B9: ='Symbols (2)'!B9 -> F.NE6? | C9: =IFERROR(RTD("cqg.rtd",,"StudyData",B9, "PCB","BaseType=Index,Price=1000,Index=1,Date=12/30/2016", "Close",$C$1,,"all",,,,"T")/100,"") -> -0.01802866854 | D9: =RANK($C9,$C$2:C$31)+COUNTIF($C$2:C9,C9)-1 -> 16 | E9: F.NE6? | F9: 8 | G9: F.EP? | H9: =IFERROR( RTD("cqg.rtd",,"StudyData",G9, "PCB","BaseType=Index,Price=1000,Index=1,Date=12/30/2016", "Close",$C$1,,"all",,,,"T")/100,"") -> -0.009800226159 | J9: 0.009800226159 | K9: -0.009800226159 | L9: =IF(G9="","",RTD("cqg.rtd",,"ContractData",G9,"LongDescription",,"T")) -> E-Mini S&P 500, Dec 20
B10: ='Symbols (2)'!B10 -> F.MX6? | C10: =IFERROR(RTD("cqg.rtd",,"StudyData",B10, "PCB","BaseType=Index,Price=1000,Index=1,Date=12/30/2016", "Close",$C$1,,"all",,,,"T")/100,"") -> -0.0164074153 | D10: =RANK($C10,$C$2:C$31)+COUNTIF($C$2:C10,C10)-1 -> 15 | E10: F.MX6? | F10: 9 | G10: F.EU6? | H10: =IFERROR( RTD("cqg.rtd",,"StudyData",G10, "PCB","BaseType=Index,Price=1000,Index=1,Date=12/30/2016", "Close",$C$1,,"all",,,,"T")/100,"") -> -0.01107461681 | J10: 0.01107461681 | K10: -0.01107461681 | L10: =IF(G10="","",RTD("cqg.rtd",,"ContractData",G10,"LongDescription",,"T")) -> Euro FX (Globex), Dec 20
B11: ='Symbols (2)'!B11 -> F.GCE? | C11: =IFERROR(RTD("cqg.rtd",,"StudyData",B11, "PCB","BaseType=Index,Price=1000,Index=1,Date=12/30/2016", "Close",$C$1,,"all",,,,"T")/100,"") -> -0.02538096937 | D11: =RANK($C11,$C$2:C$31)+COUNTIF($C$2:C11,C11)-1 -> 20 | E11: F.GCE? | F11: 10 | G11: F.GLE | H11: =IFERROR( RTD("cqg.rtd",,"StudyData",G11, "PCB","BaseType=Index,Price=1000,Index=1,Date=12/30/2016", "Close",$C$1,,"all",,,,"T")/100,"") -> -0.01274027716 | J11: 0.01274027716 | K11: -0.01274027716 | L11: =IF(G11="","",RTD("cqg.rtd",,"ContractData",G11,"LongDescription",,"T")) -> Live Cattle (Globex), Dec 20
B12: ='Symbols (2)'!B12 -> F.SIE? | C12: =IFERROR(RTD("cqg.rtd",,"StudyData",B12, "PCB","BaseType=Index,Price=1000,Index=1,Date=12/30/2016", "Close",$C$1,,"all",,,,"T")/100,"") -> -0.09598584541 | D12: =RANK($C12,$C$2:C$31)+COUNTIF($C$2:C12,C12)-1 -> 30 | E12: F.SIE? | F12: 11 | G12: F.BP6? | H12: =IFERROR( RTD("cqg.rtd",,"StudyData",G12, "PCB","BaseType=Index,Price=1000,Index=1,Date=12/30/2016", "Close",$C$1,,"all",,,,"T")/100,"") -> -0.01399520606 | J12: 0.01399520606 | K12: -0.01399520606 | L12: =IF(G12="","",RTD("cqg.rtd",,"ContractData",G12,"LongDescription",,"T")) -> British Pound (Globex), Dec 20
B13: ='Symbols (2)'!B13 -> F.PLE? | C13: =IFERROR(RTD("cqg.rtd",,"StudyData",B13, "PCB","BaseType=Index,Price=1000,Index=1,Date=12/30/2016", "Close",$C$1,,"all",,,,"T")/100,"") -> -0.0746936601 | D13: =RANK($C13,$C$2:C$31)+COUNTIF($C$2:C13,C13)-1 -> 29 | E13: F.PLE? | F13: 12 | G13: F.DA6? | H13: =IFERROR( RTD("cqg.rtd",,"StudyData",G13, "PCB","BaseType=Index,Price=1000,Index=1,Date=12/30/2016", "Close",$C$1,,"all",,,,"T")/100,"") -> -0.01438159156 | J13: 0.01438159156 | K13: -0.01438159156 | L13: =IF(G13="","",RTD("cqg.rtd",,"ContractData",G13,"LongDescription",,"T")) -> Australian Dollar (Globex), Dec 20
B14: ='Symbols (2)'!B14 -> F.TYA? | C14: =IFERROR(RTD("cqg.rtd",,"StudyData",B14, "PCB","BaseType=Index,Price=1000,Index=1,Date=12/30/2016", "Close",$C$1,,"all",,,,"T")/100,"") -> 0.001008742434 | D14: =RANK($C14,$C$2:C$31)+COUNTIF($C$2:C14,C14)-1 -> 4 | E14: F.TYA? | F14: 13 | G14: F.NKD? | H14: =IFERROR( RTD("cqg.rtd",,"StudyData",G14, "PCB","BaseType=Index,Price=1000,Index=1,Date=12/30/2016", "Close",$C$1,,"all",,,,"T")/100,"") -> -0.01533146189 | J14: 0.01533146189 | K14: -0.01533146189 | L14: =IF(G14="","",RTD("cqg.rtd",,"ContractData",G14,"LongDescription",,"T")) -> Nikkei 225 (Globex), Dec 20
B15: ='Symbols (2)'!B15 -> F.CLE? | C15: =IFERROR(RTD("cqg.rtd",,"StudyData",B15, "PCB","BaseType=Index,Price=1000,Index=1,Date=12/30/2016", "Close",$C$1,,"all",,,,"T")/100,"") -> -0.03339787028 | D15: =RANK($C15,$C$2:C$31)+COUNTIF($C$2:C15,C15)-1 -> 25 | E15: F.CLE? | F15: 14 | G15: F.ZSE | H15: =IFERROR( RTD("cqg.rtd",,"StudyData",G15, "PCB","BaseType=Index,Price=1000,Index=1,Date=12/30/2016", "Close",$C$1,,"all",,,,"T")/100,"") -> -0.01557259224 | J15: 0.01557259224 | K15: -0.01557259224 | L15: =IF(G15="","",RTD("cqg.rtd",,"ContractData",G15,"LongDescription",,"T")) -> Soybeans (Globex), Nov 20
B16: ='Symbols (2)'!B16 -> F.HOE? | C16: =IFERROR(RTD("cqg.rtd",,"StudyData",B16, "PCB","BaseType=Index,Price=1000,Index=1,Date=12/30/2016", "Close",$C$1,,"all",,,,"T")/100,"") -> -0.03114754098 | D16: =RANK($C16,$C$2:C$31)+COUNTIF($C$2:C16,C16)-1 -> 22 | E16: F.HOE? | F16: 15 | G16: F.MX6? | H16: =IFERROR( RTD("cqg.rtd",,"StudyData",G16, "PCB","BaseType=Index,Price=1000,Index=1,Date=12/30/2016", "Close",$C$1,,"all",,,,"T")/100,"") -> -0.0164074153 | J16: 0.0164074153 | K16: -0.0164074153 | L16: =IF(G16="","",RTD("cqg.rtd",,"ContractData",G16,"LongDescription",,"T")) -> Mexican Peso (Globex), Dec 20
B17: ='Symbols (2)'!B17 -> F.RBE? | C17: =IFERROR(RTD("cqg.rtd",,"StudyData",B17, "PCB","BaseType=Index,Price=1000,Index=1,Date=12/30/2016", "Close",$C$1,,"all",,,,"T")/100,"") -> -0.06647258612 | D17: =RANK($C17,$C$2:C$31)+COUNTIF($C$2:C17,C17)-1 -> 28 | E17: F.RBE? | F17: 16 | G17: F.NE6? | H17: =IFERROR( RTD("cqg.rtd",,"StudyData",G17, "PCB","BaseType=Index,Price=1000,Index=1,Date=12/30/2016", "Close",$C$1,,"all",,,,"T")/100,"") -> -0.01802866854 | J17: 0.01802866854 | K17: -0.01802866854 | L17: =IF(G17="","",RTD("cqg.rtd",,"ContractData",G17,"LongDescription",,"T")) -> New Zealand Dollar (Globex), Dec 20
B18: ='Symbols (2)'!B18 -> F.ZSE | C18: =IFERROR(RTD("cqg.rtd",,"StudyData",B18, "PCB","BaseType=Index,Price=1000,Index=1,Date=12/30/2016", "Close",$C$1,,"all",,,,"T")/100,"") -> -0.01557259224 | D18: =RANK($C18,$C$2:C$31)+COUNTIF($C$2:C18,C18)-1 -> 14 | E18: F.ZSE | F18: 17 | G18: F.YM? | H18: =IFERROR( RTD("cqg.rtd",,"StudyData",G18, "PCB","BaseType=Index,Price=1000,Index=1,Date=12/30/2016", "Close",$C$1,,"all",,,,"T")/100,"") -> -0.0202883849 | J18: 0.0202883849 | K18: -0.0202883849 | L18: =IF(G18="","",RTD("cqg.rtd",,"ContractData",G18,"LongDescription",,"T")) -> E-mini Dow ($5), Dec 20
B19: ='Symbols (2)'!B19 -> F.ZWA | C19: =IFERROR(RTD("cqg.rtd",,"StudyData",B19, "PCB","BaseType=Index,Price=1000,Index=1,Date=12/30/2016", "Close",$C$1,,"all",,,,"T")/100,"") -> -0.02565217391 | D19: =RANK($C19,$C$2:C$31)+COUNTIF($C$2:C19,C19)-1 -> 21 | E19: F.ZWA | F19: 18 | G19: F.QFA? | H19: =IFERROR( RTD("cqg.rtd",,"StudyData",G19, "PCB","BaseType=Index,Price=1000,Index=1,Date=12/30/2016", "Close",$C$1,,"all",,,,"T")/100,"") -> -0.02328698274 | J19: 0.02328698274 | K19: -0.02328698274 | L19: =IF(G19="","",RTD("cqg.rtd",,"ContractData",G19,"LongDescription",,"T")) -> FTSE 100 - Stnd Index, Dec 20
B20: ='Symbols (2)'!B20 -> F.ZCE | C20: =IFERROR(RTD("cqg.rtd",,"StudyData",B20, "PCB","BaseType=Index,Price=1000,Index=1,Date=12/30/2016", "Close",$C$1,,"all",,,,"T")/100,"") -> -0.02443857332 | D20: =RANK($C20,$C$2:C$31)+COUNTIF($C$2:C20,C20)-1 -> 19 | E20: F.ZCE | F20: 19 | G20: F.ZCE | H20: =IFERROR( RTD("cqg.rtd",,"StudyData",G20, "PCB","BaseType=Index,Price=1000,Index=1,Date=12/30/2016", "Close",$C$1,,"all",,,,"T")/100,"") -> -0.02443857332 | J20: 0.02443857332 | K20: -0.02443857332 | L20: =IF(G20="","",RTD("cqg.rtd",,"ContractData",G20,"LongDescription",,"T")) -> Corn (Globex), Dec 20
B21: ='Symbols (2)'!B21 -> F.GLE | C21: =IFERROR(RTD("cqg.rtd",,"StudyData",B21, "PCB","BaseType=Index,Price=1000,Index=1,Date=12/30/2016", "Close",$C$1,,"all",,,,"T")/100,"") -> -0.01274027716 | D21: =RANK($C21,$C$2:C$31)+COUNTIF($C$2:C21,C21)-1 -> 10 | E21: F.GLE | F21: 20 | G21: F.GCE? | H21: =IFERROR( RTD("cqg.rtd",,"StudyData",G21, "PCB","BaseType=Index,Price=1000,Index=1,Date=12/30/2016", "Close",$C$1,,"all",,,,"T")/100,"") -> -0.02538096937 | J21: 0.02538096937 | K21: -0.02538096937 | L21: =IF(G21="","",RTD("cqg.rtd",,"ContractData",G21,"LongDescription",,"T")) -> Gold (Globex), Dec 20
B22: ='Symbols (2)'!B22 -> F.HE | C22: =IFERROR(RTD("cqg.rtd",,"StudyData",B22, "PCB","BaseType=Index,Price=1000,Index=1,Date=12/30/2016", "Close",$C$1,,"all",,,,"T")/100,"") -> 0.01298701299 | D22: =RANK($C22,$C$2:C$31)+COUNTIF($C$2:C22,C22)-1 -> 1 | E22: F.HE | F22: 21 | G22: F.ZWA | H22: =IFERROR( RTD("cqg.rtd",,"StudyData",G22, "PCB","BaseType=Index,Price=1000,Index=1,Date=12/30/2016", "Close",$C$1,,"all",,,,"T")/100,"") -> -0.02565217391 | J22: 0.02565217391 | K22: -0.02565217391 | L22: =IF(G22="","",RTD("cqg.rtd",,"ContractData",G22,"LongDescription",,"T")) -> Wheat (Globex), Dec 20
B23: ='Symbols (2)'!B23 -> F.YM? | C23: =IFERROR(RTD("cqg.rtd",,"StudyData",B23, "PCB","BaseType=Index,Price=1000,Index=1,Date=12/30/2016", "Close",$C$1,,"all",,,,"T")/100,"") -> -0.0202883849 | D23: =RANK($C23,$C$2:C$31)+COUNTIF($C$2:C23,C23)-1 -> 17 | E23: F.YM? | F23: 22 | G23: F.HOE? | H23: =IFERROR( RTD("cqg.rtd",,"StudyData",G23, "PCB","BaseType=Index,Price=1000,Index=1,Date=12/30/2016", "Close",$C$1,,"all",,,,"T")/100,"") -> -0.03114754098 | J23: 0.03114754098 | K23: -0.03114754098 | L23: =IF(G23="","",RTD("cqg.rtd",,"ContractData",G23,"LongDescription",,"T")) -> NY Harbor ULSD, Nov 20
B24: ='Symbols (2)'!B24 -> F.EP? | C24: =IFERROR(RTD("cqg.rtd",,"StudyData",B24, "PCB","BaseType=Index,Price=1000,Index=1,Date=12/30/2016", "Close",$C$1,,"all",,,,"T")/100,"") -> -0.009800226159 | D24: =RANK($C24,$C$2:C$31)+COUNTIF($C$2:C24,C24)-1 -> 8 | E24: F.EP? | F24: 23 | G24: F.PIL? | H24: =IFERROR( RTD("cqg.rtd",,"StudyData",G24, "PCB","BaseType=Index,Price=1000,Index=1,Date=12/30/2016", "Close",$C$1,,"all",,,,"T")/100,"") -> -0.03144527313 | J24: 0.03144527313 | K24: -0.03144527313 | L24: =IF(G24="","",RTD("cqg.rtd",,"ContractData",G24,"LongDescription",,"T")) -> CAC40, Oct 20
B25: ='Symbols (2)'!B25 -> F.ENQ? | C25: =IFERROR(RTD("cqg.rtd",,"StudyData",B25, "PCB","BaseType=Index,Price=1000,Index=1,Date=12/30/2016", "Close",$C$1,,"all",,,,"T")/100,"") -> 0.00922028004 | D25: =RANK($C25,$C$2:C$31)+COUNTIF($C$2:C25,C25)-1 -> 3 | E25: F.ENQ? | F25: 24 | G25: F.DSX? | H25: =IFERROR( RTD("cqg.rtd",,"StudyData",G25, "PCB","BaseType=Index,Price=1000,Index=1,Date=12/30/2016", "Close",$C$1,,"all",,,,"T")/100,"") -> -0.03170731707 | J25: 0.03170731707 | K25: -0.03170731707 | L25: =IF(G25="","",RTD("cqg.rtd",,"ContractData",G25,"LongDescription",,"T")) -> Euro STOXX 50, Dec 20
B26: ='Symbols (2)'!B26 -> F.RTY? | C26: =IFERROR(RTD("cqg.rtd",,"StudyData",B26, "PCB","BaseType=Index,Price=1000,Index=1,Date=12/30/2016", "Close",$C$1,,"all",,,,"T")/100,"") -> -0.03568637666 | D26: =RANK($C26,$C$2:C$31)+COUNTIF($C$2:C26,C26)-1 -> 26 | E26: F.RTY? | F26: 25 | G26: F.CLE? | H26: =IFERROR( RTD("cqg.rtd",,"StudyData",G26, "PCB","BaseType=Index,Price=1000,Index=1,Date=12/30/2016", "Close",$C$1,,"all",,,,"T")/100,"") -> -0.03339787028 | J26: 0.03339787028 | K26: -0.03339787028 | L26: =IF(G26="","",RTD("cqg.rtd",,"ContractData",G26,"LongDescription",,"T")) -> Crude Light (Globex), Nov 20
B27: ='Symbols (2)'!B27 -> F.DD? | C27: =IFERROR(RTD("cqg.rtd",,"StudyData",B27, "PCB","BaseType=Index,Price=1000,Index=1,Date=12/30/2016", "Close",$C$1,,"all",,,,"T")/100,"") -> -0.03713144379 | D27: =RANK($C27,$C$2:C$31)+COUNTIF($C$2:C27,C27)-1 -> 27 | E27: F.DD? | F27: 26 | G27: F.RTY? | H27: =IFERROR( RTD("cqg.rtd",,"StudyData",G27, "PCB","BaseType=Index,Price=1000,Index=1,Date=12/30/2016", "Close",$C$1,,"all",,,,"T")/100,"") -> -0.03568637666 | J27: 0.03568637666 | K27: -0.03568637666 | L27: =IF(G27="","",RTD("cqg.rtd",,"ContractData",G27,"LongDescription",,"T")) -> E-mini Russell 2000, Dec 20
B28: ='Symbols (2)'!B28 -> F.DSX? | C28: =IFERROR(RTD("cqg.rtd",,"StudyData",B28, "PCB","BaseType=Index,Price=1000,Index=1,Date=12/30/2016", "Close",$C$1,,"all",,,,"T")/100,"") -> -0.03170731707 | D28: =RANK($C28,$C$2:C$31)+COUNTIF($C$2:C28,C28)-1 -> 24 | E28: F.DSX? | F28: 27 | G28: F.DD? | H28: =IFERROR( RTD("cqg.rtd",,"StudyData",G28, "PCB","BaseType=Index,Price=1000,Index=1,Date=12/30/2016", "Close",$C$1,,"all",,,,"T")/100,"") -> -0.03713144379 | J28: 0.03713144379 | K28: -0.03713144379 | L28: =IF(G28="","",RTD("cqg.rtd",,"ContractData",G28,"LongDescription",,"T")) -> DAX Index, Dec 20
B29: ='Symbols (2)'!B29 -> F.QFA? | C29: =IFERROR(RTD("cqg.rtd",,"StudyData",B29, "PCB","BaseType=Index,Price=1000,Index=1,Date=12/30/2016", "Close",$C$1,,"all",,,,"T")/100,"") -> -0.02328698274 | D29: =RANK($C29,$C$2:C$31)+COUNTIF($C$2:C29,C29)-1 -> 18 | E29: F.QFA? | F29: 28 | G29: F.RBE? | H29: =IFERROR( RTD("cqg.rtd",,"StudyData",G29, "PCB","BaseType=Index,Price=1000,Index=1,Date=12/30/2016", "Close",$C$1,,"all",,,,"T")/100,"") -> -0.06647258612 | J29: 0.06647258612 | K29: -0.06647258612 | L29: =IF(G29="","",RTD("cqg.rtd",,"ContractData",G29,"LongDescription",,"T")) -> RBOB Gasoline (Globex), Nov 20
B30: ='Symbols (2)'!B30 -> F.PIL? | C30: =IFERROR(RTD("cqg.rtd",,"StudyData",B30, "PCB","BaseType=Index,Price=1000,Index=1,Date=12/30/2016", "Close",$C$1,,"all",,,,"T")/100,"") -> -0.03144527313 | D30: =RANK($C30,$C$2:C$31)+COUNTIF($C$2:C30,C30)-1 -> 23 | E30: F.PIL? | F30: 29 | G30: F.PLE? | H30: =IFERROR( RTD("cqg.rtd",,"StudyData",G30, "PCB","BaseType=Index,Price=1000,Index=1,Date=12/30/2016", "Close",$C$1,,"all",,,,"T")/100,"") -> -0.0746936601 | J30: 0.0746936601 | K30: -0.0746936601 | L30: =IF(G30="","",RTD("cqg.rtd",,"ContractData",G30,"LongDescription",,"T")) -> Platinum (Globex), Oct 20
B31: ='Symbols (2)'!B31 -> F.NKD? | C31: =IFERROR(RTD("cqg.rtd",,"StudyData",B31, "PCB","BaseType=Index,Price=1000,Index=1,Date=12/30/2016", "Close",$C$1,,"all",,,,"T")/100,"") -> -0.01533146189 | D31: =RANK($C31,$C$2:C$31)+COUNTIF($C$2:C31,C31)-1 -> 13 | E31: F.NKD? | F31: 30 | G31: F.SIE? | H31: =IFERROR( RTD("cqg.rtd",,"StudyData",G31, "PCB","BaseType=Index,Price=1000,Index=1,Date=12/30/2016", "Close",$C$1,,"all",,,,"T")/100,"") -> -0.09598584541 | J31: 0.09598584541 | K31: -0.09598584541 | L31: =IF(G31="","",RTD("cqg.rtd",,"ContractData",G31,"LongDescription",,"T")) -> Silver (Globex), Dec 20

Sheet Monthly (2) (hidden)
C1: ="A"&'Symbols (2)'!G2 -> AM
B2: ='Symbols (2)'!B2 -> F.DXE? | C2: =IFERROR(RTD("cqg.rtd",,"StudyData",B2, "PCB","BaseType=Index,Price=1000,Index=1,Date=12/30/2016", "Close",$C$1,,"all",,,,"T")/100,"") -> 0.01925519098 | D2: =RANK($C2,$C$2:C$31)+COUNTIF($C$2:C2,C2)-1 -> 5 | E2: =B2 -> F.DXE? | F2: 1 | G2: =IFERROR(VLOOKUP($F2,$D$2:$E$31,2,FALSE),"") -> F.HE | H2: =IFERROR( RTD("cqg.rtd",,"StudyData",G2, "PCB","BaseType=Index,Price=1000,Index=1,Date=12/30/2016", "Close",$C$1,,"all",,,,"T")/100,"") -> 0.2005597015 | I2: =IF(H2<0,"",H2) -> 0.2005597015 | J2: =IF(H2>=0,"",-H2) ->  | K2: =IF(J2="","",H2) ->  | L2: =IF(G2="","",RTD("cqg.rtd",,"ContractData",G2,"LongDescription",,"T")) -> Lean Hogs (Globex), Dec 20
B3: ='Symbols (2)'!B3 -> F.EU6? | C3: =IFERROR(RTD("cqg.rtd",,"StudyData",B3, "PCB","BaseType=Index,Price=1000,Index=1,Date=12/30/2016", "Close",$C$1,,"all",,,,"T")/100,"") -> -0.01649985343 | D3: =RANK($C3,$C$2:C$31)+COUNTIF($C$2:C3,C3)-1 -> 13 | E3: =B3 -> F.EU6? | F3: =F2+1 -> 2 | G3: =IFERROR(VLOOKUP($F3,$D$2:$E$31,2,FALSE),"") -> F.ZSE | H3: =IFERROR( RTD("cqg.rtd",,"StudyData",G3, "PCB","BaseType=Index,Price=1000,Index=1,Date=12/30/2016", "Close",$C$1,,"all",,,,"T")/100,"") -> 0.07734661772 | I3: =IF(H3<0,"",H3) -> 0.07734661772 | J3: =IF(H3>=0,"",-H3) ->  | K3: =IF(J3="","",H3) ->  | L3: =IF(G3="","",RTD("cqg.rtd",,"ContractData",G3,"LongDescription",,"T")) -> Soybeans (Globex), Nov 20
B4: ='Symbols (2)'!B4 -> F.JY6? | C4: =IFERROR(RTD("cqg.rtd",,"StudyData",B4, "PCB","BaseType=Index,Price=1000,Index=1,Date=12/30/2016", "Close",$C$1,,"all",,,,"T")/100,"") -> 0.009579253771 | D4: =RANK($C4,$C$2:C$31)+COUNTIF($C$2:C4,C4)-1 -> 8 | E4: F.JY6? | F4: =F3+1 -> 3 | G4: F.GLE | H4: =IFERROR( RTD("cqg.rtd",,"StudyData",G4, "PCB","BaseType=Index,Price=1000,Index=1,Date=12/30/2016", "Close",$C$1,,"all",,,,"T")/100,"") -> 0.04867046534 | I4: 0.04867046534 | L4: =IF(G4="","",RTD("cqg.rtd",,"ContractData",G4,"LongDescription",,"T")) -> Live Cattle (Globex), Dec 20
B5: ='Symbols (2)'!B5 -> F.BP6? | C5: =IFERROR(RTD("cqg.rtd",,"StudyData",B5, "PCB","BaseType=Index,Price=1000,Index=1,Date=12/30/2016", "Close",$C$1,,"all",,,,"T")/100,"") -> -0.04686448912 | D5: =RANK($C5,$C$2:C$31)+COUNTIF($C$2:C5,C5)-1 -> 21 | E5: F.BP6? | F5: 4 | G5: F.ZCE | H5: =IFERROR( RTD("cqg.rtd",,"StudyData",G5, "PCB","BaseType=Index,Price=1000,Index=1,Date=12/30/2016", "Close",$C$1,,"all",,,,"T")/100,"") -> 0.0321453529 | I5: 0.0321453529 | L5: =IF(G5="","",RTD("cqg.rtd",,"ContractData",G5,"LongDescription",,"T")) -> Corn (Globex), Dec 20
B6: ='Symbols (2)'!B6 -> F.CA6? | C6: =IFERROR(RTD("cqg.rtd",,"StudyData",B6, "PCB","BaseType=Index,Price=1000,Index=1,Date=12/30/2016", "Close",$C$1,,"all",,,,"T")/100,"") -> -0.02110199297 | D6: =RANK($C6,$C$2:C$31)+COUNTIF($C$2:C6,C6)-1 -> 15 | E6: F.CA6? | F6: 5 | G6: F.DXE? | H6: =IFERROR( RTD("cqg.rtd",,"StudyData",G6, "PCB","BaseType=Index,Price=1000,Index=1,Date=12/30/2016", "Close",$C$1,,"all",,,,"T")/100,"") -> 0.01925519098 | I6: 0.01925519098 | L6: =IF(G6="","",RTD("cqg.rtd",,"ContractData",G6,"LongDescription",,"T")) -> Dollar Index (ICE), Dec 20
B7: ='Symbols (2)'!B7 -> F.SF6? | C7: =IFERROR(RTD("cqg.rtd",,"StudyData",B7, "PCB","BaseType=Index,Price=1000,Index=1,Date=12/30/2016", "Close",$C$1,,"all",,,,"T")/100,"") -> -0.0144469526 | D7: =RANK($C7,$C$2:C$31)+COUNTIF($C$2:C7,C7)-1 -> 11 | E7: F.SF6? | F7: 6 | G7: F.ZWA | H7: =IFERROR( RTD("cqg.rtd",,"StudyData",G7, "PCB","BaseType=Index,Price=1000,Index=1,Date=12/30/2016", "Close",$C$1,,"all",,,,"T")/100,"") -> 0.01448619285 | I7: 0.01448619285 | L7: =IF(G7="","",RTD("cqg.rtd",,"ContractData",G7,"LongDescription",,"T")) -> Wheat (Globex), Dec 20
B8: ='Symbols (2)'!B8 -> F.DA6? | C8: =IFERROR(RTD("cqg.rtd",,"StudyData",B8, "PCB","BaseType=Index,Price=1000,Index=1,Date=12/30/2016", "Close",$C$1,,"all",,,,"T")/100,"") -> -0.02611990797 | D8: =RANK($C8,$C$2:C$31)+COUNTIF($C$2:C8,C8)-1 -> 17 | E8: F.DA6? | F8: 7 | G8: F.MX6? | H8: =IFERROR( RTD("cqg.rtd",,"StudyData",G8, "PCB","BaseType=Index,Price=1000,Index=1,Date=12/30/2016", "Close",$C$1,,"all",,,,"T")/100,"") -> 0.01183691363 | I8: 0.01183691363 | L8: =IF(G8="","",RTD("cqg.rtd",,"ContractData",G8,"LongDescription",,"T")) -> Mexican Peso (Globex), Dec 20
B9: ='Symbols (2)'!B9 -> F.NE6? | C9: =IFERROR(RTD("cqg.rtd",,"StudyData",B9, "PCB","BaseType=Index,Price=1000,Index=1,Date=12/30/2016", "Close",$C$1,,"all",,,,"T")/100,"") -> -0.01497183516 | D9: =RANK($C9,$C$2:C$31)+COUNTIF($C$2:C9,C9)-1 -> 12 | E9: F.NE6? | F9: 8 | G9: F.JY6? | H9: =IFERROR( RTD("cqg.rtd",,"StudyData",G9, "PCB","BaseType=Index,Price=1000,Index=1,Date=12/30/2016", "Close",$C$1,,"all",,,,"T")/100,"") -> 0.009579253771 | I9: 0.009579253771 | L9: =IF(G9="","",RTD("cqg.rtd",,"ContractData",G9,"LongDescription",,"T")) -> Japanese Yen (Globex), Dec 20
B10: ='Symbols (2)'!B10 -> F.MX6? | C10: =IFERROR(RTD("cqg.rtd",,"StudyData",B10, "PCB","BaseType=Index,Price=1000,Index=1,Date=12/30/2016", "Close",$C$1,,"all",,,,"T")/100,"") -> 0.01183691363 | D10: =RANK($C10,$C$2:C$31)+COUNTIF($C$2:C10,C10)-1 -> 7 | E10: F.MX6? | F10: 9 | G10: F.TYA? | H10: =IFERROR( RTD("cqg.rtd",,"StudyData",G10, "PCB","BaseType=Index,Price=1000,Index=1,Date=12/30/2016", "Close",$C$1,,"all",,,,"T")/100,"") -> 0.002131956912 | I10: 0.002131956912 | L10: =IF(G10="","",RTD("cqg.rtd",,"ContractData",G10,"LongDescription",,"T")) -> 10yr US Treasury Notes (Globex), Dec 20
B11: ='Symbols (2)'!B11 -> F.GCE? | C11: =IFERROR(RTD("cqg.rtd",,"StudyData",B11, "PCB","BaseType=Index,Price=1000,Index=1,Date=12/30/2016", "Close",$C$1,,"all",,,,"T")/100,"") -> -0.03350854139 | D11: =RANK($C11,$C$2:C$31)+COUNTIF($C$2:C11,C11)-1 -> 20 | E11: F.GCE? | F11: 10 | G11: F.NKD? | H11: =IFERROR( RTD("cqg.rtd",,"StudyData",G11, "PCB","BaseType=Index,Price=1000,Index=1,Date=12/30/2016", "Close",$C$1,,"all",,,,"T")/100,"") -> -0.01320060593 | J11: 0.01320060593 | K11: -0.01320060593 | L11: =IF(G11="","",RTD("cqg.rtd",,"ContractData",G11,"LongDescription",,"T")) -> Nikkei 225 (Globex), Dec 20
B12: ='Symbols (2)'!B12 -> F.SIE? | C12: =IFERROR(RTD("cqg.rtd",,"StudyData",B12, "PCB","BaseType=Index,Price=1000,Index=1,Date=12/30/2016", "Close",$C$1,,"all",,,,"T")/100,"") -> -0.142302581 | D12: =RANK($C12,$C$2:C$31)+COUNTIF($C$2:C12,C12)-1 -> 30 | E12: F.SIE? | F12: 11 | G12: F.SF6? | H12: =IFERROR( RTD("cqg.rtd",,"StudyData",G12, "PCB","BaseType=Index,Price=1000,Index=1,Date=12/30/2016", "Close",$C$1,,"all",,,,"T")/100,"") -> -0.0144469526 | J12: 0.0144469526 | K12: -0.0144469526 | L12: =IF(G12="","",RTD("cqg.rtd",,"ContractData",G12,"LongDescription",,"T")) -> Swiss Franc (Globex), Dec 20
B13: ='Symbols (2)'!B13 -> F.PLE? | C13: =IFERROR(RTD("cqg.rtd",,"StudyData",B13, "PCB","BaseType=Index,Price=1000,Index=1,Date=12/30/2016", "Close",$C$1,,"all",,,,"T")/100,"") -> -0.0741017166 | D13: =RANK($C13,$C$2:C$31)+COUNTIF($C$2:C13,C13)-1 -> 27 | E13: F.PLE? | F13: 12 | G13: F.NE6? | H13: =IFERROR( RTD("cqg.rtd",,"StudyData",G13, "PCB","BaseType=Index,Price=1000,Index=1,Date=12/30/2016", "Close",$C$1,,"all",,,,"T")/100,"") -> -0.01497183516 | J13: 0.01497183516 | K13: -0.01497183516 | L13: =IF(G13="","",RTD("cqg.rtd",,"ContractData",G13,"LongDescription",,"T")) -> New Zealand Dollar (Globex), Dec 20
B14: ='Symbols (2)'!B14 -> F.TYA? | C14: =IFERROR(RTD("cqg.rtd",,"StudyData",B14, "PCB","BaseType=Index,Price=1000,Index=1,Date=12/30/2016", "Close",$C$1,,"all",,,,"T")/100,"") -> 0.002131956912 | D14: =RANK($C14,$C$2:C$31)+COUNTIF($C$2:C14,C14)-1 -> 9 | E14: F.TYA? | F14: 13 | G14: F.EU6? | H14: =IFERROR( RTD("cqg.rtd",,"StudyData",G14, "PCB","BaseType=Index,Price=1000,Index=1,Date=12/30/2016", "Close",$C$1,,"all",,,,"T")/100,"") -> -0.01649985343 | J14: 0.01649985343 | K14: -0.01649985343 | L14: =IF(G14="","",RTD("cqg.rtd",,"ContractData",G14,"LongDescription",,"T")) -> Euro FX (Globex), Dec 20
B15: ='Symbols (2)'!B15 -> F.CLE? | C15: =IFERROR(RTD("cqg.rtd",,"StudyData",B15, "PCB","BaseType=Index,Price=1000,Index=1,Date=12/30/2016", "Close",$C$1,,"all",,,,"T")/100,"") -> -0.0626613471 | D15: =RANK($C15,$C$2:C$31)+COUNTIF($C$2:C15,C15)-1 -> 26 | E15: F.CLE? | F15: 14 | G15: F.DD? | H15: =IFERROR( RTD("cqg.rtd",,"StudyData",G15, "PCB","BaseType=Index,Price=1000,Index=1,Date=12/30/2016", "Close",$C$1,,"all",,,,"T")/100,"") -> -0.02100417763 | J15: 0.02100417763 | K15: -0.02100417763 | L15: =IF(G15="","",RTD("cqg.rtd",,"ContractData",G15,"LongDescription",,"T")) -> DAX Index, Dec 20
B16: ='Symbols (2)'!B16 -> F.HOE? | C16: =IFERROR(RTD("cqg.rtd",,"StudyData",B16, "PCB","BaseType=Index,Price=1000,Index=1,Date=12/30/2016", "Close",$C$1,,"all",,,,"T")/100,"") -> -0.07754867329 | D16: =RANK($C16,$C$2:C$31)+COUNTIF($C$2:C16,C16)-1 -> 28 | E16: F.HOE? | F16: 15 | G16: F.CA6? | H16: =IFERROR( RTD("cqg.rtd",,"StudyData",G16, "PCB","BaseType=Index,Price=1000,Index=1,Date=12/30/2016", "Close",$C$1,,"all",,,,"T")/100,"") -> -0.02110199297 | J16: 0.02110199297 | K16: -0.02110199297 | L16: =IF(G16="","",RTD("cqg.rtd",,"ContractData",G16,"LongDescription",,"T")) -> Canadian Dollar (Globex), Dec 20
B17: ='Symbols (2)'!B17 -> F.RBE? | C17: =IFERROR(RTD("cqg.rtd",,"StudyData",B17, "PCB","BaseType=Index,Price=1000,Index=1,Date=12/30/2016", "Close",$C$1,,"all",,,,"T")/100,"") -> -0.04885886133 | D17: =RANK($C17,$C$2:C$31)+COUNTIF($C$2:C17,C17)-1 -> 23 | E17: F.RBE? | F17: 16 | G17: F.QFA? | H17: =IFERROR( RTD("cqg.rtd",,"StudyData",G17, "PCB","BaseType=Index,Price=1000,Index=1,Date=12/30/2016", "Close",$C$1,,"all",,,,"T")/100,"") -> -0.02532809496 | J17: 0.02532809496 | K17: -0.02532809496 | L17: =IF(G17="","",RTD("cqg.rtd",,"ContractData",G17,"LongDescription",,"T")) -> FTSE 100 - Stnd Index, Dec 20
B18: ='Symbols (2)'!B18 -> F.ZSE | C18: =IFERROR(RTD("cqg.rtd",,"StudyData",B18, "PCB","BaseType=Index,Price=1000,Index=1,Date=12/30/2016", "Close",$C$1,,"all",,,,"T")/100,"") -> 0.07734661772 | D18: =RANK($C18,$C$2:C$31)+COUNTIF($C$2:C18,C18)-1 -> 2 | E18: F.ZSE | F18: 17 | G18: F.DA6? | H18: =IFERROR( RTD("cqg.rtd",,"StudyData",G18, "PCB","BaseType=Index,Price=1000,Index=1,Date=12/30/2016", "Close",$C$1,,"all",,,,"T")/100,"") -> -0.02611990797 | J18: 0.02611990797 | K18: -0.02611990797 | L18: =IF(G18="","",RTD("cqg.rtd",,"ContractData",G18,"LongDescription",,"T")) -> Australian Dollar (Globex), Dec 20
B19: ='Symbols (2)'!B19 -> F.ZWA | C19: =IFERROR(RTD("cqg.rtd",,"StudyData",B19, "PCB","BaseType=Index,Price=1000,Index=1,Date=12/30/2016", "Close",$C$1,,"all",,,,"T")/100,"") -> 0.01448619285 | D19: =RANK($C19,$C$2:C$31)+COUNTIF($C$2:C19,C19)-1 -> 6 | E19: F.ZWA | F19: 18 | G19: F.PIL? | H19: =IFERROR( RTD("cqg.rtd",,"StudyData",G19, "PCB","BaseType=Index,Price=1000,Index=1,Date=12/30/2016", "Close",$C$1,,"all",,,,"T")/100,"") -> -0.02673688475 | J19: 0.02673688475 | K19: -0.02673688475 | L19: =IF(G19="","",RTD("cqg.rtd",,"ContractData",G19,"LongDescription",,"T")) -> CAC40, Oct 20
B20: ='Symbols (2)'!B20 -> F.ZCE | C20: =IFERROR(RTD("cqg.rtd",,"StudyData",B20, "PCB","BaseType=Index,Price=1000,Index=1,Date=12/30/2016", "Close",$C$1,,"all",,,,"T")/100,"") -> 0.0321453529 | D20: =RANK($C20,$C$2:C$31)+COUNTIF($C$2:C20,C20)-1 -> 4 | E20: F.ZCE | F20: 19 | G20: F.DSX? | H20: =IFERROR( RTD("cqg.rtd",,"StudyData",G20, "PCB","BaseType=Index,Price=1000,Index=1,Date=12/30/2016", "Close",$C$1,,"all",,,,"T")/100,"") -> -0.02725880551 | J20: 0.02725880551 | K20: -0.02725880551 | L20: =IF(G20="","",RTD("cqg.rtd",,"ContractData",G20,"LongDescription",,"T")) -> Euro STOXX 50, Dec 20
B21: ='Symbols (2)'!B21 -> F.GLE | C21: =IFERROR(RTD("cqg.rtd",,"StudyData",B21, "PCB","BaseType=Index,Price=1000,Index=1,Date=12/30/2016", "Close",$C$1,,"all",,,,"T")/100,"") -> 0.04867046534 | D21: =RANK($C21,$C$2:C$31)+COUNTIF($C$2:C21,C21)-1 -> 3 | E21: F.GLE | F21: 20 | G21: F.GCE? | H21: =IFERROR( RTD("cqg.rtd",,"StudyData",G21, "PCB","BaseType=Index,Price=1000,Index=1,Date=12/30/2016", "Close",$C$1,,"all",,,,"T")/100,"") -> -0.03350854139 | J21: 0.03350854139 | K21: -0.03350854139 | L21: =IF(G21="","",RTD("cqg.rtd",,"ContractData",G21,"LongDescription",,"T")) -> Gold (Globex), Dec 20
B22: ='Symbols (2)'!B22 -> F.HE | C22: =IFERROR(RTD("cqg.rtd",,"StudyData",B22, "PCB","BaseType=Index,Price=1000,Index=1,Date=12/30/2016", "Close",$C$1,,"all",,,,"T")/100,"") -> 0.2005597015 | D22: =RANK($C22,$C$2:C$31)+COUNTIF($C$2:C22,C22)-1 -> 1 | E22: F.HE | F22: 21 | G22: F.BP6? | H22: =IFERROR( RTD("cqg.rtd",,"StudyData",G22, "PCB","BaseType=Index,Price=1000,Index=1,Date=12/30/2016", "Close",$C$1,,"all",,,,"T")/100,"") -> -0.04686448912 | J22: 0.04686448912 | K22: -0.04686448912 | L22: =IF(G22="","",RTD("cqg.rtd",,"ContractData",G22,"LongDescription",,"T")) -> British Pound (Globex), Dec 20
B23: ='Symbols (2)'!B23 -> F.YM? | C23: =IFERROR(RTD("cqg.rtd",,"StudyData",B23, "PCB","BaseType=Index,Price=1000,Index=1,Date=12/30/2016", "Close",$C$1,,"all",,,,"T")/100,"") -> -0.04835304054 | D23: =RANK($C23,$C$2:C$31)+COUNTIF($C$2:C23,C23)-1 -> 22 | E23: F.YM? | F23: 22 | G23: F.YM? | H23: =IFERROR( RTD("cqg.rtd",,"StudyData",G23, "PCB","BaseType=Index,Price=1000,Index=1,Date=12/30/2016", "Close",$C$1,,"all",,,,"T")/100,"") -> -0.04835304054 | J23: 0.04835304054 | K23: -0.04835304054 | L23: =IF(G23="","",RTD("cqg.rtd",,"ContractData",G23,"LongDescription",,"T")) -> E-mini Dow ($5), Dec 20
B24: ='Symbols (2)'!B24 -> F.EP? | C24: =IFERROR(RTD("cqg.rtd",,"StudyData",B24, "PCB","BaseType=Index,Price=1000,Index=1,Date=12/30/2016", "Close",$C$1,,"all",,,,"T")/100,"") -> -0.06151757645 | D24: =RANK($C24,$C$2:C$31)+COUNTIF($C$2:C24,C24)-1 -> 25 | E24: F.EP? | F24: 23 | G24: F.RBE? | H24: =IFERROR( RTD("cqg.rtd",,"StudyData",G24, "PCB","BaseType=Index,Price=1000,Index=1,Date=12/30/2016", "Close",$C$1,,"all",,,,"T")/100,"") -> -0.04885886133 | J24: 0.04885886133 | K24: -0.04885886133 | L24: =IF(G24="","",RTD("cqg.rtd",,"ContractData",G24,"LongDescription",,"T")) -> RBOB Gasoline (Globex), Nov 20
B25: ='Symbols (2)'!B25 -> F.ENQ? | C25: =IFERROR(RTD("cqg.rtd",,"StudyData",B25, "PCB","BaseType=Index,Price=1000,Index=1,Date=12/30/2016", "Close",$C$1,,"all",,,,"T")/100,"") -> -0.08966897804 | D25: =RANK($C25,$C$2:C$31)+COUNTIF($C$2:C25,C25)-1 -> 29 | E25: F.ENQ? | F25: 24 | G25: F.RTY? | H25: =IFERROR( RTD("cqg.rtd",,"StudyData",G25, "PCB","BaseType=Index,Price=1000,Index=1,Date=12/30/2016", "Close",$C$1,,"all",,,,"T")/100,"") -> -0.05155959777 | J25: 0.05155959777 | K25: -0.05155959777 | L25: =IF(G25="","",RTD("cqg.rtd",,"ContractData",G25,"LongDescription",,"T")) -> E-mini Russell 2000, Dec 20
B26: ='Symbols (2)'!B26 -> F.RTY? | C26: =IFERROR(RTD("cqg.rtd",,"StudyData",B26, "PCB","BaseType=Index,Price=1000,Index=1,Date=12/30/2016", "Close",$C$1,,"all",,,,"T")/100,"") -> -0.05155959777 | D26: =RANK($C26,$C$2:C$31)+COUNTIF($C$2:C26,C26)-1 -> 24 | E26: F.RTY? | F26: 25 | G26: F.EP? | H26: =IFERROR( RTD("cqg.rtd",,"StudyData",G26, "PCB","BaseType=Index,Price=1000,Index=1,Date=12/30/2016", "Close",$C$1,,"all",,,,"T")/100,"") -> -0.06151757645 | J26: 0.06151757645 | K26: -0.06151757645 | L26: =IF(G26="","",RTD("cqg.rtd",,"ContractData",G26,"LongDescription",,"T")) -> E-Mini S&P 500, Dec 20
B27: ='Symbols (2)'!B27 -> F.DD? | C27: =IFERROR(RTD("cqg.rtd",,"StudyData",B27, "PCB","BaseType=Index,Price=1000,Index=1,Date=12/30/2016", "Close",$C$1,,"all",,,,"T")/100,"") -> -0.02100417763 | D27: =RANK($C27,$C$2:C$31)+COUNTIF($C$2:C27,C27)-1 -> 14 | E27: F.DD? | F27: 26 | G27: F.CLE? | H27: =IFERROR( RTD("cqg.rtd",,"StudyData",G27, "PCB","BaseType=Index,Price=1000,Index=1,Date=12/30/2016", "Close",$C$1,,"all",,,,"T")/100,"") -> -0.0626613471 | J27: 0.0626613471 | K27: -0.0626613471 | L27: =IF(G27="","",RTD("cqg.rtd",,"ContractData",G27,"LongDescription",,"T")) -> Crude Light (Globex), Nov 20
B28: ='Symbols (2)'!B28 -> F.DSX? | C28: =IFERROR(RTD("cqg.rtd",,"StudyData",B28, "PCB","BaseType=Index,Price=1000,Index=1,Date=12/30/2016", "Close",$C$1,,"all",,,,"T")/100,"") -> -0.02725880551 | D28: =RANK($C28,$C$2:C$31)+COUNTIF($C$2:C28,C28)-1 -> 19 | E28: F.DSX? | F28: 27 | G28: F.PLE? | H28: =IFERROR( RTD("cqg.rtd",,"StudyData",G28, "PCB","BaseType=Index,Price=1000,Index=1,Date=12/30/2016", "Close",$C$1,,"all",,,,"T")/100,"") -> -0.0741017166 | J28: 0.0741017166 | K28: -0.0741017166 | L28: =IF(G28="","",RTD("cqg.rtd",,"ContractData",G28,"LongDescription",,"T")) -> Platinum (Globex), Oct 20
B29: ='Symbols (2)'!B29 -> F.QFA? | C29: =IFERROR(RTD("cqg.rtd",,"StudyData",B29, "PCB","BaseType=Index,Price=1000,Index=1,Date=12/30/2016", "Close",$C$1,,"all",,,,"T")/100,"") -> -0.02532809496 | D29: =RANK($C29,$C$2:C$31)+COUNTIF($C$2:C29,C29)-1 -> 16 | E29: F.QFA? | F29: 28 | G29: F.HOE? | H29: =IFERROR( RTD("cqg.rtd",,"StudyData",G29, "PCB","BaseType=Index,Price=1000,Index=1,Date=12/30/2016", "Close",$C$1,,"all",,,,"T")/100,"") -> -0.07754867329 | J29: 0.07754867329 | K29: -0.07754867329 | L29: =IF(G29="","",RTD("cqg.rtd",,"ContractData",G29,"LongDescription",,"T")) -> NY Harbor ULSD, Nov 20
B30: ='Symbols (2)'!B30 -> F.PIL? | C30: =IFERROR(RTD("cqg.rtd",,"StudyData",B30, "PCB","BaseType=Index,Price=1000,Index=1,Date=12/30/2016", "Close",$C$1,,"all",,,,"T")/100,"") -> -0.02673688475 | D30: =RANK($C30,$C$2:C$31)+COUNTIF($C$2:C30,C30)-1 -> 18 | E30: F.PIL? | F30: 29 | G30: F.ENQ? | H30: =IFERROR( RTD("cqg.rtd",,"StudyData",G30, "PCB","BaseType=Index,Price=1000,Index=1,Date=12/30/2016", "Close",$C$1,,"all",,,,"T")/100,"") -> -0.08966897804 | J30: 0.08966897804 | K30: -0.08966897804 | L30: =IF(G30="","",RTD("cqg.rtd",,"ContractData",G30,"LongDescription",,"T")) -> E-mini NASDAQ-100, Dec 20
B31: ='Symbols (2)'!B31 -> F.NKD? | C31: =IFERROR(RTD("cqg.rtd",,"StudyData",B31, "PCB","BaseType=Index,Price=1000,Index=1,Date=12/30/2016", "Close",$C$1,,"all",,,,"T")/100,"") -> -0.01320060593 | D31: =RANK($C31,$C$2:C$31)+COUNTIF($C$2:C31,C31)-1 -> 10 | E31: F.NKD? | F31: 30 | G31: F.SIE? | H31: =IFERROR( RTD("cqg.rtd",,"StudyData",G31, "PCB","BaseType=Index,Price=1000,Index=1,Date=12/30/2016", "Close",$C$1,,"all",,,,"T")/100,"") -> -0.142302581 | J31: 0.142302581 | K31: -0.142302581 | L31: =IF(G31="","",RTD("cqg.rtd",,"ContractData",G31,"LongDescription",,"T")) -> Silver (Globex), Dec 20
